Workbook

Sheet AER only (hidden)
B1: Data in these columns used for data validation and database purposes.
B2: Date last modified:
AC4: FOR ELECTRICITY BUSINESSES ONLY
AC5: Feeder Types | AG5: TasNetworks (D) | AH5: MAIFI flag | AI5: Feeder Names
AC6: CBD | AD6: Urban | AE6: Short rural | AF6: long rural | AG6: EXTRA
B7: dms_TradingName_List | C7: dms_TradingNameFull_List | D7: dms_ABN_List | E7: dms_JurisdictionList | F7: dms_Sector_List | G7: dms_Segment_List | H7: dms_FormControl_List | I7: dms_RPT_List | J7: dms_RPTMonth_List | K7: dms_CRCPlength_List | L7: dms_FRCPlength_List | M7: dms_663_List | N7: dms_DeterminationRef_List | P7: dms_Addr1_List | Q7: dms_Addr2_List | R7: dms_Suburb_List | S7: dms_State_List | T7: dms_PostCode_List | U7: dms_PAddr1_List | V7: dms_PAddr2_List | W7: dms_PSuburb_List | X7: dms_PState_List | Y7: dms_PPostCode_List | Z7: dms_ContactName1_List | AA7: dms_ContactPh1_List | AB7: dms_ContactEmail_List | AC7: dms_CBD_flag | AD7: dms_Urban_flag | AE7: dms_ShortRural_flag | AF7: dms_LongRural_flag | AG7: dms_FeederType_5_flag | AH7: dms_MAIFI_flag_List | AI7: dms_FeederName_1 | AJ7: dms_FeederName_2 | AK7: dms_FeederName_3 | AL7: dms_FeederName_4 | AM7: dms_FeederName_5
B8: ActewAGL Distribution | C8: ActewAGL Distribution | D8: 76670568688 | E8: ACT | F8: Electricity | G8: Distribution | H8: Revenue cap | I8: Financial | J8: June | K8: 5 | L8: 5 | M8: 5 | N8: 2014-19 Distribution Determination | P8: 40 Bunda Street | R8: CANBERRA | S8: ACT | T8: 2600 | U8: GPO BOX 366 | W8: CANBERRA | X8: ACT | Y8: 2601 | Z8: Robert Walker | AA8: 02 6248 3847 | AB8: robert.walker@actewagle.com.au | AC8: NO | AD8: YES | AE8: YES | AF8: NO | AG8: NO | AI8: CBD | AJ8: Urban | AK8: Short rural | AL8: Long rural | AN8: ActewAGL Distribution
B9: ActewAGL Distribution (Tx Assets) | C9: ActewAGL Distribution (Tx Assets) | D9: 76670568688 | E9: ACT | F9: Electricity | G9: Distribution | H9: Revenue cap | I9: Financial | J9: June | K9: 5 | L9: 5 | M9: 5 | N9: distribution determination | P9: 40 Bunda Street | R9: CANBERRA | S9: ACT | T9: 2600 | U9: GPO BOX 366 | W9: CANBERRA | X9: ACT | Y9: 2601 | Z9: Robert Walker | AA9: 02 6248 3847 | AB9: robert.walker@actewagle.com.au | AI9: CBD | AJ9: Urban | AK9: Short rural | AL9: Long rural | AN9: ActewAGL Distribution (Tx Assets)
B10: ActewAGL Gas | C10: ActewAGL Gas | D10: 76670568688 | E10: ACT | F10: Gas | G10: Distribution | H10: Weighted average price cap | I10: Financial | J10: June | K10: 5 | L10: 5 | M10: x | P10: 40 Bunda Street | R10: CANBERRA | S10: ACT | T10: 2600 | U10: GPO BOX 366 | W10: CANBERRA | X10: ACT | Y10: 2601 | Z10: Philip Deamer | AA10: 02 6248 3438 | AB10: GasAAReview@actewagl.com.au | AN10: ActewAGL Gas
B11: AGN | C11: AGN | D11: 78551685 | E11: SA | F11: Gas | G11: Distribution | H11: Revenue cap | I11: Financial | J11: June | K11: 5 | L11: 5 | M11: 5 | N11: distribution determination | S11: SA | AI11: CBD | AJ11: Urban | AK11: Short rural | AL11: Long rural | AN11: AGN
B12: Amadeus | C12: APT Pipelines (NT) Pty Ltd | D12: 39009737393 | E12: NT | F12: Gas | G12: Transmission | H12: Weighted average price cap | I12: Financial | J12: June | K12: 5 | L12: 5 | M12: x | N12: n/a | P12: Level 19, HSBC Building | Q12: 580 George Street | R12: SYDNEY | S12: NSW | T12: 2000 | U12: Level 19, HSBC Building | V12: 580 George Street | W12: SYDNEY | X12: NSW | Y12: 2000 | Z12: Alexandra Curran | AA12: 02 9275 0020 | AB12: alexandra.curran@apa.com.au | AN12: Amadeus
B13: APA GasNet | C13: APA VTS Australia Limited | D13: 79096457868 | E13: Vic | F13: Gas | G13: Transmission | I13: Calendar | J13: December | K13: 5 | L13: 5 | M13: x | P13: Level 19, HSBC Building | Q13: 580 George Street | R13: SYDNEY | S13: NSW | T13: 2000 | U13: PO Box R41 | W13: ROYAL EXCHANGE | X13: NSW | Y13: 1225 | AA13: 02 9693 0000 | AN13: APA GasNet
B14: Ausgrid | C14: Ausgrid | D14: 67505337385 | E14: NSW | F14: Electricity | G14: Distribution | H14: Revenue cap | I14: Financial | J14: June | K14: 5 | L14: 5 | M14: 5 | N14: 2014-19 Distribution Determination | P14: 570 George St | R14: SYDNEY | S14: NSW | T14: 2000 | Z14: John Thomson | AA14: (02) 9269 2312 | AB14: john.thomson@ausgrid.com.au | AC14: YES | AD14: YES | AE14: YES | AF14: YES | AG14: NO | AI14: CBD | AJ14: Urban | AK14: Short rural | AL14: Long rural | AN14: Ausgrid
B15: Ausgrid (Tx Assets) | C15: Ausgrid (Tx Assets) | D15: 67505337385 | E15: NSW | F15: Electricity | G15: Distribution | H15: Revenue cap | I15: Financial | J15: June | K15: 5 | L15: 5 | M15: 5 | N15: distribution determination | S15: NSW | AI15: CBD | AJ15: Urban | AK15: Short rural | AL15: Long rural | AN15: Ausgrid (Tx Assets)
B16: AusNet (D) | C16: AusNet Services (D) | D16: 91064651118 | E16: Vic | F16: Electricity | G16: Distribution | H16: Revenue cap | I16: Calendar | J16: December | K16: 5 | L16: 5 | M16: 2 | N16: 2016-20 Distribution Determination | P16: Level 32 | Q16: 2 Southbank Boulevard | R16: SOUTHBANK | S16: Vic | T16: 3006 | U16: Locked Bag 14051 | W16: MELBOURNE CITY MAIL CENTRE | X16: VIC | Y16: 8001 | Z16: Hannah Williams | AA16: 03 9683 4088 | AB16: hwilliams@powercor.com.au | AD16: YES | AE16: YES | AF16: YES | AG16: NO | AI16: CBD | AJ16: Urban | AK16: Short rural | AL16: Long rural | AN16: AusNet (D)
B17: AusNet (Gas) | F17: Gas | G17: Distribution | I17: Calendar | J17: December | K17: 5 | L17: 5 | M17: X | AN17: AusNet (Gas)
B18: AusNet (T) | C18: AusNet (T) | D18: 78079798173 | E18: Vic | F18: Electricity | G18: Transmission | H18: Revenue cap | I18: Financial | J18: March | K18: 5 | L18: 5 | M18: 2 | N18: transmission determination | P18: Level 32 | Q18: 2 Southbank Boulevard | R18: SOUTHBANK | S18: Vic | T18: 3006 | Z18: Tom Hallam | AA18: 03 9695 6617 | AB18: Thomas.hallam@SP-Ausnet.com.au | AI18: CBD | AJ18: Urban | AK18: Short rural | AL18: Long rural | AN18: AusNet (T)
B19: Australian Distribution Co. | C19: Australian Distribution Co. | D19: 11222333444 | E19: - | F19: Electricity | G19: Distribution | H19: Revenue cap | I19: Financial | J19: June | K19: 5 | L19: 5 | M19: 2 | N19: distribution determination | S19: - | AI19: CBD | AJ19: Urban | AK19: Short rural | AL19: Long rural | AN19: Australian Distribution Co.
B20: Australian Transmission Co. | C20: Australian Transmission Co. | D20: 11222333444 | E20: - | F20: Electricity | G20: Transmission | H20: Revenue cap | I20: Financial | J20: June | K20: 5 | L20: 5 | M20: 5 | N20: transmission determination | S20: - | AI20: CBD | AJ20: Urban | AK20: Short rural | AL20: Long rural | AN20: Australian Transmission Co.
B21: CitiPower | C21: CitiPower | D21: 76064651056 | E21: Vic | F21: Electricity | G21: Distribution | H21: Revenue cap | I21: Calendar | J21: December | K21: 5 | L21: 5 | M21: 2 | N21: 2016-20 Distribution Determination | P21: 40 Market Street | R21: MELBOURNE | S21: Vic | T21: 3000 | U21: Locked Bag 14090 | W21: MELBOURNE | X21: VIC | Y21: 8001 | Z21: Hannah Williams | AA21: 03 9683 4088 | AB21: hwilliams@powercor.com.au | AC21: YES | AD21: YES | AE21: NO | AF21: NO | AG21: NO | AI21: CBD | AJ21: Urban | AK21: Short rural | AL21: Long rural | AN21: CitiPower
B22: Directlink | C22: Directlink | D22: 16779340889 | E22: Qld | F22: Electricity | G22: Transmission | H22: Revenue cap | I22: Financial | J22: June | K22: 9 | L22: 5 | M22: 5 | N22: transmission determination | S22: NSW | AI22: CBD | AJ22: Urban | AK22: Short rural | AL22: Long rural | AN22: Directlink
B23: ElectraNet | C23: ElectraNet | D23: 41094482416 | E23: SA | F23: Electricity | G23: Transmission | H23: Revenue cap | I23: Financial | J23: June | K23: 5 | L23: 5 | M23: 5 | N23: transmission determination | P23: 52-55 East Terrace | Q23: Rymill Park | R23: ADELAIDE | S23: SA | T23: 5000 | U23: PO Box 7096 | V23: Hutt Street Post Office | W23: ADELAIDE | X23: SA | Z23: Bill Jackson | AA23: 08 8404 7969 | AB23: jackson.bill@electranet.com.au | AI23: CBD | AJ23: Urban | AK23: Short rural | AL23: Long rural | AN23: ElectraNet
B24: Endeavour Energy | C24: Endeavour Energy | D24: 59253130878 | E24: NSW | F24: Electricity | G24: Distribution | H24: Revenue cap | I24: Financial | J24: June | K24: 5 | L24: 5 | M24: 5 | N24: 2014-19 Distribution Determination | P24: 51 Huntingwood Drive | R24: HUNTINGWOOD | S24: NSW | T24: 2148 | U24: PO Box 811 | W24: SEVEN HILLS | X24: NSW | Z24: Jon Hocking | AA24: 02 9853 4386 / 0407 348 156 | AB24: Jon.Hocking@Endeavourenergy.com.au | AC24: NO | AD24: YES | AE24: YES | AF24: YES | AG24: NO | AI24: CBD | AJ24: Urban | AK24: Short rural | AL24: Long rural | AN24: Endeavour Energy
B25: Energex | C25: Energex | D25: 40078849055 | E25: Qld | F25: Electricity | G25: Distribution | H25: Revenue cap | I25: Financial | J25: June | K25: 5 | L25: 5 | M25: 5 | N25: 2015-20 Distribution Determination | P25: 26 Reddacliff Street | R25: NEWSTEAD | S25: Qld | T25: 4006 | U25: 26 Reddacliff Street | W25: NEWSTEAD | X25: QLD | Y25: 4006 | Z25: Nicola Roscoe | AA25: 07 3664 5891 | AB25: nicolaroscoe@energex.com.au | AC25: YES | AD25: YES | AE25: YES | AF25: NO | AG25: NO | AI25: CBD | AJ25: Urban | AK25: Short rural | AL25: Long rural | AN25: Energex
B26: Ergon Energy | C26: Ergon Energy | D26: 50087646062 | E26: Qld | F26: Electricity | G26: Distribution | H26: Revenue cap | I26: Financial | J26: June | K26: 5 | L26: 5 | M26: 5 | N26: 2015-20 Distribution Determination | P26: 22 Walker Street | R26: TOWNSVILLE | S26: Qld | T26: 4810 | U26: Po Box 264 | W26: FORTITUDE VALLEY | X26: QLD | Y26: 4006 | Z26: Jenny Doyle, Group Manager Regulatory Affairs | AA26: (07) 3851 6416 | AB26: jenny.doyle@ergon.com.au | AC26: NO | AD26: YES | AE26: YES | AF26: YES | AG26: NO | AI26: CBD | AJ26: Urban | AK26: Short rural | AL26: Long rural | AN26: Ergon Energy
B27: Envestra (Victoria and Albury) | C27: Australian Gas Networks Limited | D27: 19078551685 | E27: SA | F27: Gas | G27: Distribution | I27: Calendar | J27: December | K27: 5 | L27: 5 | M27: x | P27: Level 10 | Q27: 81 Flinders Street | R27: ADELAIDE | S27: SA | T27: 5000 | AA27: 08 8227 1500 | AN27: Envestra (Victoria and Albury)
B28: Essential Energy | C28: Essential Energy | D28: 37428185226 | E28: NSW | F28: Electricity | G28: Distribution | H28: Revenue cap | I28: Financial | J28: June | K28: 5 | L28: 5 | M28: 5 | N28: 2014-19 Distribution Determination | P28: 8 Buller Street | R28: PORT MACQUARIE | S28: NSW | U28: PO Box 5730 | W28: PORT MACQUARIE | X28: NSW | Z28: Catherine Waddell | AA28: 02 6338 3553 | AB28: catherine.waddell@essentialenergy.com.au | AE28: YES | AF28: YES | AG28: NO | AI28: CBD | AJ28: Urban | AK28: Short rural | AL28: Long rural | AN28: Essential Energy
B29: Jemena Electricity | C29: Jemena Electricity | D29: 82064651083 | E29: Vic | F29: Electricity | G29: Distribution | H29: Revenue cap | I29: Calendar | J29: December | K29: 5 | L29: 5 | M29: 2 | N29: 2016-20 Distribution Determination | P29: Level 16 | Q29: 567 Collins Street | R29: MELBOURNE | S29: VIC | T29: 3000 | U29: PO Box 16182 | W29: MELBOURNE | X29: VIC | Y29: 8001 | Z29: Robert McMillan | AA29: 03 9173 7000 | AB29: robert.mcmillan@jemena.com.au | AE29: YES | AF29: NO | AG29: NO | AI29: CBD | AJ29: Urban | AK29: Short rural | AL29: Long rural | AN29: Jemena Electricity
B30: Multinet Gas | C30: Multinet Gas (DB No.1) Pty Ltd (ACN 086 026 986), Multinet Gas (DB No.2) Pty Ltd (ACN 086 230 122) | D30: 86026986 | E30: Vic | F30: Gas | G30: Distribution | I30: Calendar | J30: December | K30: 5 | L30: 5 | M30: x | AN30: Multinet Gas
B31: Murraylink | C31: Murraylink | D31: 79181207909 | E31: SA | F31: Electricity | G31: Transmission | H31: Revenue cap | I31: Financial | J31: June | K31: 5 | L31: 5 | M31: 5 | N31: transmission determination | AI31: CBD | AJ31: Urban | AK31: Short rural | AL31: Long rural | AN31: Murraylink
B32: Powercor Australia | C32: Powercor Australia | D32: 89064651109 | E32: Vic | F32: Electricity | G32: Distribution | H32: Revenue cap | I32: Calendar | J32: December | K32: 5 | L32: 5 | M32: 2 | N32: 2016-20 Distribution Determination | P32: 40 Market Street | R32: MELBOURNE | S32: Vic | T32: 3000 | U32: Locked bag 14090 | W32: MELBOURNE | X32: VIC | Y32: 8001 | Z32: Hannah Williams | AA32: 03 9683 4088 | AB32: hwilliams@powercor.com.au | AE32: YES | AF32: YES | AG32: NO | AI32: CBD | AJ32: Urban | AK32: Short rural | AL32: Long rural | AN32: Powercor Australia
B33: Powerlink | C33: Queensland Electricity Transmission Corporation Limited trading as Powerlink Queensland | D33: 82078849233 | E33: Qld | F33: Electricity | G33: Transmission | H33: Revenue cap | I33: Financial | J33: June | K33: 5 | L33: 5 | M33: 5 | N33: transmission determination | P33: 33 Harold St | R33: VIRGINIA | S33: Qld | T33: 4014 | U33: PO Box 1193 | W33: VIRGINIA | X33: QLD | Y33: 4014 | Z33: Jennifer Harris | AA33: 07 3860 2667 | AB33: jharris@powerlink.com.au | AI33: CBD | AJ33: Urban | AK33: Short rural | AL33: Long rural | AN33: Powerlink
B34: Roma to Brisbane Pipeline | C34: APT Petroleum Pipelines Limited t/a Roma to Brisbane Pipeline | D34: 009 737 393 | E34: Qld | F34: Gas | G34: Distribution | H34: ? | I34: Financial | J34: June | K34: 5 | L34: 5 | M34: x | N34: n/a | AI34: CBD | AJ34: Urban | AK34: Short rural | AL34: Long rural | AN34: Roma to Brisbane Pipeline
B35: SA Power Networks | C35: SA Power Networks | D35: 13332330749 | E35: SA | F35: Electricity | G35: Distribution | H35: Revenue cap | I35: Financial | J35: June | K35: 5 | L35: 5 | M35: 5 | N35: 2015-20 Distribution Determination | P35: 1 Anzac Highway | R35: KESWICK | S35: SA | T35: 5035 | U35: GPO Box 77 | W35: ADELAIDE | X35: SA | Z35: Damien O'Connor | AA35: 08 8404 5066 | AB35: damien.oconnor@sapowernetworks.com.au | AE35: YES | AF35: YES | AG35: NO | AI35: CBD | AJ35: Urban | AK35: Short rural | AL35: Long rural | AN35: SA Power Networks
B36: TasNetworks (D) | C36: TasNetworks (D) | D36: 24167357299 | E36: Tas | F36: Electricity | G36: Distribution | H36: Revenue cap | I36: Financial | J36: June | K36: 5 | L36: 5 | M36: 5 | N36: distribution determination | P36: 21 Kirksway Place | R36: HOBART | S36: Tas | T36: 7000 | U36: GPO Box 191 | W36: HOBART | X36: Tas | Z36: Leigh Mayne | AA36: 03 6270 3691 | AB36: rrp2012@auroraenergy.com.au | AE36: YES | AF36: YES | AG36: YES | AI36: Critical Infrastructure | AJ36: High density commercial | AK36: Urban | AL36: High density rural | AM36: Low density rural | AN36: TasNetworks (D)
B37: TasNetworks (T) | C37: TasNetworks (T) | D37: 24167357299 | E37: Tas | F37: Electricity | G37: Transmission | H37: Revenue cap | I37: Financial | J37: March | K37: 5 | L37: 5 | M37: 5 | N37: transmission determination | P37: 1-7 Maria Street | R37: LENAH VALLEY | S37: Tas | T37: 7008 | U37: PO Box 606 | W37: MOONAH | X37: Tas | Z37: Heath Dillon | AA37: 03 6274 3664 | AB37: heath.dillon@transend.com.au | AI37: CBD | AJ37: Urban | AK37: Short rural | AL37: Long rural | AN37: TasNetworks (T)
B38: TransGrid | C38: TransGrid | D38: 19622755774 | E38: NSW | F38: Electricity | G38: Transmission | H38: Revenue cap | I38: Financial | J38: June | K38: 5 | L38: 4 | M38: 5 | N38: transmission determination | P38: 180 Thomas Street | R38: HAYMARKET | S38: NSW | T38: 2000 | U38: PO Box A1000 | W38: SYDNEY SOUTH | X38: NSW | Z38: Andrew Kingsmill | AA38: 02 9284 3149 | AB38: andrew.kingsmill@transgrid.com.au | AI38: CBD | AJ38: Urban | AK38: Short rural | AL38: Long rural | AN38: TransGrid
B39: United Energy | C39: United Energy | D39: 70064651029 | E39: Vic | F39: Electricity | G39: Distribution | H39: Revenue cap | I39: Calendar | J39: December | K39: 5 | L39: 5 | M39: 2 | N39: 2016-20 Distribution Determination | P39: Level 3 | Q39: 6 Nexus Court | R39: MULGRAVE | S39: Vic | T39: 3149 | U39: PO Box 449 | W39: MOUNT WAVERLEY | X39: VIC | Y39: 3170 | Z39: Mathew Abraham | AA39: 03 8846 9758 | AB39: mathew.abraham@ue.com.au | AE39: YES | AF39: NO | AG39: NO | AI39: CBD | AJ39: Urban | AK39: Short rural | AL39: Long rural | AN39: United Energy
B40: Western Power (D) | C40: Western Power (D) | D40: 18540492861 | E40: WA | F40: Electricity | G40: Distribution | H40: Revenue cap | I40: Financial | J40: June | K40: 12 | L40: 4 | M40: x | N40: distribution determination | P40: 363 Wellington Street | R40: PERTH | S40: WA | T40: 6000 | U40: GPO Box L921 | W40: PERTH | X40: WA | Y40: 6842 | Z40: Judy Hunter | AA40: 08 9326 6239 | AB40: judy.hunter@westernpower.com.au | AE40: YES | AF40: YES | AG40: NO | AH40: NO | AI40: CBD | AJ40: Urban | AK40: Short rural | AL40: Long rural | AN40: Western Power (D)
B41: Western Power (T) | C41: Western Power (T) | D41: 18540492861 | E41: WA | F41: Electricity | G41: Transmission | H41: Revenue cap | I41: Financial | J41: June | K41: 12 | L41: 4 | M41: x | N41: transmission determination | P41: 363 Wellington Street | R41: PERTH | S41: WA | T41: 6000 | U41: GPO Box L921 | W41: PERTH | X41: WA | Y41: 6842 | Z41: Judy Hunter | AA41: 08 9326 6239 | AB41: judy.hunter@westernpower.com.au | AE41: YES | AF41: YES | AG41: NO | AI41: CBD | AJ41: Urban | AK41: Short rural | AL41: Long rural | AN41: Western Power (T)
X44: For EB & Reset RINs only
B45: The Reg Year Ending (dms_RYE) must be set to the last year of the regulatory period. For forecast data is is usually (FRCP_y5) for actual it is a single year (CRY). For historical actual data the RYE will need to be set manually in the business details sheet by setting the dms_Multiyear_flag to 1 and putting the correct value in 'dms_Specified_FinalYear. See cells C67:C68 | G45: =IF(dms_RPT="financial",VALUE(LEFT(CRCP_y1,4)-1)&"-"&TEXT(VALUE(RIGHT(CRCP_y1,2)-1),"00"),VALUE(LEFT(CRCP_y1,4)-1)) -> 2009-10 | M45: Drop down selector box for CA & Reset RINs. | N45: Drop down selector box for CA & Reset RINs. | P45: For CA & Reset RINs only | X45: for DNSP only | AI45: Reason for interruption | AJ45: dms_Reason_Interruption_Detailed | AK45: dms_Reason_Interruption
B46: dms_Model_List | C46: DELETE NR 'CRY' IF NOT AN ANNUAL RIN (EB, CA , ARR) | E46: dms_RYE_Formula_Result | M46: dms_0203_ProjectType | N46: dms_0203_02_ProjectType | P46: dms_020303_01_UOM | Q46: dms_020501_01_UOM | R46: dms_020501_02_UOM | S46: dms_020501_03_UOM | T46: dms_020501_04_UOM | U46: dms_020603_01_UOM | V46: dms_040102_01_UOM | W46: dms_040102_04_UOM | X46: dms_030601_01_UOM | Y46: dms_030601_02_UOM | Z46: dms_030701_01_UOM | AA46: dms_030702_01_UOM | AB46: dms_030703_01_UOM | AI46: Animal | AJ46: Animal impact | AK46: Animal
B47: ARR | C47: ANNUAL REPORTING STATEMENT | E47: =LEFT(dms_SingleYear_FinalYear_Result,2)&RIGHT(dms_SingleYear_FinalYear_Result,2) -> 2016 | F47: =LEFT(dms_SingleYear_FinalYear_Result,2)&RIGHT(dms_SingleYear_FinalYear_Result,2) | H47: Formula errors are OK | M47: New line on new route - single circuit | N47: Demand growth | P47: Circuit line length in km | Q47: 0's | R47: 0's | S47: 0's | T47: 0's | U47: 0's | V47: 0's | W47: days | X47: minutes/customer | Y47: minutes/customer | Z47: Customer / km | AA47: % | AB47: km | AJ47: Animal nesting/burrowing, etc and other | AK47: Asset failure
B48: CA | C48: CATEGORY ANALYSIS | E48: =LEFT(dms_SingleYear_FinalYear_Result,2)&RIGHT(dms_SingleYear_FinalYear_Result,2) -> 2016 | F48: =LEFT(dms_SingleYear_FinalYear_Result,2)&RIGHT(dms_SingleYear_FinalYear_Result,2) | H48: Formula errors are OK | M48: New line on new route - dual circuit | N48: Voltage issues | P48: Circuit line length in km | Q48: 0's | R48: 0's | S48: 0's | T48: 0's | U48: 0's | V48: 0's | W48: 0's | X48: minutes/customer | Y48: minutes/customer | Z48: MWh/customer | AA48: Number of spans | AJ48: Other | AK48: Other
B49: CPI | C49: CPI | M49: New line on new route - other | N49: Reactive power issue | P49: Circuit line length in km | Q49: MVA added | R49: MVA added | S49: MVA added | T49: MVA added | U49: 0's | V49: 0's | W49: $0s | X49: interruptions/customer | Y49: interruptions/customer | Z49: kVA / customer | AA49: Number of spans | AI49: Asset failure | AJ49: LV | AK49: Overloads
B50: EB | C50: ECONOMIC BENCHMARKING | E50: =LEFT(dms_SingleYear_FinalYear_Result,2)&RIGHT(dms_SingleYear_FinalYear_Result,2) -> 2016 | F50: =LEFT(dms_SingleYear_FinalYear_Result,2)&RIGHT(dms_SingleYear_FinalYear_Result,2) | H50: Formula errors are OK | M50: Line rebuild over existing route - single circuit | N50: Fault level issues | P50: Circuit line length in km | Q50: 0's | R50: 0's | S50: 0's | T50: 0's | U50: 0's | V50: $0s | W50: 0's | X50: interruptions/customer | Y50: interruptions/customer | AA50: Number of spans | AJ50: Distribution substation | AK50: Planned
B51: PTRM | C51: POST TAX REVENUE MODEL | E51: =LEFT(dms_MultiYear_FinalYear_Result,2)&RIGHT(dms_MultiYear_FinalYear_Result,2) -> 2020 | F51: =LEFT(dms_MultiYear_FinalYear_Result,2)&RIGHT(dms_MultiYear_FinalYear_Result,2) | M51: Line rebuild over existing route - dual circuit | N51: Net market benefit | P51: Number | Q51: total spend $0s | R51: total spend $0s | S51: total spend $0s | T51: total spend $0s | U51: (per cent) | AA51: Number of spans | AJ51: HV | AK51: Network business
B52: Reset | C52: REGULATORY REPORTING STATEMENT | E52: =LEFT(dms_MultiYear_FinalYear_Result,2)&RIGHT(dms_MultiYear_FinalYear_Result,2) -> 2020 | F52: =LEFT(dms_MultiYear_FinalYear_Result,2)&RIGHT(dms_MultiYear_FinalYear_Result,2) | H52: Formula errors are OK | M52: Reconductor - Single circuit | N52: Safety | P52: Number | Q52: net circuit km added | R52: net circuit km added | S52: net circuit km added | T52: net circuit km added | AA52: Years | AJ52: Zone substation | AK52: Third party
B53: RFM | C53: ROLL FORWARD MODEL | E53: =LEFT(dms_CRCP_FinalYear_Result,2)&RIGHT(dms_CRCP_FinalYear_Result,2) -> 2016 | F53: =LEFT(dms_CRCP_FinalYear_Result,2)&RIGHT(dms_CRCP_FinalYear_Result,2) | M53: Reconductor - Dual circuit | N53: Environment | P53: Number | Q53: total spend $0s | R53: total spend $0s | S53: total spend $0s | T53: total spend $0s | AA53: Years | AJ53: Subtransmission | AK53: Unknown
B54: WACC | C54: WEIGHTED AVERAGE COST OF CAPITAL | E54: =LEFT(dms_MultiYear_FinalYear_Result,2)&RIGHT(dms_MultiYear_FinalYear_Result,2) -> 2020 | F54: =LEFT(dms_MultiYear_FinalYear_Result,2)&RIGHT(dms_MultiYear_FinalYear_Result,2) | M54: Other | N54: Other | Q54: net circuit km added | R54: net circuit km added | S54: net circuit km added | T54: net circuit km added | AA54: Trees | AI54: Other | AJ54: insert description of 'other' | AK54: Vegetation
Q55: total spend $0s | R55: total spend $0s | S55: total spend $0s | T55: total spend $0s | AA55: Trees | AI55: Overloads | AJ55: - | AK55: Weather
Q56: 0's | S56: $0s | AA56: Defects | AI56: Planned | AJ56: - | AK56: 2 - STPIS Exclusion (3.3)(a)
Q57: 0's | AA57: Defects | AI57: Network business | AJ57: Network error | AK57: 3 - STPIS Exclusion (3.3)(a)
Q58: 0's | AA58: Spans | AJ58: Switching and protection error | AK58: 4 - STPIS Exclusion (3.3)(a)
Q59: $0s | AA59: km | AI59: Third party | AJ59: Fire | AK59: 5 - STPIS Exclusion (3.3)(a)
AA60: Spans | AJ60: Other | AK60: 6 - STPIS Exclusion (3.3)(a)
AJ61: Dig-in | AK61: 7 - STPIS Exclusion (3.3)(a)
AJ62: Unauthorised access
B63: For all files either AER or business needs to be able to specify the type of submission | C63: For PTRM & RFM templates we must provide a choice in case they change their form of control - otherwise it is drawn from the business specific lookup table above. | E63: These are indeces and lookup values for various dates. All step from the value placed in FRCP_y1 on the business and other details worksheet | X63: for TNSP only | AJ63: Vehicle impact
B64: dms_SourceList | C64: dms_FormControl_Choices | E64: dms_FRCPlength_Num_List | F64: dms_FinalYear_List | G64: dms_CRCPlength_Num_List | H64: dms_CFinalYear_List | I64: dms_FRCP_years | K64: dms_CRCP_years | M64: dms_CRCP_index | X64: dms_030601_01_UOM | Z64: dms_030701_01_UOM | AA64: dms_030702_01_UOM | AI64: Unknown | AJ64: Unknown
B65: After appeal | C65: Revenue cap | E65: 1 | F65: dms_FRCP_y1 | G65: 1 | H65: CRCP_y1 | I65: =FRCP_y1 -> 2015-16 | J65: dms_FRCP_y1 | K65: =IF(dms_RPT="financial",VALUE(LEFT(dms_FRCP_y1,4)-1)&"-"&TEXT(VALUE(MID(dms_FRCP_y1,3,2)),"00"),VALUE(LEFT(dms_FRCP_y1,4)-1)) -> 2014-15 | L65: dms_CRCP_yZ | M65: 1 | X65: % | Z65: Number of spans | AA65: km | AI65: Vegetation | AJ65: Blow-in/Fall-in - NSP responsibility
B66: Draft decision | C66: Revenue yield | E66: 2 | F66: dms_FRCP_y2 | G66: 2 | H66: CRCP_y2 | I66: =IF(dms_RPT="financial",VALUE(LEFT(dms_FRCP_y1,4)+1)&"-"&TEXT(VALUE(RIGHT(dms_FRCP_y1,2)+1),"00"),VALUE(LEFT(dms_FRCP_y1,4)+1)) -> 2016-17 | J66: dms_FRCP_y2 | K66: =IF(dms_RPT="financial",VALUE(LEFT(dms_CRCP_yZ,4)-1)&"-"&TEXT(VALUE(MID(dms_CRCP_yZ,3,2)),"00"),VALUE(LEFT(dms_CRCP_yZ,4)-1)) -> 2013-14 | L66: dms_CRCP_yY | M66: 2 | X66: number | Z66: Years | AA66: % | AJ66: Grow-in - NSP responsibility
B67: Final decision | C67: Weighted average price cap | E67: 3 | F67: dms_FRCP_y3 | G67: 3 | H67: CRCP_y3 | I67: =IF(dms_RPT="financial",VALUE(LEFT(dms_FRCP_y2,4)+1)&"-"&TEXT(VALUE(RIGHT(dms_FRCP_y2,2)+1),"00"),VALUE(LEFT(dms_FRCP_y2,4)+1)) -> 2017-18 | J67: dms_FRCP_y3 | K67: =IF(dms_RPT="financial",VALUE(LEFT(dms_CRCP_yY,4)-1)&"-"&TEXT(VALUE(MID(dms_CRCP_yY,3,2)),"00"),VALUE(LEFT(dms_CRCP_yY,4)-1)) -> 2012-13 | L67: dms_CRCP_yX | M67: 3 | X67: number | Z67: Trees | AA67: km | AJ67: Blow-in/Fall-in - Other responsible party
B68: PTRM update 1 | E68: 4 | F68: dms_FRCP_y4 | G68: 4 | H68: CRCP_y4 | I68: =IF(dms_RPT="financial",VALUE(LEFT(dms_FRCP_y3,4)+1)&"-"&TEXT(VALUE(RIGHT(dms_FRCP_y3,2)+1),"00"),VALUE(LEFT(dms_FRCP_y3,4)+1)) -> 2018-19 | J68: dms_FRCP_y4 | K68: =IF(dms_RPT="financial",VALUE(LEFT(dms_CRCP_yX,4)-1)&"-"&TEXT(VALUE(MID(dms_CRCP_yX,3,2)),"00"),VALUE(LEFT(dms_CRCP_yX,4)-1)) -> 2011-12 | L68: dms_CRCP_yW | M68: 4 | X68: % | Z68: Defects | AA68: number | AJ68: Grow-in - Other responsible party
B69: PTRM update 2 | E69: 5 | F69: dms_FRCP_y5 | G69: 5 | H69: CRCP_y5 | I69: =IF(dms_RPT="financial",VALUE(LEFT(dms_FRCP_y4,4)+1)&"-"&TEXT(VALUE(RIGHT(dms_FRCP_y4,2)+1),"00"),VALUE(LEFT(dms_FRCP_y4,4)+1)) -> 2019-20 | J69: dms_FRCP_y5 | K69: =IF(dms_RPT="financial",VALUE(LEFT(dms_CRCP_yW,4)-1)&"-"&TEXT(VALUE(MID(dms_CRCP_yW,3,2)),"00"),VALUE(LEFT(dms_CRCP_yW,4)-1)) -> 2010-11 | L69: dms_CRCP_yV | M69: 5 | X69: number | Z69: Number of spans | AI69: Weather
B70: PTRM update 3 | E70: 6 | F70: dms_FRCP_y6 | G70: 6 | H70: CRCP_y6 | I70: =IF(dms_RPT="financial",VALUE(LEFT(dms_FRCP_y5,4)+1)&"-"&TEXT(VALUE(RIGHT(dms_FRCP_y5,2)+1),"00"),VALUE(LEFT(dms_FRCP_y5,4)+1)) -> 2020-21 | J70: dms_FRCP_y6 | K70: =IF(dms_RPT="financial",VALUE(LEFT(dms_CRCP_yV,4)-1)&"-"&TEXT(VALUE(MID(dms_CRCP_yV,3,2)),"00"),VALUE(LEFT(dms_CRCP_yV,4)-1)) -> 2009-10 | L70: dms_CRCP_yU | M70: 6 | X70: number | Z70: km | AI70: 2 - STPIS Exclusion (3.3)(a)
B71: PTRM update 4 | E71: 7 | F71: dms_FRCP_y7 | G71: 7 | H71: CRCP_y7 | I71: =IF(dms_RPT="financial",VALUE(LEFT(dms_FRCP_y6,4)+1)&"-"&TEXT(VALUE(RIGHT(dms_FRCP_y6,2)+1),"00"),VALUE(LEFT(dms_FRCP_y6,4)+1)) -> 2021-22 | J71: dms_FRCP_y7 | K71: =IF(dms_RPT="financial",VALUE(LEFT(dms_CRCP_yU,4)-1)&"-"&TEXT(VALUE(MID(dms_CRCP_yU,3,2)),"00"),VALUE(LEFT(dms_CRCP_yU,4)-1)) -> 2008-09 | L71: dms_CRCP_yT | M71: 7 | X71: % | Z71: km | AI71: 3 - STPIS Exclusion (3.3)(a)
B72: PTRM update 5 | E72: 8 | F72: dms_FRCP_y8 | G72: 8 | H72: CRCP_y8 | I72: =IF(dms_RPT="financial",VALUE(LEFT(dms_FRCP_y7,4)+1)&"-"&TEXT(VALUE(RIGHT(dms_FRCP_y7,2)+1),"00"),VALUE(LEFT(dms_FRCP_y7,4)+1)) -> 2022-23 | J72: dms_FRCP_y8 | K72: =IF(dms_RPT="financial",VALUE(LEFT(dms_CRCP_yT,4)-1)&"-"&TEXT(VALUE(MID(dms_CRCP_yT,3,2)),"00"),VALUE(LEFT(dms_CRCP_yT,4)-1)) -> 2007-08 | L72: dms_CRCP_yS | M72: 8 | X72: number | Z72: Number of spans | AI72: 4 - STPIS Exclusion (3.3)(a)
B73: PTRM update 6 | E73: 9 | F73: dms_FRCP_y9 | G73: 9 | H73: CRCP_y9 | I73: =IF(dms_RPT="financial",VALUE(LEFT(dms_FRCP_y8,4)+1)&"-"&TEXT(VALUE(RIGHT(dms_FRCP_y8,2)+1),"00"),VALUE(LEFT(dms_FRCP_y8,4)+1)) -> 2023-24 | J73: dms_FRCP_y9 | K73: =IF(dms_RPT="financial",VALUE(LEFT(dms_CRCP_yS,4)-1)&"-"&TEXT(VALUE(MID(dms_CRCP_yS,3,2)),"00"),VALUE(LEFT(dms_CRCP_yS,4)-1)) -> 2006-07 | L73: dms_CRCP_yR | M73: 9 | X73: number | AI73: 5 - STPIS Exclusion (3.3)(a)
B74: PTRM update 7 | E74: 10 | F74: dms_FRCP_y10 | G74: 10 | H74: CRCP_y10 | I74: =IF(dms_RPT="financial",VALUE(LEFT(dms_FRCP_y9,4)+1)&"-"&TEXT(VALUE(RIGHT(dms_FRCP_y9,2)+1),"00"),VALUE(LEFT(dms_FRCP_y9,4)+1)) -> 2024-25 | J74: dms_FRCP_y10 | K74: =IF(dms_RPT="financial",VALUE(LEFT(dms_CRCP_yR,4)-1)&"-"&TEXT(VALUE(MID(dms_CRCP_yR,3,2)),"00"),VALUE(LEFT(dms_CRCP_yR,4)-1)) -> 2005-06 | L74: dms_CRCP_yQ | M74: 10 | X74: % | AI74: 6 - STPIS Exclusion (3.3)(a)
B75: Regulatory proposal | E75: 11 | F75: dms_FRCP_y11 | G75: 11 | H75: CRCP_y11 | I75: =IF(dms_RPT="financial",VALUE(LEFT(dms_FRCP_y10,4)+1)&"-"&TEXT(VALUE(RIGHT(dms_FRCP_y10,2)+1),"00"),VALUE(LEFT(dms_FRCP_y10,4)+1)) -> 2025-26 | J75: dms_FRCP_y11 | K75: =IF(dms_RPT="financial",VALUE(LEFT(dms_CRCP_yQ,4)-1)&"-"&TEXT(VALUE(MID(dms_CRCP_yQ,3,2)),"00"),VALUE(LEFT(dms_CRCP_yQ,4)-1)) -> 2004-05 | L75: dms_CRCP_yP | M75: 11 | X75: number | AI75: 7 - STPIS Exclusion (3.3)(a)
B76: Reporting | E76: 12 | F76: dms_FRCP_y12 | G76: 12 | H76: CRCP_y12 | I76: =IF(dms_RPT="financial",VALUE(LEFT(dms_FRCP_y11,4)+1)&"-"&TEXT(VALUE(RIGHT(dms_FRCP_y11,2)+1),"00"),VALUE(LEFT(dms_FRCP_y11,4)+1)) -> 2026-27 | J76: dms_FRCP_y12 | K76: =IF(dms_RPT="financial",VALUE(LEFT(dms_CRCP_yP,4)-1)&"-"&TEXT(VALUE(MID(dms_CRCP_yP,3,2)),"00"),VALUE(LEFT(dms_CRCP_yP,4)-1)) -> 2003-04 | L76: dms_CRCP_yO | M76: 12 | X76: %
B77: Revised regulatory proposal | E77: 13 | F77: dms_FRCP_y13 | G77: 13 | H77: CRCP_y13 | I77: =IF(dms_RPT="financial",VALUE(LEFT(dms_FRCP_y12,4)+1)&"-"&TEXT(VALUE(RIGHT(dms_FRCP_y12,2)+1),"00"),VALUE(LEFT(dms_FRCP_y12,4)+1)) -> 2027-28 | J77: dms_FRCP_y13 | K77: =IF(dms_RPT="financial",VALUE(LEFT(dms_CRCP_yO,4)-1)&"-"&TEXT(VALUE(MID(dms_CRCP_yO,3,2)),"00"),VALUE(LEFT(dms_CRCP_yO,4)-1)) -> 2002-03 | L77: dms_CRCP_yN | M77: 13 | X77: number
B78: RFM annual update | E78: 14 | F78: dms_FRCP_y14 | G78: 14 | H78: CRCP_y14 | I78: =IF(dms_RPT="financial",VALUE(LEFT(dms_FRCP_y13,4)+1)&"-"&TEXT(VALUE(RIGHT(dms_FRCP_y13,2)+1),"00"),VALUE(LEFT(dms_FRCP_y13,4)+1)) -> 2028-29 | J78: dms_FRCP_y14 | K78: =IF(dms_RPT="financial",VALUE(LEFT(dms_CRCP_yN,4)-1)&"-"&TEXT(VALUE(MID(dms_CRCP_yN,3,2)),"00"),VALUE(LEFT(dms_CRCP_yN,4)-1)) -> 2001-02 | L78: dms_CRCP_yM | M78: 14 | X78: %
E79: 15 | F79: dms_FRCP_y15 | G79: 15 | H79: CRCP_y15 | I79: =IF(dms_RPT="financial",VALUE(LEFT(dms_FRCP_y14,4)+1)&"-"&TEXT(VALUE(RIGHT(dms_FRCP_y14,2)+1),"00"),VALUE(LEFT(dms_FRCP_y14,4)+1)) -> 2029-30 | J79: dms_FRCP_y15 | K79: =IF(dms_RPT="financial",VALUE(LEFT(dms_CRCP_yM,4)-1)&"-"&TEXT(VALUE(MID(dms_CRCP_yM,3,2)),"00"),VALUE(LEFT(dms_CRCP_yM,4)-1)) -> 2000-01 | L79: dms_CRCP_yL | M79: 15 | X79: number
B81: dms_DataQuality_List | E81: These are drop down lists for businesses to select the correct FRCP_y1 on the business and other details worksheet. This also populates the column headings in the worksheets
B82: Actual | E82: dms_RCP_fyear_list | F82: dms_CRY_ListF | G82: dms_CRY_ListC | H82: dms_RCP_cyear_list | I82: dms_FRCP_fyear_list | J82: dms_FRCP_ListF | K82: dms_FRCP_ListC | L82: dms_FRCP_cyear_list
B83: Estimate | E83: dms_fy1 | F83: 2006-07 | G83: 2007 | H83: dms_cy1 | I83: dms_frcp_fy1 | J83: 2016-17 | K83: 2017 | L83: dms_crcp_cy1
B84: Consolidated | E84: dms_fy2 | F84: 2007-08 | G84: 2008 | H84: dms_cy2 | I84: dms_frcp_fy2 | J84: 2017-18 | K84: 2018 | L84: dms_crcp_cy2
B85: Recast | E85: dms_fy3 | F85: 2008-09 | G85: 2009 | H85: dms_cy3 | I85: dms_frcp_fy3 | J85: 2018-19 | K85: 2019 | L85: dms_crcp_cy3
B86: Public | E86: dms_fy4 | F86: 2009-10 | G86: 2010 | H86: dms_cy4 | I86: dms_frcp_fy4 | J86: 2019-20 | K86: 2020 | L86: dms_crcp_cy4
E87: dms_fy5 | F87: 2010-11 | G87: 2011 | H87: dms_cy5 | I87: dms_frcp_fy5 | J87: 2020-21 | K87: 2021 | L87: dms_crcp_cy5
E88: dms_fy6 | F88: 2011-12 | G88: 2012 | H88: dms_cy6 | I88: dms_frcp_fy6 | J88: 2021-22 | K88: 2022 | L88: dms_crcp_cy6
E89: dms_fy7 | F89: 2012-13 | G89: 2013 | H89: dms_cy7 | I89: dms_frcp_fy7 | J89: 2022-23 | K89: 2023 | L89: dms_crcp_cy7
E90: dms_fy8 | F90: 2013-14 | G90: 2014 | H90: dms_cy8 | I90: dms_frcp_fy8 | J90: 2023-24 | K90: 2024 | L90: dms_crcp_cy8
E91: dms_fy9 | F91: 2014-15 | G91: 2015 | H91: dms_cy9 | I91: dms_frcp_fy9 | J91: 2024-25 | K91: 2025 | L91: dms_crcp_cy9
E92: dms_fy10 | F92: 2015-16 | G92: 2016 | H92: dms_cy10 | I92: dms_frcp_fy10 | J92: 2025-26 | K92: 2026 | L92: dms_crcp_cy10
E93: dms_fy11 | F93: 2016-17 | G93: 2017 | H93: dms_cy11 | I93: dms_frcp_fy11 | J93: 2026-27 | K93: 2027 | L93: dms_crcp_cy11
E94: dms_fy12 | F94: 2017-18 | G94: 2018 | H94: dms_cy12 | I94: dms_frcp_fy12 | J94: 2027-28 | K94: 2028 | L94: dms_crcp_cy12
E95: dms_fy13 | F95: 2018-19 | G95: 2019 | H95: dms_cy13 | I95: dms_frcp_fy13 | J95: 2028-29 | K95: 2029 | L95: dms_crcp_cy13
E96: dms_fy14 | F96: 2019-20 | G96: 2020 | H96: dms_cy14 | I96: dms_frcp_fy14 | J96: 2029-30 | K96: 2030 | L96: dms_crcp_cy14
E97: dms_fy15 | F97: 2020-21 | G97: 2021 | H97: dms_cy15 | I97: dms_frcp_fy15 | J97: 2030-31 | K97: 2031 | L97: dms_crcp_cy15

Sheet Instructions
B2: Transmission Network Service Provider
B3: Historical Reporting RIN Template
C4: This template is to be used by Powerlink to fulfil its reporting obligations to the AER.
C5: INSTRUCTIONS
C6: Complete the Business & other details worksheet before entering data or values in any other worksheets. The Business & other details worksheet is linked to other worksheets within the workbook and automatically generates certain column headings and conditional formatting.
C8: Identifying CONFIDENTIAL INFORMATION: Please use the macro at the top of each worksheet to identify confidential information.
C9: -Do this by selecting the cell or cells that contain confidential information and then run the Mark selection CONFIDENTIAL macro. This will format the cells a specific colour that is identified by the AER's database which in turn marks that information as confidential. -To reverse this, select the cell or cells and run the Return selection to NON-CONFIDENTIAL macro.
C11: UNITS OF MEASURE All amounts are to be unrounded and reported on a one for one basis: that is 1000 is to be entered as '1000'. Applicable units of measure may be identified in the table column headings or row descriptors.
C13: COLOUR CODING OF INPUT / NON-INPUT CELLS:
D14: Yellow = Input cell (mandatory)
D15: Darker yellow = input cell (mandatory)
D16: Orange = input cell (if data available)
D17: Grey = Not applicable/No inputs required
D18: . PLEASE DO NOT ENTER TEXT into cells that are to contain numeric data.
C21: WORKSHEET NAVIGATION Many tables in the worksheets have been "grouped" to allow for easy navigation. To ungroup or group data use the outline symbols in the left margin of excel (for Row groupings) or above the columns (for column groupings).
C23: RETURNING COMPLETED RESPONSES Please return four (4) files to the AER: 1. A confidential version which must contain a complete set of all responses with confidential information marked using the Mark selected cells CONFIDENTIAL macro and which has been completed using the locked template file provided by the AER. 2. An actual and an estimate version with confidential information marked using the Mark selection CONFIDENTIAL macro and which has been completed using the locked template file provided by the AER. 3. A public version with confidential information either removed completely or aggregated in some form together with writtten consent to disclose the public version of the response. Use the drop down box on the Business and other details worksheet to identify the file as either confidential ('consolidated') or public.
C25: SUBMITTING AMENDED DATA TO THE AER If an NSP wishes to correct data previously submitted to the AER it should resubmit that data using the original completed submission as the starting point. Please make any necessary changes to the data. Data that is not being amended should be left unchanged. NSPs must identify the reason for the amendments in the Amendment Reason box on the Business and other details worksheet. NSPs may provide further details regarding any amendments in the Amendments worksheet. .
C26: NSP may use Amended Data macro to highlight cells that contain amended data. NB: if data is also CONFIDENTIAL, re-apply the Confidentiality macro after applying the Amended macro
C27: Please resubmit two (2) files - a confidential version and a public version of the amended submission to the AER

Sheet Contents
B1: REGULATORY REPORTING STATEMENT
B2: =INDEX(dms_TradingNameFull_List,MATCH(dms_TradingName,dms_TradingName_List)) -> ElectraNet
B3: =CONCATENATE((LOOKUP(dms_Model,dms_Model_List,dms_Worksheet_List))&" "&CRY) -> CATEGORY ANALYSIS 2015-16
B4: CONTENTS
E7: 1. Business details | L7: 2. Expenditure
E26: 4. Network information | L26: 5. Network information

Sheet Business & other details
B1: REGULATORY REPORTING STATEMENT
B2: =INDEX(dms_TradingNameFull_List,MATCH(dms_TradingName,dms_TradingName_List)) -> ElectraNet
B3: =CONCATENATE((LOOKUP(dms_Model,dms_Model_List,dms_Worksheet_List))&" "&CRY) -> CATEGORY ANALYSIS 2015-16
B4: BUSINESS & OTHER DETAILS
B7: Instructions
B8: Complete the following business details regulatory template before entering data or values in any other regulatory template. This regulatory template is linked to other cells within the spreadsheet and automatically generates column headings.
B10: SUBMISSION PARTICULARS INPUT SHEETS
B12: ENTITY DETAILS
B14: Short name | C14: ElectraNet
B15: ACN / ABN | C15: =INDEX(dms_ABN_List,MATCH(dms_TradingName,dms_TradingName_List)) -> 41094482416
B18: Business address | C18: Address 1 | E18: =INDEX(dms_Addr1_List,MATCH(dms_TradingName,dms_TradingName_List)) -> 52-55 East Terrace
D19: Address 2 | E19: =IF(ISBLANK(INDEX(dms_Addr2_List,MATCH(dms_TradingName,dms_TradingName_List))),"",INDEX(dms_Addr2_List,MATCH(dms_TradingName,dms_TradingName_List))) -> Rymill Park
C20: Suburb | E20: =INDEX(dms_Suburb_List,MATCH(dms_TradingName,dms_TradingName_List)) -> ADELAIDE
D21: State | E21: =INDEX(dms_State_List,MATCH(dms_TradingName,dms_TradingName_List)) -> SA | F21: p/code | G21: =INDEX(dms_PostCode_List,MATCH(dms_TradingName,dms_TradingName_List)) -> 5000
B23: Postal address | C23: Address 1 | E23: =INDEX(dms_PAddr1_List,MATCH(dms_TradingName,dms_TradingName_List)) -> PO Box 7096
D24: Address 2 | E24: =IF(ISBLANK(INDEX(dms_PAddr2_List,MATCH(dms_TradingName,dms_TradingName_List))),"",INDEX(dms_PAddr2_List,MATCH(dms_TradingName,dms_TradingName_List))) -> Hutt Street Post Office
C25: Suburb | E25: =INDEX(dms_PSuburb_List,MATCH(dms_TradingName,dms_TradingName_List)) -> ADELAIDE
D26: State | E26: =INDEX(dms_PState_List,MATCH(dms_TradingName,dms_TradingName_List)) -> SA | F26: p/code | G26: =INDEX(dms_PPostCode_List,MATCH(dms_TradingName,dms_TradingName_List)) -> 0
B29: Contact name/s | C29: =INDEX(dms_ContactName1_List,MATCH(dms_TradingName,dms_TradingName_List)) -> Bill Jackson
B30: Contact phone/s | C30: =INDEX(dms_ContactPh1_List,MATCH(dms_TradingName,dms_TradingName_List)) -> 08 8404 7969 | AA30: Tom Hallam
B31: Contact email address/s | C31: =INDEX(dms_ContactEmail_List,MATCH(dms_TradingName,dms_TradingName_List)) -> jackson.bill@electranet.com.au | AA31: Tom Hallam
B33: REGULATORY CONTROL PERIODS
B35: Forthcoming regulatory control period | C35: 2015-16 | D35: =dms_FRCP_y2 -> 2016-17 | E35: =dms_FRCP_y3 -> 2017-18 | F35: =dms_FRCP_y4 -> 2018-19 | G35: =dms_FRCP_y5 -> 2019-20 | H35: =dms_FRCP_y6 -> 2020-21 | I35: =IF(dms_RPT="financial",VALUE(LEFT(FRCP_y6,4)+1)&"-"&VALUE(MID(FRCP_y6,3,2)+2),VALUE(LEFT(FRCP_y6,4)+1)) -> 2021-22
B38: Current regulatory control period | C38: =dms_CRCP_FirstYear_Result -> 2010-11 | D38: =IF(dms_RPT="financial",VALUE(LEFT(CRCP_y1,4)+1)&"-"&TEXT(VALUE(RIGHT(CRCP_y1,2)+1),"0#"),VALUE(LEFT(CRCP_y1,4)+1)) -> 2011-12 | E38: =IF(dms_RPT="financial",VALUE(LEFT(CRCP_y2,4)+1)&"-"&TEXT(VALUE(RIGHT(CRCP_y2,2)+1),"0#"),VALUE(LEFT(CRCP_y2,4)+1)) -> 2012-13 | F38: =IF(dms_RPT="financial",VALUE(LEFT(CRCP_y3,4)+1)&"-"&TEXT(VALUE(RIGHT(CRCP_y3,2)+1),"0#"),VALUE(LEFT(CRCP_y3,4)+1)) -> 2013-14 | G38: =IF(dms_RPT="financial",VALUE(LEFT(CRCP_y4,4)+1)&"-"&TEXT(VALUE(RIGHT(CRCP_y4,2)+1),"0#"),VALUE(LEFT(CRCP_y4,4)+1)) -> 2014-15 | H38: =IF(dms_RPT="financial",VALUE(LEFT(CRCP_y5,4)+1)&"-"&TEXT(VALUE(RIGHT(CRCP_y5,2)+1),"0#"),VALUE(LEFT(CRCP_y5,4)+1)) -> 2015-16
B41: Previous regulatory control period | C41: =IF(dms_RPT="financial",VALUE(LEFT(PRCP_y2,4)-1)&"-"&TEXT(VALUE(MID(PRCP_y2,3,2)),"0#"),VALUE(LEFT(PRCP_y2,4)-1)) -> 2005-06 | D41: =IF(dms_RPT="financial",VALUE(LEFT(PRCP_y3,4)-1)&"-"&TEXT(VALUE(MID(PRCP_y3,3,2)),"0#"),VALUE(LEFT(PRCP_y3,4)-1)) -> 2006-07 | E41: =IF(dms_RPT="financial",VALUE(LEFT(PRCP_y4,4)-1)&"-"&TEXT(VALUE(MID(PRCP_y4,3,2)),"0#"),VALUE(LEFT(PRCP_y4,4)-1)) -> 2007-08 | F41: =IF(dms_RPT="financial",VALUE(LEFT(PRCP_y5,4)-1)&"-"&TEXT(VALUE(RIGHT(PRCP_y5,2)-1),"0#"),VALUE(LEFT(PRCP_y5,4)-1)) -> 2008-09 | G41: =IF(dms_RPT="financial",VALUE(LEFT(CRCP_y1,4)-1)&"-"&TEXT(VALUE(RIGHT(CRCP_y1,2)-1),"0#"),VALUE(LEFT(CRCP_y1,4)-1)) -> 2009-10
B44: Current regulatory year | C44: 2015-16 | D44: CRY
C47: DELETE NR 'CRY' IF NOT AN ANNUAL RIN (EB, CA , ARR)
C48: APPLY NR 'CRY' IF AN ANNUAL RIN (EB, CA , ARR)
B50: Source | C50: Reporting | E50: Please select the correct submission type from the dropdown list.
B51: Data quality (actual, estimate, public, consolidated) | C51: Consolidated
B52: Amended RIN submission - amendment reason
B53: Submission Date | C53: 2016-10-27 | D53: dms_SubmissionDate | E53: Please enter date this file submitted to AER (dd/mm/yyyy)
B54: EBSS - First application of scheme in forthcoming period? | C54: No
A55: HIDE THESE ROWS | B55: Sector | C55: =INDEX(dms_Sector_List,MATCH(dms_TradingName,dms_TradingName_List)) -> Electricity | D55: dms_Sector | E55: =INDEX(dms_Sector_List,MATCH(dms_TradingName,dms_TradingName_List))
B56: Segment | C56: =INDEX(dms_Segment_List,MATCH(dms_TradingName,dms_TradingName_List)) -> Transmission | D56: dms_Segment | E56: =INDEX(dms_Segment_List,MATCH(dms_TradingName,dms_TradingName_List))
B57: Regulatory Year Ending | C57: =IF(dms_MultiYear_Flag=1,LEFT(dms_Specified_FinalYear,2)&RIGHT(dms_Specified_FinalYear,2),INDEX(dms_RYE_Formula_Result,MATCH(dms_Model,dms_Model_List))) -> 2016 | D57: dms_RYE | E57: =IF(dms_MultiYear_Flag=1,LEFT(dms_Specified_FinalYear,2)&RIGHT(dms_Specified_FinalYear,2),INDEX(dms_RYE_Formula_Result,MATCH(dms_Model,dms_Model_List)))
B58: Reporting Period Type | C58: =INDEX(dms_RPT_List,MATCH(dms_TradingName,dms_TradingName_List)) -> Financial | D58: dms_RPT | E58: =INDEX(dms_RPT_List,MATCH(dms_TradingName,dms_TradingName_List))
B59: Model or RIN Type | C59: CA | D59: dms_Model | E59: Drop down selection
B60: Security Classification | C60: Public | D60: dms_Classification | E60: Always Public
B61: Template - version no. | C61: 5 | D61: dms_TemplateNumber
B62: Dollar $ real month | C62: =INDEX(dms_RPTMonth_List,MATCH(dms_TradingName,dms_TradingName_List)) -> June | D62: dms_RPTMonth | E62: =INDEX(dms_RPTMonth_List,MATCH(dms_TradingName,dms_TradingName_List))
B63: Dollar $ real (the last month before the FRCP_y1) | C63: =IF(SUM(dms_SingleYear_Model)>0,CONCATENATE(dms_RPTMonth)&" "&VALUE((LEFT(CRY,2))&RIGHT(CRY,2)),CONCATENATE(dms_RPTMonth)&" "&VALUE((LEFT(dms_CRCP_FinalYear_Result,2))&RIGHT(dms_CRCP_FinalYear_Result,2))) -> June 2016 | D63: dms_DollarReal | E63: =IF(SUM(dms_SingleYear_Model)>0,CONCATENATE(dms_RPTMonth)&" "&VALUE((LEFT(CRY,2))&RIGHT(CRY,2)),CONCATENATE(dms_RPTMonth)&" "&VALUE((LEFT(dms_CRCP_FinalYear_Result,2))&RIGHT(dms_CRCP_FinalYear_Result,2)))
B64: Form of control | C64: =INDEX(dms_FormControl_List,MATCH(dms_TradingName,dms_TradingName_List)) -> Revenue cap | D64: dms_FormControl | E64: =INDEX(dms_FormControl_List,MATCH(dms_TradingName,dms_TradingName_List))
B65: RIN response - version no. | C65: 1 | D65: dms_RINversion
B66: Jurisdiction | C66: =INDEX(dms_JurisdictionList,MATCH(dms_TradingName,dms_TradingName_List)) -> SA | D66: dms_Jurisdiction | E66: =INDEX(dms_JurisdictionList,MATCH(dms_TradingName,dms_TradingName_List))
B67: Backcast Multiyear EB, CA or ARR? | C67: 0 | D67: dms_MultiYear_Flag | E67: 1=y, 0-n
C68: 2013 | D68: dms_Specified_FinalYear | E68: The result here is returned to dms_CRCP_FinalYear_Result if dms_MultiYear_Flag is set to 1
B69: Single Year Model T/F | C69: =IF(dms_Model="EB",1,0) -> 0 | D69: dms_EB
C70: =IF(dms_Model="CA",1,0) -> 1 | D70: dms_CA | E70: =dms_SingleYear_Model
C71: =IF(dms_Model="ARR",1,0) -> 0 | D71: dms_ARR
B72: Single Year Final Year Reference | C72: CRY | D72: dms_SingleYear_FinalYear_Ref | E72: This is the reference for EB, CA & ARR RINs
B73: Single Year Final Year Result | C73: =INDIRECT(dms_SingleYear_FinalYear_Ref) -> 2015-16 | D73: dms_SingleYear_FinalYear_Result | E73: =INDIRECT(dms_SingleYear_FinalYear_Ref) | I73: Formula errors OK
B74: FRCP length in years | C74: =INDEX(dms_FRCPlength_List,MATCH(dms_TradingName,dms_TradingName_List)) -> 5 | D74: dms_FRCPlength_Num | E74: =INDEX(dms_FRCPlength_List,MATCH(dms_TradingName,dms_TradingName_List))
B75: Multi Year Final Year Reference | C75: =INDEX(dms_FinalYear_List,MATCH(dms_FRCPlength_Num,dms_FRCPlength_Num_List)) -> dms_FRCP_y5 | D75: dms_MultiYear_FinalYear_Ref | E75: =INDEX(dms_FinalYear_List,MATCH(dms_FRCPlength_Num,dms_FRCPlength_Num_List))
B76: Multi Year Final Year Result | C76: =IF(dms_MultiYear_Flag=0,INDIRECT(dms_MultiYear_FinalYear_Ref),dms_Specified_FinalYear) -> 2019-20 | D76: dms_MultiYear_FinalYear_Result | E76: =IF(dms_MultiYear_Flag=0,INDIRECT(dms_MultiYear_FinalYear_Ref),dms_Specified_FinalYear) | I76: Formula errors OK
B77: CRCP length in years | C77: =INDEX(dms_CRCPlength_List,MATCH(dms_TradingName,dms_TradingName_List)) -> 5 | D77: dms_CRCPlength_Num | E77: =INDEX(dms_CRCPlength_List,MATCH(dms_TradingName,dms_TradingName_List))
B78: CRCP Final Year Reference | C78: =INDEX(dms_CFinalYear_List,MATCH(dms_CRCPlength_Num,dms_CRCPlength_Num_List)) -> CRCP_y5 | D78: dms_CRCP_FinalYear_Ref | E78: =INDEX(dms_CFinalYear_List,MATCH(dms_CRCPlength_Num,dms_CRCPlength_Num_List))
B79: CRCP First Year Result | C79: =INDEX(dms_CRCP_years,MATCH(dms_CRCPlength_Num,dms_CRCP_index)) -> 2010-11 | D79: dms_CRCP_FirstYear_Result | E79: =INDEX(dms_CRCP_years,MATCH(dms_CRCPlength_Num,dms_CRCP_index))
B80: CRCP Final Year Result | C80: =IF(dms_MultiYear_Flag=0,(IF(SUM(dms_SingleYear_Model)>0,CRY,dms_CRCP_yZ)),dms_Specified_FinalYear) -> 2015-16 | D80: dms_CRCP_FinalYear_Result | E80: =IF(dms_MultiYear_Flag=0,(IF(SUM(dms_SingleYear_Model)>0,CRY,dms_CRCP_yZ)),dms_Specified_FinalYear)
B81: Table 6.6.3 - Public lighting repair - no. business days | C81: =INDEX(dms_663_List,MATCH(dms_TradingName,dms_TradingName_List)) -> 5 | D81: dms_663
B82: Distribution Determination Reference | C82: =INDEX(dms_DeterminationRef_List,MATCH(dms_TradingName,dms_TradingName_List)) -> transmission determination
B83: Backcast templates only - unit of measure | C83: $0s | D83: dms_Backcast_UOM | E83: If the cover sheet is for Backcast data ensure to apply dms_Backcast_UOM named range to this field. Otherwise, do not apply this named range.
B84: EB/CA Unit of Measure for Monetary Values | C84: $0s | D84: dms_dollar_nom_UOM | E84: If the cover sheet is attached to an EB files make sure this field is set
B86: discard this record? | C86: NO | D86: dms_DISCARD | E86: If record is to be discarded from DB set this flag to YES
B88: USES NAMED RANGES FLAG | C88: yes | D88: dms_Defined_Names_Used

Sheet 2.1 Expenditure summary
B1: REGULATORY REPORTING STATEMENT
B2: =INDEX(dms_TradingNameFull_List,MATCH(dms_TradingName,dms_TradingName_List)) -> ElectraNet
B3: =CONCATENATE((LOOKUP(dms_Model,dms_Model_List,dms_Worksheet_List))&" "&CRY) -> CATEGORY ANALYSIS 2015-16
B4: 2.1 EXPENDITURE SUMMARY AND RECONCILIATION
B6: There are TWO tables on this worksheet. Each has been grouped for ease of navigation. See the Instructions sheet on how to group or ungroup tables.
B8: 2.1.1 - PRESCRIBED TRANSMISSION SERVICES CAPEX (as incurred)
C9: Actual ($0's)
C10: =CRY -> 2015-16
B11: Replacement expenditure | C11: =(101093.048130289)*1000 -> 101093048.1
B12: Connections | C12: =(2257.95125672975)*1000 -> 2257951.257
B13: Augmentation Expenditure | C13: =(46919.8658968751)*1000 -> 46919865.9
B14: Non-network | C14: =(7118.80672653694)*1000 -> 7118806.727
B15: Capitalised network overheads | C15: =(9475.63799327797)*1000 -> 9475637.993
B16: Capitalised corporate overheads | C16: =(263.677824266802)*1000 -> 263677.8243
B32: balancing item | C32: =(-780.161397825022)*1000 -> -780161.3978
B33: TOTAL CAPEX | C33: =+SUM(C11:C32) -> 166348826.4
B35: 2.1.2 - PRESCRIBED TRANSMISSION SERVICE OPEX
C36: Actual ($0's)
C37: =CRY -> 2015-16
B38: Vegetation management | C38: =(2163.45135413998)*1000 -> 2163451.354
B39: Maintenance | C39: =(41050.9878299999)*1000 -> 41050987.83
B40: Non-network | C40: =(8264.35942)*1000 -> 8264359.42
B41: Network overheads | C41: =(24956.5451283102)*1000 -> 24956545.13
B42: Corporate overheads | C42: =(20389.00741542)*1000 -> 20389007.42
B58: balancing item | C58: =(-12122.3511478702)*1000 -> -12122351.15
B59: TOTAL OPEX | C59: =SUM(C38:C58) -> 84702000

Sheet 2.2 Repex
B1: REGULATORY REPORTING STATEMENT
B2: =INDEX(dms_TradingNameFull_List,MATCH(dms_TradingName,dms_TradingName_List)) -> ElectraNet
B3: =CONCATENATE((LOOKUP(dms_Model,dms_Model_List,dms_Worksheet_List))&" "&CRY) -> CATEGORY ANALYSIS 2015-16
B4: 2.2 REPEX
B6: There are TWO tables (with three sub-tables each) on this worksheet. Each table has been grouped (and sub-grouped) for ease of navigation. See the Instructions sheet on how to group or ungroup data.
B8: 2.2.1 - REPLACEMENT EXPENDITURE, VOLUMES AND ASSET FAILURES BY ASSET CATEGORY
D9: EXPENDITURE ($0's) | E9: ASSET REPLACEMENTS | F9: ASSET FAILURES
B10: ASSET GROUP | C10: ASSET CATEGORY | D10: =CRY -> 2015-16 | E10: =CRY -> 2015-16 | F10: =CRY -> 2015-16
B11: TRANSMISSION TOWERS Highest operating voltage; Circuit configuration | C11: < = 33 kV ; Single Circuit | D11: 0 | E11: 0 | F11: 0
C12: > 33 kV & < = 66 kV ; Single Circuit | D12: 0 | E12: 0 | F12: 0
C13: > 66 kV & < = 132 kV ; Single Circuit | D13: 0 | E13: 0 | F13: 0
C14: > 132 kV & < = 275 kV ; Single Circuit | D14: 0 | E14: 0 | F14: 0
C15: > 275 kV & < = 330 kV ; Single Circuit | D15: 0 | E15: 0 | F15: 0
C16: > 330 kV & < = 500 kV ; Single Circuit | D16: 0 | E16: 0 | F16: 0
C17: > 500 kV ; Single Circuit | D17: 0 | E17: 0 | F17: 0
C18: < = 33 kV ; Multiple Circuit | D18: 0 | E18: 0 | F18: 0
C19: > 33 kV & < = 66 kV ; Multiple Circuit | D19: 0 | E19: 0 | F19: 0
C20: > 66 kV & < = 132 kV ; Multiple Circuit | D20: 0 | E20: 0 | F20: 0
C21: > 132 kV & < = 275 kV ; Multiple Circuit | D21: 0 | E21: 0 | F21: 0
C22: > 275 kV & < = 330 kV ; Multiple Circuit | D22: 0 | E22: 0 | F22: 0
C23: > 330 kV & < = 500 kV ; Multiple Circuit | D23: 0 | E23: 0 | F23: 0
C24: > 500 kV ; Multiple Circuit | D24: 0 | E24: 0 | F24: 0
C25: Other | D25: 0 | E25: 0 | F25: 0
B26: TRANSMISSION TOWER SUPPORT STRUCTURES BY: Highest operating voltage; Circuit configuration | C26: < = 33 kV ; Single Circuit | D26: 0 | E26: 0 | F26: 0
C27: > 33 kV & < = 66 kV ; Single Circuit | D27: 0 | E27: 0 | F27: 0
C28: > 66 kV & < = 132 kV ; Single Circuit | D28: 0 | E28: 0 | F28: 0
C29: > 132 kV & < = 275 kV ; Single Circuit | D29: 0 | E29: 0 | F29: 0
C30: > 275 kV & < = 330 kV ; Single Circuit | D30: 0 | E30: 0 | F30: 0
C31: > 330 kV & < = 500 kV ; Single Circuit | D31: 0 | E31: 0 | F31: 0
C32: > 500 kV ; Single Circuit | D32: 0 | E32: 0 | F32: 0
C33: < = 33 kV ; Multiple Circuit | D33: 0 | E33: 0 | F33: 0
C34: > 33 kV & < = 66 kV ; Multiple Circuit | D34: 0 | E34: 0 | F34: 0
C35: > 66 kV & < = 132 kV ; Multiple Circuit | D35: 0 | E35: 0 | F35: 0
C36: > 132 kV & < = 275 kV ; Multiple Circuit | D36: 0 | E36: 0 | F36: 0
C37: > 275 kV & < = 330 kV ; Multiple Circuit | D37: 0 | E37: 0 | F37: 0
C38: > 330 kV & < = 500 kV ; Multiple Circuit | D38: 0 | E38: 0 | F38: 0
C39: > 500 kV ; Multiple Circuit | D39: 0 | E39: 0 | F39: 0
C40: Other | D40: 0 | E40: 0 | F40: 0
B41: CONDUCTORS BY: Voltage; Maximum continuous rating | C41: < = 33 kV ; < = 100 MVA | D41: 0 | E41: 0 | F41: 0
C42: < = 33 kV ; > 100 MVA & < = 400 MVA | D42: 0 | E42: 0 | F42: 0
C43: < = 33 kV ; > 400 MVA | D43: 0 | E43: 0 | F43: 0
C44: > 33 kV & < = 66 kV ; < = 100 MVA | D44: 0 | E44: 0 | F44: 0
C45: > 33 kV & < = 66 kV ; > 100 MVA & < = 400 MVA | D45: 0 | E45: 0 | F45: 0
C46: > 33 kV & < = 66 kV ; > 400 MVA | D46: 0 | E46: 0 | F46: 0
C47: > 66 kV & < = 132 kV ; < = 100 MVA | D47: 0 | E47: 0 | F47: 0
C48: > 66 kV & < = 132 kV ; > 100 MVA & < = 400 MVA | D48: 0 | E48: 0 | F48: 0
C49: > 66 kV & < = 132 kV ; > 400 MVA | D49: 0 | E49: 0 | F49: 0
C50: > 132 kV & < = 275 kV ; < = 200 MVA | D50: 0 | E50: 0 | F50: 0
C51: > 132 kV & < = 275 kV ; > 200 MVA & < = 600 MVA | D51: 0 | E51: 0 | F51: 0
C52: > 132 kV & < = 275 kV ; > 600 MVA | D52: 0 | E52: 0 | F52: 0
C53: > 275 kV & < = 330 kV ; < = 800 MVA | D53: 0 | E53: 0 | F53: 0
C54: > 275 kV & < = 330 kV ; > 800 MVA & < = 1200 MVA | D54: 0 | E54: 0 | F54: 0
C55: > 275 kV & < = 330 kV ; > 1200 MVA | D55: 0 | E55: 0 | F55: 0
C56: > 330 kV & < = 500 kV ; < = 1000 MVA | D56: 0 | E56: 0 | F56: 0
C57: > 330 kV & < = 500 kV ; > 1000 MVA & < = 1500 MVA | D57: 0 | E57: 0 | F57: 0
C58: > 330 kV & < = 500 kV ; > 1500 MVA | D58: 0 | E58: 0 | F58: 0
C59: > 500 kV ; < = 2000 MVA | D59: 0 | E59: 0 | F59: 0
C60: > 500 kV ; > 2000 MVA & < = 3000 MVA | D60: 0 | E60: 0 | F60: 0
C61: > 500 kV ; > 3000 MVA | D61: 0 | E61: 0 | F61: 0
C62: Other | D62: 0 | E62: 0 | F62: 0
B63: TRANSMISSION CABLES BY: Highest operating voltage; Insulation type | C63: < = 33 kV ; Oil Filled | D63: 0 | E63: 0 | F63: 0
C64: > 33 kV & < = 66 kV ; Oil Filled | D64: 0 | E64: 0 | F64: 0
C65: > 66 kV & < = 132 kV ; Oil Filled | D65: 0 | E65: 0 | F65: 0
C66: > 132 kV & < = 275 kV ; Oil Filled | D66: 0 | E66: 0 | F66: 0
C67: > 275 kV & < = 330 kV ; Oil Filled | D67: 0 | E67: 0 | F67: 0
C68: > 330 kV & < = 500 kV ; Oil Filled | D68: 0 | E68: 0 | F68: 0
C69: > 500 kV ; Oil Filled | D69: 0 | E69: 0 | F69: 0
C70: < = 33 kV ; XLPE Insulated | D70: 0 | E70: 0 | F70: 0
C71: > 33 kV & < = 66 kV ; XLPE Insulated | D71: 0 | E71: 0 | F71: 0
C72: > 66 kV & < = 132 kV ; XLPE Insulated | D72: 0 | E72: 0 | F72: 0
C73: > 132 kV & < = 275 kV ; XLPE Insulated | D73: 0 | E73: 0 | F73: 0
C74: > 275 kV & < = 330 kV ; XLPE Insulated | D74: 0 | E74: 0 | F74: 0
C75: > 330 kV & < = 500 kV ; XLPE Insulated | D75: 0 | E75: 0 | F75: 0
C76: > 500 kV ; XLPE Insulated | D76: 0 | E76: 0 | F76: 0
C77: < = 33 kV ; Other Insulated | D77: 0 | E77: 0 | F77: 0
C78: > 33 kV & < = 66 kV ; Other Insulated | D78: 0 | E78: 0 | F78: 0
C79: > 66 kV & < = 132 kV ; Other Insulated | D79: 0 | E79: 0 | F79: 0
C80: > 132 kV & < = 275 kV ; Other Insulated | D80: 0 | E80: 0 | F80: 0
C81: > 275 kV & < = 330 kV ; Other Insulated | D81: 0 | E81: 0 | F81: 0
C82: > 330 kV & < = 500 kV ; Other Insulated | D82: 0 | E82: 0 | F82: 0
C83: > 500 kV ; Other Insulated | D83: 0 | E83: 0 | F83: 0
C84: Other | D84: 0 | E84: 0 | F84: 0
B85: SUBSTATION SWITCHBAYS BY: Highest operating voltage; Switch type | C85: < = 33 kV ; Air Insulated circuit Breaker | D85: 0 | E85: 0 | F85: 0
C86: > 33 kV & < = 66 kV ; Air Insulated circuit Breaker | D86: 0 | E86: 0 | F86: 0
C87: > 66 kV & < = 132 kV ; Air Insulated circuit Breaker | D87: =(239.514)*1000 -> 239514 | E87: 2 | F87: 0
C88: > 132 kV & < = 275 kV ; Air Insulated circuit Breaker | D88: =(0)*1000 -> 0 | E88: 0 | F88: 0
C89: > 275 kV & < = 330 kV ; Air Insulated circuit Breaker | D89: =(0)*1000 -> 0 | E89: 0 | F89: 0
C90: > 330 kV & < = 500 kV ; Air Insulated circuit Breaker | D90: =(0)*1000 -> 0 | E90: 0 | F90: 0
C91: > 500 kV ; Air Insulated circuit Breaker | D91: =(0)*1000 -> 0 | E91: 0 | F91: 0
C92: < = 33 kV ; Air Insulated Isolators / Earth Switch | D92: =(23.702)*1000 -> 23702 | E92: 1 | F92: 0
C93: > 33 kV & < = 66 kV ; Air Insulated Isolators / Earth Switch | D93: =(0)*1000 -> 0 | E93: 0 | F93: 0
C94: > 66 kV & < = 132 kV ; Air Insulated Isolators / Earth Switch | D94: =(137.593)*1000 -> 137593 | E94: 2 | F94: 0
C95: > 132 kV & < = 275 kV ; Air Insulated Isolators / Earth Switch | D95: =(0)*1000 -> 0 | E95: 0 | F95: 0
C96: > 275 kV & < = 330 kV ; Air Insulated Isolators / Earth Switch | D96: =(0)*1000 -> 0 | E96: 0 | F96: 0
C97: > 330 kV & < = 500 kV ; Air Insulated Isolators / Earth Switch | D97: =(0)*1000 -> 0 | E97: 0 | F97: 0
C98: > 500 kV ; Air Insulated Isolators / Earth Switch | D98: =(0)*1000 -> 0 | E98: 0 | F98: 0
C99: < = 33 kV ; VT | D99: =(409.635)*1000 -> 409635 | E99: 2 | F99: 0
C100: > 33 kV & < = 66 kV ; VT | D100: =(0)*1000 -> 0 | E100: 0 | F100: 0
C101: > 66 kV & < = 132 kV ; VT | D101: 0 | E101: 0 | F101: 0
C102: > 132 kV & < = 275 kV ; VT | D102: 0 | E102: 0 | F102: 0
C103: > 275 kV & < = 330 kV ; VT | D103: 0 | E103: 0 | F103: 0
C104: > 330 kV & < = 500 kV ; VT | D104: 0 | E104: 0 | F104: 0
C105: > 500 kV ; VT | D105: 0 | E105: 0 | F105: 0
C106: < = 33 kV ; CT | D106: =(305.673)*1000 -> 305673 | E106: 2 | F106: 0
C107: > 33 kV & < = 66 kV ; CT | D107: =(0)*1000 -> 0 | E107: 0 | F107: 0
C108: > 66 kV & < = 132 kV ; CT | D108: =(341.432)*1000 -> 341432 | E108: 2 | F108: 0
C109: > 132 kV & < = 275 kV ; CT | D109: =(0)*1000 -> 0 | E109: 0 | F109: 0
C110: > 275 kV & < = 330 kV ; CT | D110: 0 | E110: 0 | F110: 0
C111: > 330 kV & < = 500 kV ; CT | D111: 0 | E111: 0 | F111: 0
C112: > 500 kV ; CT | D112: 0 | E112: 0 | F112: 0
C113: < = 33 kV ; GIS Module | D113: 0 | E113: 0 | F113: 0
C114: > 33 kV & < = 66 kV ; GIS Module | D114: 0 | E114: 0 | F114: 0
C115: > 66 kV & < = 132 kV ; GIS Module | D115: 0 | E115: 0 | F115: 0
C116: > 132 kV & < = 275 kV ; GIS Module | D116: 0 | E116: 0 | F116: 0
C117: > 275 kV & < = 330 kV ; GIS Module | D117: 0 | E117: 0 | F117: 0
C118: > 330 kV & < = 500 kV ; GIS Module | D118: 0 | E118: 0 | F118: 0
C119: > 500 kV ; GIS Module | D119: 0 | E119: 0 | F119: 0
C120: Other | D120: 0 | E120: 0 | F120: 0
B121: SUBSTATION POWER TRANSFORMERS BY: Highest operating voltage; Ampere rating | C121: < = 33 kV ; < = 10 MVA | D121: 0 | E121: 0 | F121: 0
C122: < = 33 kV ; > 10 MVA & < = 30 MVA | D122: 0 | E122: 0 | F122: 0
C123: < = 33 kV ; > 30 MVA | D123: 0 | E123: 0 | F123: 0
C124: > 33 kV & < = 66 kV ; < = 10 MVA | D124: 0 | E124: 0 | F124: 0
C125: > 33 kV & < = 66 kV ; > 10 MVA & < = 30 MVA | D125: 0 | E125: 0 | F125: 0
C126: > 33 kV & < = 66 kV ; > 30 MVA | D126: 0 | E126: 0 | F126: 0
C127: > 66 kV & < = 132 kV ; < = 30 MVA | D127: =(2908.311)*1000 -> 2908311 | E127: 2 | F127: 0
C128: > 66 kV & < = 132 kV ; > 30 MVA & < = 60 MVA | D128: =(0)*1000 -> 0 | E128: 0 | F128: 0
C129: > 66 kV & < = 132 kV ; > 60 MVA | D129: 0 | E129: 0 | F129: 0
C130: > 132 kV & < = 220 kV ; < = 50 MVA | D130: 0 | E130: 0 | F130: 0
C131: > 132 kV & < = 220 kV ; > 50 MVA & < = 100 MVA | D131: 0 | E131: 0 | F131: 0
C132: > 132 kV & < = 220 kV ; > 100 MVA | D132: 0 | E132: 0 | F132: 0
C133: > 220 kV & < = 275 kV ; < = 50 MVA | D133: 0 | E133: 0 | F133: 0
C134: > 220 kV & < = 275 kV ; > 50 MVA & < = 100 MVA | D134: 0 | E134: 0 | F134: 0
C135: > 220 kV & < = 275 kV ; > 100 MVA | D135: 0 | E135: 0 | F135: 0
C136: > 275 kV & < = 330 kV ; < = 100 MVA | D136: 0 | E136: 0 | F136: 0
C137: > 275 kV & < = 330 kV ; > 100 MVA & < = 250 MVA | D137: 0 | E137: 0 | F137: 0
C138: > 275 kV & < = 330 kV ; > 250 MVA | D138: 0 | E138: 0 | F138: 0
C139: > 330 kV & < = 500 kV ; < = 150 MVA | D139: 0 | E139: 0 | F139: 0
C140: > 330 kV & < = 500 kV ; > 150 MVA & < = 300 MVA | D140: 0 | E140: 0 | F140: 0
C141: > 330 kV & < = 500 kV ; > 300 MVA | D141: 0 | E141: 0 | F141: 0
C142: > 500 kV ; < = 1000 MVA | D142: 0 | E142: 0 | F142: 0
C143: > 500 kV ; > 1000 MVA & < = 1500 MVA | D143: 0 | E143: 0 | F143: 0
C144: > 500 kV ; > 1500 MVA | D144: 0 | E144: 0 | F144: 0
C145: Other | D145: 0 | E145: 0 | F145: 0
B146: SUBSTATION REACTIVE PLANT BY: Highest operating voltage; Function | C146: < = 33 kV ; SVCS | D146: 0 | E146: 0 | F146: 0
C147: > 33 kV & < = 66 kV ; SVCS | D147: 0 | E147: 0 | F147: 0
C148: > 66 kV & < = 132 kV ; SVCS | D148: 0 | E148: 0 | F148: 0
C149: > 132 kV & < = 275 kV ; SVCS | D149: 0 | E149: 0 | F149: 0
C150: > 275 kV & < = 330 kV ; SVCS | D150: 0 | E150: 0 | F150: 0
C151: > 330 kV & < = 500 kV ; SVCS | D151: 0 | E151: 0 | F151: 0
C152: > 500 kV ; SVCS | D152: 0 | E152: 0 | F152: 0
C153: < = 33 kV ; Capacitors | D153: 0 | E153: 0 | F153: 0
C154: > 33 kV & < = 66 kV ; Capacitors | D154: 0 | E154: 0 | F154: 0
C155: > 66 kV & < = 132 kV ; Capacitors | D155: 0 | E155: 0 | F155: 0
C156: > 132 kV & < = 275 kV ; Capacitors | D156: 0 | E156: 0 | F156: 0
C157: > 275 kV & < = 330 kV ; Capacitors | D157: 0 | E157: 0 | F157: 0
C158: > 330 kV & < = 500 kV ; Capacitors | D158: 0 | E158: 0 | F158: 0
C159: > 500 kV ; Capacitors | D159: 0 | E159: 0 | F159: 0
C160: < = 33 kV ; Oil Filled Reactors | D160: 0 | E160: 0 | F160: 0
C161: > 33 kV & < = 66 kV ; Oil Filled Reactors | D161: 0 | E161: 0 | F161: 0
C162: > 66 kV & < = 132 kV ; Oil Filled Reactors | D162: 0 | E162: 0 | F162: 0
C163: > 132 kV & < = 275 kV ; Oil Filled Reactors | D163: 0 | E163: 0 | F163: 0
C164: > 275 kV & < = 330 kV ; Oil Filled Reactors | D164: 0 | E164: 0 | F164: 0
C165: > 330 kV & < = 500 kV ; Oil Filled Reactors | D165: 0 | E165: 0 | F165: 0
C166: > 500 kV ; Oil Filled Reactors | D166: 0 | E166: 0 | F166: 0
C167: Other | D167: 0 | E167: 0 | F167: 0
B168: SCADA, NETWORK CONTROL AND PROTECTION SYSTEMS BY: Function | C168: Communications Network Assets
C169: Master Station Assets
C170: Control equipment / systems
C171: Infrastructure: protection and control
C172: Metering systems
C173: OPGW
C174: Protection schemes / systems
C175: Site establishment | D175: =(8713.47636939513)*1000 -> 8713476.369
C176: Station SCADA and control systems
C177: Telecommunications Network / Systems
C178: Total secondary systems | D178: =(2711.81005642879)*1000 -> 2711810.056
C179: Other | D179: =(895.181)*1000 -> 895181
B180: OTHER BY: TNSP defined | C180: Telecommunications | D180: =(8205.11945045816)*1000 -> 8205119.45
B211: 2.2.2 - SELECTED ASSET CHARACTERISTICS
D212: ASSET VOLUMES CURRENTLY IN COMMISSION | E212: ASSET REPLACEMENTS
B213: ASSET GROUP | C213: ASSET CATEGORY | D213: =CRY -> 2015-16 | E213: =CRY -> 2015-16
B214: CONDUCTORS BY: CONDUCTOR LENGTH MATERIAL TYPE | C214: AAAC | D214: 46.103072 | E214: 0
C215: AAC | D215: 0.8 | E215: 0
C216: ACAR | D216: 0 | E216: 0
C217: ACSR | D217: 5395 | E217: 0
C218: HD Cu | D218: 36.689 | E218: 0
C219: Unknown | D219: 18.3 | E219: 0
B247: SUBSTATION REACTIVE PLANT BY: REACTIVE CAPACITY | C247: Total MVAr by SVCs | D247: 320 | E247: 0
C248: Total MVAr by Capacitors | D248: 1110.6 | E248: 0
C249: Total MVAr by Oil Filled Reactors | D249: 364.8 | E249: 0

Sheet 2.3 Augex
B1: REGULATORY REPORTING STATEMENT
B2: =INDEX(dms_TradingNameFull_List,MATCH(dms_TradingName,dms_TradingName_List)) -> ElectraNet
B3: =CONCATENATE((LOOKUP(dms_Model,dms_Model_List,dms_Worksheet_List))&" "&CRY) -> CATEGORY ANALYSIS 2015-16
B4: 2.3 AUGEX PROJECTS
B6: There are THREE tables on this worksheet - each has been 'grouped' for easy navigation. Both ROWS and COLUMNS have been grouped. See the Instructions sheet on how to group or ungroup tables.
B8: 2.3.1 - AUGEX ASSET DATA - SUBSTATIONS
B9: NOTE: TNSP MUST PROVIDE EXPENDITURE INFORMATION ON A PROJECT CLOSE BASIS.
B10: SUBSTATION AND PROJECT SUMMARY | L10: PLANT AND EQUIPMENT EXPENDITURE AND VOLUME | Z10: OTHER EXPENDITURE | AB10: TOTAL DIRECT EXPENDITURE ($0's) | AC10: YEARS INCURRED | AD10: RELATED PARTY CONTRACTS | AG10: LAND AND EASEMENTS
B11: SUBSTATION ID | C11: SUBSTATION TYPE | D11: PROJECT ID | E11: PROJECT TYPE | F11: PROJECT TRIGGER | G11: VOLTAGE (KV) | H11: SUBSTATION RATING NORMAL CYCLIC (MVA) | J11: SUBSTATION RATING N-1 EMERGENCY (MVA) | L11: TRANSFORMERS | P11: SWITCHGEAR | S11: REACTIVE PLANT | W11: OTHER PLANT ITEM | X11: INSTALLATION (LABOUR) | Z11: CIVIL WORKS | AA11: OTHER DIRECT | AD11: RELATED PARTY MARGINS | AE11: TOTAL | AF11: ALL NON RELATED PARTYCONTRACTS | AG11: LAND PURCHASES | AH11: EASEMENTS | AI11: Comments
H12: PRE | I12: POST | J12: PRE | K12: POST | L12: Units Added | M12: MVA Added | N12: OLTC INCLUDED? | O12: Expenditure ($0's) | P12: Insulation | Q12: Units Added | R12: Expenditure ($0's) | S12: Plant Type | T12: Units Added | U12: Expenditure ($0's) | W12: Expenditure ($0's) | X12: Volume | Y12: Expenditure ($0's) | Z12: Expenditure ($0's) | AD12: Expenditure ($0's) | AG12: Expenditure ($0's)
B13: <Enter substation ID>
B20: Project Totals | L20: =SUM(L13:L19) -> 0 | M20: =SUM(M13:M19) -> 0 | O20: =SUM(O13:O19) -> 0 | Q20: =SUM(Q13:Q19) -> 0 | R20: =SUM(R13:R19) -> 0 | T20: =SUM(T13:T19) -> 0 | U20: =SUM(U13:U19) -> 0 | W20: =SUM(W13:W19) -> 0 | X20: =SUM(X13:X19) -> 0 | Y20: =SUM(Y13:Y19) -> 0 | Z20: =SUM(Z13) -> 0 | AA20: =SUM(AA13) -> 0 | AB20: =O20+R20+U20+W20+SUM(Y20:AA20) -> 0 | AD20: =SUM(AD13) -> 0 | AE20: =SUM(AE13) -> 0 | AF20: =SUM(AF13) -> 0 | AG20: =SUM(AG13) -> 0 | AH20: =SUM(AH13) -> 0
B21: <Enter substation ID>
B28: Project Totals | L28: =SUM(L21:L27) -> 0 | M28: =SUM(M21:M27) -> 0 | O28: =SUM(O21:O27) -> 0 | Q28: =SUM(Q21:Q27) -> 0 | R28: =SUM(R21:R27) -> 0 | T28: =SUM(T21:T27) -> 0 | U28: =SUM(U21:U27) -> 0 | W28: =SUM(W21:W27) -> 0 | X28: =SUM(X21:X27) -> 0 | Y28: =SUM(Y21:Y27) -> 0 | Z28: =SUM(Z21) -> 0 | AA28: =SUM(AA21) -> 0 | AB28: =O28+R28+U28+W28+SUM(Y28:AA28) -> 0 | AD28: =SUM(AD21) -> 0 | AE28: =SUM(AE21) -> 0 | AF28: =SUM(AF21) -> 0 | AG28: =SUM(AG21) -> 0 | AH28: =SUM(AH21) -> 0
B29: <Enter substation ID>
B36: Project Totals | L36: =SUM(L29:L35) -> 0 | M36: =SUM(M29:M35) -> 0 | O36: =SUM(O29:O35) -> 0 | Q36: =SUM(Q29:Q35) -> 0 | R36: =SUM(R29:R35) -> 0 | T36: =SUM(T29:T35) -> 0 | U36: =SUM(U29:U35) -> 0 | W36: =SUM(W29:W35) -> 0 | X36: =SUM(X29:X35) -> 0 | Y36: =SUM(Y29:Y35) -> 0 | Z36: =SUM(Z29) -> 0 | AA36: =SUM(AA29) -> 0 | AB36: =O36+R36+U36+W36+SUM(Y36:AA36) -> 0 | AD36: =SUM(AD29) -> 0 | AE36: =SUM(AE29) -> 0 | AF36: =SUM(AF29) -> 0 | AG36: =SUM(AG29) -> 0 | AH36: =SUM(AH29) -> 0
B37: <Enter substation ID>
B44: Project Totals | L44: =SUM(L37:L43) -> 0 | M44: =SUM(M37:M43) -> 0 | O44: =SUM(O37:O43) -> 0 | Q44: =SUM(Q37:Q43) -> 0 | R44: =SUM(R37:R43) -> 0 | T44: =SUM(T37:T43) -> 0 | U44: =SUM(U37:U43) -> 0 | W44: =SUM(W37:W43) -> 0 | X44: =SUM(X37:X43) -> 0 | Y44: =SUM(Y37:Y43) -> 0 | Z44: =SUM(Z37) -> 0 | AA44: =SUM(AA37) -> 0 | AB44: =O44+R44+U44+W44+SUM(Y44:AA44) -> 0 | AD44: =SUM(AD37) -> 0 | AE44: =SUM(AE37) -> 0 | AF44: =SUM(AF37) -> 0 | AG44: =SUM(AG37) -> 0 | AH44: =SUM(AH37) -> 0
B45: <Enter substation ID>
B52: Project Totals | L52: =SUM(L45:L51) -> 0 | M52: =SUM(M45:M51) -> 0 | O52: =SUM(O45:O51) -> 0 | Q52: =SUM(Q45:Q51) -> 0 | R52: =SUM(R45:R51) -> 0 | T52: =SUM(T45:T51) -> 0 | U52: =SUM(U45:U51) -> 0 | W52: =SUM(W45:W51) -> 0 | X52: =SUM(X45:X51) -> 0 | Y52: =SUM(Y45:Y51) -> 0 | Z52: =SUM(Z45) -> 0 | AA52: =SUM(AA45) -> 0 | AB52: =O52+R52+U52+W52+SUM(Y52:AA52) -> 0 | AD52: =SUM(AD45) -> 0 | AE52: =SUM(AE45) -> 0 | AF52: =SUM(AF45) -> 0 | AG52: =SUM(AG45) -> 0 | AH52: =SUM(AH45) -> 0
B53: <Enter substation ID>
B60: Project Totals | L60: =SUM(L53:L59) -> 0 | M60: =SUM(M53:M59) -> 0 | O60: =SUM(O53:O59) -> 0 | Q60: =SUM(Q53:Q59) -> 0 | R60: =SUM(R53:R59) -> 0 | T60: =SUM(T53:T59) -> 0 | U60: =SUM(U53:U59) -> 0 | W60: =SUM(W53:W59) -> 0 | X60: =SUM(X53:X59) -> 0 | Y60: =SUM(Y53:Y59) -> 0 | Z60: =SUM(Z53) -> 0 | AA60: =SUM(AA53) -> 0 | AB60: =O60+R60+U60+W60+SUM(Y60:AA60) -> 0 | AD60: =SUM(AD53) -> 0 | AE60: =SUM(AE53) -> 0 | AF60: =SUM(AF53) -> 0 | AG60: =SUM(AG53) -> 0 | AH60: =SUM(AH53) -> 0
B61: <Enter substation ID>
B68: Project Totals | L68: =SUM(L61:L67) -> 0 | M68: =SUM(M61:M67) -> 0 | O68: =SUM(O61:O67) -> 0 | Q68: =SUM(Q61:Q67) -> 0 | R68: =SUM(R61:R67) -> 0 | T68: =SUM(T61:T67) -> 0 | U68: =SUM(U61:U67) -> 0 | W68: =SUM(W61:W67) -> 0 | X68: =SUM(X61:X67) -> 0 | Y68: =SUM(Y61:Y67) -> 0 | Z68: =SUM(Z61) -> 0 | AA68: =SUM(AA61) -> 0 | AB68: =O68+R68+U68+W68+SUM(Y68:AA68) -> 0 | AD68: =SUM(AD61) -> 0 | AE68: =SUM(AE61) -> 0 | AF68: =SUM(AF61) -> 0 | AG68: =SUM(AG61) -> 0 | AH68: =SUM(AH61) -> 0
B69: <Enter substation ID>
B76: Project Totals | L76: =SUM(L69:L75) -> 0 | M76: =SUM(M69:M75) -> 0 | O76: =SUM(O69:O75) -> 0 | Q76: =SUM(Q69:Q75) -> 0 | R76: =SUM(R69:R75) -> 0 | T76: =SUM(T69:T75) -> 0 | U76: =SUM(U69:U75) -> 0 | W76: =SUM(W69:W75) -> 0 | X76: =SUM(X69:X75) -> 0 | Y76: =SUM(Y69:Y75) -> 0 | Z76: =SUM(Z69) -> 0 | AA76: =SUM(AA69) -> 0 | AB76: =O76+R76+U76+W76+SUM(Y76:AA76) -> 0 | AD76: =SUM(AD69) -> 0 | AE76: =SUM(AE69) -> 0 | AF76: =SUM(AF69) -> 0 | AG76: =SUM(AG69) -> 0 | AH76: =SUM(AH69) -> 0
B77: <Enter substation ID>
B84: Project Totals | L84: =SUM(L77:L83) -> 0 | M84: =SUM(M77:M83) -> 0 | O84: =SUM(O77:O83) -> 0 | Q84: =SUM(Q77:Q83) -> 0 | R84: =SUM(R77:R83) -> 0 | T84: =SUM(T77:T83) -> 0 | U84: =SUM(U77:U83) -> 0 | W84: =SUM(W77:W83) -> 0 | X84: =SUM(X77:X83) -> 0 | Y84: =SUM(Y77:Y83) -> 0 | Z84: =SUM(Z77) -> 0 | AA84: =SUM(AA77) -> 0 | AB84: =O84+R84+U84+W84+SUM(Y84:AA84) -> 0 | AD84: =SUM(AD77) -> 0 | AE84: =SUM(AE77) -> 0 | AF84: =SUM(AF77) -> 0 | AG84: =SUM(AG77) -> 0 | AH84: =SUM(AH77) -> 0
B85: <Enter substation ID>
B92: Project Totals | L92: =SUM(L85:L91) -> 0 | M92: =SUM(M85:M91) -> 0 | O92: =SUM(O85:O91) -> 0 | Q92: =SUM(Q85:Q91) -> 0 | R92: =SUM(R85:R91) -> 0 | T92: =SUM(T85:T91) -> 0 | U92: =SUM(U85:U91) -> 0 | W92: =SUM(W85:W91) -> 0 | X92: =SUM(X85:X91) -> 0 | Y92: =SUM(Y85:Y91) -> 0 | Z92: =SUM(Z85) -> 0 | AA92: =SUM(AA85) -> 0 | AB92: =O92+R92+U92+W92+SUM(Y92:AA92) -> 0 | AD92: =SUM(AD85) -> 0 | AE92: =SUM(AE85) -> 0 | AF92: =SUM(AF85) -> 0 | AG92: =SUM(AG85) -> 0 | AH92: =SUM(AH85) -> 0
B93: <Enter substation ID>
B100: Project Totals | L100: =SUM(L93:L99) -> 0 | M100: =SUM(M93:M99) -> 0 | O100: =SUM(O93:O99) -> 0 | Q100: =SUM(Q93:Q99) -> 0 | R100: =SUM(R93:R99) -> 0 | T100: =SUM(T93:T99) -> 0 | U100: =SUM(U93:U99) -> 0 | W100: =SUM(W93:W99) -> 0 | X100: =SUM(X93:X99) -> 0 | Y100: =SUM(Y93:Y99) -> 0 | Z100: =SUM(Z93) -> 0 | AA100: =SUM(AA93) -> 0 | AB100: =O100+R100+U100+W100+SUM(Y100:AA100) -> 0 | AD100: =SUM(AD93) -> 0 | AE100: =SUM(AE93) -> 0 | AF100: =SUM(AF93) -> 0 | AG100: =SUM(AG93) -> 0 | AH100: =SUM(AH93) -> 0
B101: <Enter substation ID>
B108: Project Totals | L108: =SUM(L101:L107) -> 0 | M108: =SUM(M101:M107) -> 0 | O108: =SUM(O101:O107) -> 0 | Q108: =SUM(Q101:Q107) -> 0 | R108: =SUM(R101:R107) -> 0 | T108: =SUM(T101:T107) -> 0 | U108: =SUM(U101:U107) -> 0 | W108: =SUM(W101:W107) -> 0 | X108: =SUM(X101:X107) -> 0 | Y108: =SUM(Y101:Y107) -> 0 | Z108: =SUM(Z101) -> 0 | AA108: =SUM(AA101) -> 0 | AB108: =O108+R108+U108+W108+SUM(Y108:AA108) -> 0 | AD108: =SUM(AD101) -> 0 | AE108: =SUM(AE101) -> 0 | AF108: =SUM(AF101) -> 0 | AG108: =SUM(AG101) -> 0 | AH108: =SUM(AH101) -> 0
B109: <Enter substation ID>
B116: Project Totals | L116: =SUM(L109:L115) -> 0 | M116: =SUM(M109:M115) -> 0 | O116: =SUM(O109:O115) -> 0 | Q116: =SUM(Q109:Q115) -> 0 | R116: =SUM(R109:R115) -> 0 | T116: =SUM(T109:T115) -> 0 | U116: =SUM(U109:U115) -> 0 | W116: =SUM(W109:W115) -> 0 | X116: =SUM(X109:X115) -> 0 | Y116: =SUM(Y109:Y115) -> 0 | Z116: =SUM(Z109) -> 0 | AA116: =SUM(AA109) -> 0 | AB116: =O116+R116+U116+W116+SUM(Y116:AA116) -> 0 | AD116: =SUM(AD109) -> 0 | AE116: =SUM(AE109) -> 0 | AF116: =SUM(AF109) -> 0 | AG116: =SUM(AG109) -> 0 | AH116: =SUM(AH109) -> 0
B117: <Enter substation ID>
B124: Project Totals | L124: =SUM(L117:L123) -> 0 | M124: =SUM(M117:M123) -> 0 | O124: =SUM(O117:O123) -> 0 | Q124: =SUM(Q117:Q123) -> 0 | R124: =SUM(R117:R123) -> 0 | T124: =SUM(T117:T123) -> 0 | U124: =SUM(U117:U123) -> 0 | W124: =SUM(W117:W123) -> 0 | X124: =SUM(X117:X123) -> 0 | Y124: =SUM(Y117:Y123) -> 0 | Z124: =SUM(Z117) -> 0 | AA124: =SUM(AA117) -> 0 | AB124: =O124+R124+U124+W124+SUM(Y124:AA124) -> 0 | AD124: =SUM(AD117) -> 0 | AE124: =SUM(AE117) -> 0 | AF124: =SUM(AF117) -> 0 | AG124: =SUM(AG117) -> 0 | AH124: =SUM(AH117) -> 0
B125: <Enter substation ID>
B132: Project Totals | L132: =SUM(L125:L131) -> 0 | M132: =SUM(M125:M131) -> 0 | O132: =SUM(O125:O131) -> 0 | Q132: =SUM(Q125:Q131) -> 0 | R132: =SUM(R125:R131) -> 0 | T132: =SUM(T125:T131) -> 0 | U132: =SUM(U125:U131) -> 0 | W132: =SUM(W125:W131) -> 0 | X132: =SUM(X125:X131) -> 0 | Y132: =SUM(Y125:Y131) -> 0 | Z132: =SUM(Z125) -> 0 | AA132: =SUM(AA125) -> 0 | AB132: =O132+R132+U132+W132+SUM(Y132:AA132) -> 0 | AD132: =SUM(AD125) -> 0 | AE132: =SUM(AE125) -> 0 | AF132: =SUM(AF125) -> 0 | AG132: =SUM(AG125) -> 0 | AH132: =SUM(AH125) -> 0
D133: Non material projects | AB133: =(393.949321170316)*1000 -> 393949.3212 | AC133: 2012
AB134: =(10174.3157735875)*1000 -> 10174315.77 | AC134: 2013
AB135: =(8976.171135268)*1000 -> 8976171.135 | AC135: 2014
AB136: =(1595.73144120323)*1000 -> 1595731.441 | AC136: 2015
D137: Non material projects | AB137: =(1465.30936800358)*1000 -> 1465309.368 | AC137: 2016
B140: 2.3.2 - AUGEX ASSET DATA - LINES
B141: NOTE: TNSP MUST PROVIDE EXPENDITURE INFORMATION ON A PROJECT CLOSE BASIS.
B142: LINE AND PROJECT SUMMARY | L142: PLANT AND EQUIPMENT EXPENDITURE AND VOLUME | Z142: OTHER EXPENDITURE | AB142: TOTAL DIRECT EXPENDITURE ($0's) | AC142: YEARS INCURRED | AD142: ALL RELATED PARTY CONTRACTS | AG142: LAND AND EASEMENTS
B143: LINE ID | D143: PROJECT ID | E143: PROJECT TYPE | F143: PROJECT TRIGGER | G143: VOLTAGE (KV) | H143: ROUTE LINE LENGTH ADDED | L143: TOWERS/POLES (INCLUDING STRUCTURES, AND CIVIL WORKS) | P143: LINES AND CABLES | W143: OTHER PLANT ITEM | X143: INSTALLATION (LABOUR) | Z143: CIVIL WORKS | AA143: OTHER DIRECT | AD143: RELATED PARTY MARGINS | AE143: TOTAL | AF143: ALL NON RELATED PARTYCONTRACTS | AG143: LAND PURCHASES | AH143: EASEMENTS
P144: Type | Q144: Rating (MVA) | S144: N-1 Emergency Rating (MVA) | U144: Circuit KM Added | V144: Expenditure ($0's)
H145: KM ADDED | L145: Configuration | M145: Towers/Poles Added | N145: Towers/Poles Upgraded | O145: Expenditure ($0's) | Q145: PRE | R145: POST | S145: PRE | T145: POST | W145: Expenditure ($0's) | X145: Volume | Y145: Expenditure ($0's) | Z145: Expenditure ($0's) | AD145: Expenditure ($0's) | AG145: Expenditure ($0's)
B146: <Enter line ID>
B153: Project Totals | M153: =SUM(M146:M152) -> 0 | N153: =SUM(N146:N152) -> 0 | O153: =SUM(O146:O152) -> 0 | U153: =SUM(U146:U152) -> 0 | V153: 0 | W153: 0 | X153: 0 | Y153: 0 | Z153: 0 | AA153: 0 | AB153: =O153+R153+U153+W153+SUM(Y153:AA153) -> 0 | AD153: =SUM(AD146:AD152) -> 0 | AE153: =SUM(AE146:AE152) -> 0 | AF153: =SUM(AF146:AF152) -> 0 | AG153: =SUM(AG146:AG152) -> 0 | AH153: =SUM(AH146:AH152) -> 0
B154: <Enter line ID>
B161: Project Totals | M161: =SUM(M154:M160) -> 0 | N161: =SUM(N154:N160) -> 0 | O161: =SUM(O154:O160) -> 0 | U161: =SUM(U154:U160) -> 0 | V161: =SUM(V154:V160) -> 0 | W161: =SUM(W154:W160) -> 0 | X161: 0 | Y161: 0 | Z161: 0 | AA161: 0 | AB161: =O161+R161+U161+W161+SUM(Y161:AA161) -> 0 | AD161: =SUM(AD154:AD160) -> 0 | AE161: =SUM(AE154:AE160) -> 0 | AF161: =SUM(AF154:AF160) -> 0 | AG161: =SUM(AG154:AG160) -> 0 | AH161: =SUM(AH154:AH160) -> 0
B162: <Enter line ID>
B169: Project Totals | M169: =SUM(M162:M168) -> 0 | N169: =SUM(N162:N168) -> 0 | O169: =SUM(O162:O168) -> 0 | U169: =SUM(U162:U168) -> 0 | V169: =SUM(V162:V168) -> 0 | W169: =SUM(W162:W168) -> 0 | X169: 0 | Y169: 0 | Z169: 0 | AA169: 0 | AB169: =O169+R169+U169+W169+SUM(Y169:AA169) -> 0 | AD169: =SUM(AD162:AD168) -> 0 | AE169: =SUM(AE162:AE168) -> 0 | AF169: =SUM(AF162:AF168) -> 0 | AG169: =SUM(AG162:AG168) -> 0 | AH169: =SUM(AH162:AH168) -> 0
B170: <Enter line ID>
B177: Project Totals | M177: =SUM(M170:M176) -> 0 | N177: =SUM(N170:N176) -> 0 | O177: =SUM(O170:O176) -> 0 | U177: =SUM(U170:U176) -> 0 | V177: =SUM(V170:V176) -> 0 | W177: =SUM(W170:W176) -> 0 | X177: 0 | Y177: 0 | Z177: 0 | AA177: 0 | AB177: =O177+R177+U177+W177+SUM(Y177:AA177) -> 0 | AD177: =SUM(AD170:AD176) -> 0 | AE177: =SUM(AE170:AE176) -> 0 | AF177: =SUM(AF170:AF176) -> 0 | AG177: =SUM(AG170:AG176) -> 0 | AH177: =SUM(AH170:AH176) -> 0
B178: <Enter line ID>
B185: Project Totals | M185: =SUM(M178:M184) -> 0 | N185: =SUM(N178:N184) -> 0 | O185: =SUM(O178:O184) -> 0 | U185: =SUM(U178:U184) -> 0 | V185: =SUM(V178:V184) -> 0 | W185: =SUM(W178:W184) -> 0 | X185: 0 | Y185: 0 | Z185: 0 | AA185: 0 | AB185: =O185+R185+U185+W185+SUM(Y185:AA185) -> 0 | AD185: =SUM(AD178:AD184) -> 0 | AE185: =SUM(AE178:AE184) -> 0 | AF185: =SUM(AF178:AF184) -> 0 | AG185: =SUM(AG178:AG184) -> 0 | AH185: =SUM(AH178:AH184) -> 0
B186: <Enter line ID>
B193: Project Totals | M193: =SUM(M186:M192) -> 0 | N193: =SUM(N186:N192) -> 0 | O193: =SUM(O186:O192) -> 0 | U193: =SUM(U186:U192) -> 0 | V193: =SUM(V186:V192) -> 0 | W193: =SUM(W186:W192) -> 0 | X193: 0 | Y193: 0 | Z193: 0 | AA193: 0 | AB193: =O193+R193+U193+W193+SUM(Y193:AA193) -> 0 | AD193: =SUM(AD186:AD192) -> 0 | AE193: =SUM(AE186:AE192) -> 0 | AF193: =SUM(AF186:AF192) -> 0 | AG193: =SUM(AG186:AG192) -> 0 | AH193: =SUM(AH186:AH192) -> 0
B194: <Enter line ID>
B201: Project Totals | M201: =SUM(M194:M200) -> 0 | N201: =SUM(N194:N200) -> 0 | O201: =SUM(O194:O200) -> 0 | U201: =SUM(U194:U200) -> 0 | V201: =SUM(V194:V200) -> 0 | W201: =SUM(W194:W200) -> 0 | X201: 0 | Y201: 0 | Z201: 0 | AA201: 0 | AB201: =O201+R201+U201+W201+SUM(Y201:AA201) -> 0 | AD201: =SUM(AD194:AD200) -> 0 | AE201: =SUM(AE194:AE200) -> 0 | AF201: =SUM(AF194:AF200) -> 0 | AG201: =SUM(AG194:AG200) -> 0 | AH201: =SUM(AH194:AH200) -> 0
D202: Non material projects
D203: Non material projects
D204: Non material projects
B208: 2.3.4 - AUGEX - TOTAL EXPENDITURE
C210: EXPENDITURE ($0's)
B211: AUGMENTATION CAPEX (as incurred) | C211: =CRY -> 2015-16
B212: Substations | C212: =(36972.128245574)*1000 -> 36972128.25
B213: Lines | C213: =(5908.19287338046)*1000 -> 5908192.873
B214: Other assets | C214: =(4039.54588104558)*1000 -> 4039545.881
B215: Total augmentation capex | C215: =SUM(C212:C214) -> 46919867

Sheet 2.5 Connections
B1: REGULATORY REPORTING STATEMENT
B2: =INDEX(dms_TradingNameFull_List,MATCH(dms_TradingName,dms_TradingName_List)) -> ElectraNet
B3: =CONCATENATE((LOOKUP(dms_Model,dms_Model_List,dms_Worksheet_List))&" "&CRY) -> CATEGORY ANALYSIS 2015-16
B4: 2.5 CONNECTIONS EXPENDITURE
B6: There are TWO tables on this worksheet. Each has been grouped (or sub-grouped). See the Instructions sheet on how to group or ungroup data.
B8: 2.5.1 - EXPENDITURE ON CONNECTION PROJECTS
C9: EXPENDITURE ($0's)
B10: CONNECTION PROJECT | C10: =CRY -> 2015-16
B11: DIRECT MATERIALS EXPENDITURE
B12: <Enter project description here…>
B37: DIRECT LABOUR EXPENDITURE
B38: =IF(ISBLANK(B12),"",B12) -> <Enter project description here…>
B39: =IF(ISBLANK(B13),"",B13) -> 
B66: 2.5.2 - DESCRIPTION OF CONNECTION PROJECTS
C67: CONNECTION RATING (MVA) | D67: CONNECTION VOLTAGE (KV) | E67: UNDERGROUND / OVERHEAD | F67: YEAR CONNECTION PROJECT COMPLETED
B68: =IF(ISBLANK(B12),"",B12) -> <Enter project description here…>

Sheet 2.6 Non-network
B1: REGULATORY REPORTING STATEMENT
B2: =INDEX(dms_TradingNameFull_List,MATCH(dms_TradingName,dms_TradingName_List)) -> ElectraNet
B3: =CONCATENATE((LOOKUP(dms_Model,dms_Model_List,dms_Worksheet_List))&" "&CRY) -> CATEGORY ANALYSIS 2015-16
B4: 2.6 NON NETWORK EXPENDITURE
B6: There are THREE tables on this worksheet - each has been 'grouped' (and sub-grouped) for easy navigation. See the Instructions sheet on how to group or ungroup tables.
B8: 2.6.1 - NON-NETWORK EXPENDITURE
E9: EXPENDITURE ($0's)
B10: SERVICE SUBCATEGORY | C10: ASSET CATEGORY | E10: =CRY -> 2015-16
B11: OPEX
B12: IT & COMMUNICATIONS | C12: Client device expenditure | E12: =(94.47198)*1000 -> 94471.98
C13: Recurrent expenditure | E13: =(5919.2687938471)*1000 -> 5919268.794
C14: Non-recurrent expenditure
B15: MOTOR VEHICLES | C15: Car | E15: =(95.67778)*1000 -> 95677.78
C16: Light commercial vehicle
C17: Elevated work platform (LCV)
C18: Elevated work platform (HCV)
C19: Heavy commercial vehicle
B20: BUILDINGS AND PROPERTY | C20: Total buildings and property expenditure | E20: =(2154.9408661529)*1000 -> 2154940.866
B21: OTHER | C21: Other expenditure
B22: OTHER - TNSP nominated
B33: CAPEX
B34: IT & COMMUNICATIONS | C34: Client device expenditure | E34: =(0)*1000 -> 0
C35: Recurrent expenditure | E35: =(4357.425)*1000 -> 4357425
C36: Non-recurrent expenditure | E36: =(1316.716)*1000 -> 1316716
B37: MOTOR VEHICLES | C37: Car | E37: =(152.85)*1000 -> 152850
C38: Light commercial vehicle
C39: Elevated work platform (LCV)
C40: Elevated work platform (HCV)
C41: Heavy commercial vehicle
B42: BUILDINGS AND PROPERTY | C42: Total buildings and property expenditure | E42: =(748.336056139105)*1000 -> 748336.0561
B43: OTHER | C43: Other expenditure
B44: OTHER - TNSP nominated | C44: Plant and equipment | E44: =(68.0727425210297)*1000 -> 68072.74252
B58: 2.6.2 - ANNUAL DESCRIPTOR METRICS - IT & COMMUNICATIONS EXPENDITURE
E59: VOLUMES (0's)
B60: NON-NETWORK CATEGORY | C60: DESCRIPTOR METRIC | E60: =CRY -> 2015-16
B61: IT & COMMUNICATIONS | C61: Employee numbers | E61: 259.5
C62: User numbers | E62: 271.296
C63: Number of devices | E63: 472.884
B66: 2.6.3 - ANNUAL DESCRIPTOR METRICS - MOTOR VEHICLES
E67: VOLUMES / %
B68: ASSET CATEGORY | C68: DESCRIPTOR METRIC | D68: UNITS | E68: =CRY -> 2015-16
B69: CAR | C69: Average kilometres travelled | D69: 0's | E69: 16.7008
C70: Number purchased | D70: 0's | E70: 14.13
C71: Number leased | D71: 0's | E71: 4.71
C72: Number in fleet | D72: 0's | E72: 18.84
C73: Proportion of total fleet expenditure allocated as regulatory expenditure | D73: (per cent) | E73: 0.942
B74: LIGHT COMMERCIAL VEHICLE | C74: Average kilometres travelled | D74: 0's
C75: Number purchased | D75: 0's
C76: Number leased | D76: 0's
C77: Number in fleet | D77: 0's
C78: Proportion of total fleet expenditure allocated as regulatory expenditure | D78: (per cent)
B79: ELEVATED WORK PLATFORM (LCV) | C79: Average kilometres travelled | D79: 0's
C80: Number purchased | D80: 0's
C81: Number leased | D81: 0's
C82: Number in fleet | D82: 0's
C83: Proportion of total fleet expenditure allocated as regulatory expenditure | D83: (per cent)
B84: ELEVATED WORK PLATFORM (HCV) | C84: Average kilometres travelled | D84: 0's
C85: Number purchased | D85: 0's
C86: Number leased | D86: 0's
C87: Number in fleet | D87: 0's
C88: Proportion of total fleet expenditure allocated as regulatory expenditure | D88: (per cent)
B89: HEAVY COMMERCIAL VEHICLE | C89: Average kilometres travelled | D89: 0's
C90: Number purchased | D90: 0's
C91: Number leased | D91: 0's
C92: Number in fleet | D92: 0's
C93: Proportion of total fleet expenditure allocated as regulatory expenditure | D93: (per cent)

Sheet 2.7 Vegetation management
B1: REGULATORY REPORTING STATEMENT
B2: =INDEX(dms_TradingNameFull_List,MATCH(dms_TradingName,dms_TradingName_List)) -> ElectraNet
B3: =CONCATENATE((LOOKUP(dms_Model,dms_Model_List,dms_Worksheet_List))&" "&CRY) -> CATEGORY ANALYSIS 2015-16
B4: 2.7 VEGETATION MANAGEMENT
B6: There are THREE tables on this worksheet. Each has been 'grouped' for easy navigation. See the Instructions sheet on how to group or ungroup data.
B8: 2.7.1 - DESCRIPTOR METRICS BY ZONE
E9: VOLUMES
B10: ZONES | C10: ASSET / ENVIRONMENTAL FACTOR | D10: UNITS | E10: =CRY -> 2015-16
B11: HBFRA (High Bushfire Risk Area) | C11: Route line length within zone | D11: km | E11: 1016
C12: Number of maintenance spans | D12: 0's | E12: 509
C13: Total length of maintenance spans | D13: km | E13: 176.42449
C14: Average number of trees per maintenance span | D14: 0's | E14: 14.4
C15: Length of vegetation corridors | D15: km | E15: 1016
C16: Average width of vegetation corridors | D16: metres | E16: 93.14617671
C17: Average frequency of cutting cycle | D17: years | E17: 1
B18: BFRA (Bushfire Risk Area) | C18: Route line length within zone | D18: km | E18: 2630
C19: Number of maintenance spans | D19: 0's | E19: 920
C20: Total length of maintenance spans | D20: km | E20: 310.4264
C21: Average number of trees per maintenance span | D21: 0's | E21: 17.3
C22: Length of vegetation corridors | D22: km | E22: 2630
C23: Average width of vegetation corridors | D23: metres | E23: 91.21394258
C24: Average frequency of cutting cycle | D24: years | E24: 1
B25: NBFRA (Non Bushfire Risk Area) | C25: Route line length within zone | D25: km | E25: 893.8
C26: Number of maintenance spans | D26: 0's | E26: 358
C27: Total length of maintenance spans | D27: km | E27: 121.362
C28: Average number of trees per maintenance span | D28: 0's | E28: 7.1
C29: Length of vegetation corridors | D29: km | E29: 893.8
C30: Average width of vegetation corridors | D30: metres | E30: 30.31106809
C31: Average frequency of cutting cycle | D31: years | E31: 3
B32: ZONE 4 | C32: Route line length within zone | D32: km
C33: Number of maintenance spans | D33: 0's
C34: Total length of maintenance spans | D34: km
C35: Average number of trees per maintenance span | D35: 0's
C36: Length of vegetation corridors | D36: km
C37: Average width of vegetation corridors | D37: metres
C38: Average frequency of cutting cycle | D38: years
B39: ZONE 5 | C39: Route line length within zone | D39: km
C40: Number of maintenance spans | D40: 0's
C41: Total length of maintenance spans | D41: km
C42: Average number of trees per maintenance span | D42: 0's
C43: Length of vegetation corridors | D43: km
C44: Average width of vegetation corridors | D44: metres
C45: Average frequency of cutting cycle | D45: years
B46: ZONE 6 | C46: Route line length within zone | D46: km
C47: Number of maintenance spans | D47: 0's
C48: Total length of maintenance spans | D48: km
C49: Average number of trees per maintenance span | D49: 0's
C50: Length of vegetation corridors | D50: km
C51: Average width of vegetation corridors | D51: metres
C52: Average frequency of cutting cycle | D52: years
B53: ZONE 7 | C53: Route line length within zone | D53: km
C54: Number of maintenance spans | D54: 0's
C55: Total length of maintenance spans | D55: km
C56: Average number of trees per maintenance span | D56: 0's
C57: Length of vegetation corridors | D57: km
C58: Average width of vegetation corridors | D58: metres
C59: Average frequency of cutting cycle | D59: years
B60: ZONE 8 | C60: Route line length within zone | D60: km
C61: Number of maintenance spans | D61: 0's
C62: Total length of maintenance spans | D62: km
C63: Average number of trees per maintenance span | D63: 0's
C64: Length of vegetation corridors | D64: km
C65: Average width of vegetation corridors | D65: metres
C66: Average frequency of cutting cycle | D66: years
B67: ZONE 9 | C67: Route line length within zone | D67: km
C68: Number of maintenance spans | D68: 0's
C69: Total length of maintenance spans | D69: km
C70: Average number of trees per maintenance span | D70: 0's
C71: Length of vegetation corridors | D71: km
C72: Average width of vegetation corridors | D72: metres
C73: Average frequency of cutting cycle | D73: years
B74: ZONE 10 | C74: Route line length within zone | D74: km
C75: Number of maintenance spans | D75: 0's
C76: Total length of maintenance spans | D76: km
C77: Average number of trees per maintenance span | D77: 0's
C78: Length of vegetation corridors | D78: km
C79: Average width of vegetation corridors | D79: metres
C80: Average frequency of cutting cycle | D80: years
B83: 2.7.2 - EXPENDITURE METRICS BY ZONE
E84: EXPENDITURE ($0's)
B85: ZONES | C85: SERVICE SUBCATEGORY | E85: =CRY -> 2015-16
B86: =B11 -> HBFRA (High Bushfire Risk Area) | C86: Tree trimming
C87: Vegetation corridor clearance
C88: Inspection
C89: Audit
C90: Contractor liaison expenditure
C91: Other vegetation management expenditure
B92: =B18 -> BFRA (Bushfire Risk Area) | C92: Tree trimming
C93: Vegetation corridor clearance
C94: Inspection
C95: Audit
C96: Contractor liaison expenditure
C97: Other vegetation management expenditure
B98: =B25 -> NBFRA (Non Bushfire Risk Area) | C98: Tree trimming
C99: Vegetation corridor clearance
C100: Inspection
C101: Audit
C102: Contractor liaison expenditure
C103: Other vegetation management expenditure
B104: =B32 -> ZONE 4 | C104: Tree trimming
C105: Vegetation corridor clearance
C106: Inspection
C107: Audit
C108: Contractor liaison expenditure
C109: Other vegetation management expenditure
B110: =B39 -> ZONE 5 | C110: Tree trimming
C111: Vegetation corridor clearance
C112: Inspection
C113: Audit
C114: Contractor liaison expenditure
C115: Other vegetation management expenditure
B116: =B46 -> ZONE 6 | C116: Tree trimming
C117: Vegetation corridor clearance
C118: Inspection
C119: Audit
C120: Contractor liaison expenditure
C121: Other vegetation management expenditure
B122: =B53 -> ZONE 7 | C122: Tree trimming
C123: Vegetation corridor clearance
C124: Inspection
C125: Audit
C126: Contractor liaison expenditure
C127: Other vegetation management expenditure
B128: =B60 -> ZONE 8 | C128: Tree trimming
C129: Vegetation corridor clearance
C130: Inspection
C131: Audit
C132: Contractor liaison expenditure
C133: Other vegetation management expenditure
B134: =B67 -> ZONE 9 | C134: Tree trimming
C135: Vegetation corridor clearance
C136: Inspection
C137: Audit
C138: Contractor liaison expenditure
C139: Other vegetation management expenditure
B140: =B74 -> ZONE 10 | C140: Tree trimming
C141: Vegetation corridor clearance
C142: Inspection
C143: Audit
C144: Contractor liaison expenditure
C145: Other vegetation management expenditure
B148: 2.7.3 - DESCRIPTOR METRICS ACROSS ALL ZONES - UNPLANNED VEGETATION EVENTS
E149: VOLUMES (0's)
B150: DESCRIPTOR METRIC | E150: =CRY -> 2015-16
B151: Number of fire starts caused by vegetation grow-ins (NSP responsibility) | E151: 0
B152: Number of fire starts caused by vegetation blow-ins and fall-ins (NSP responsibility) | E152: 0
B153: Number of outages caused by vegetation grow-ins (NSP responsibility) | E153: 0
B154: Number of outages caused by vegetation blow-ins and fall-ins (NSP responsibility) | E154: 0
B155: Number of fire starts caused by vegetation grow-ins (other party responsibility) | E155: 0
B156: Number of fire starts caused by vegetation blow-ins and fall-ins (other party responsibility) | E156: 0
B157: Number of outages caused by vegetation grow-ins (other party responsibility) | E157: 0
B158: Number of outages caused by vegetation blow-ins and fall-ins (other party responsibility) | E158: 0

Sheet 2.8 Maintenance
B1: REGULATORY REPORTING STATEMENT
B2: =INDEX(dms_TradingNameFull_List,MATCH(dms_TradingName,dms_TradingName_List)) -> ElectraNet
B3: =CONCATENATE((LOOKUP(dms_Model,dms_Model_List,dms_Worksheet_List))&" "&CRY) -> CATEGORY ANALYSIS 2015-16
B4: 2.8 MAINTENANCE
B6: There are TWO tables on this worksheet. Each has been 'grouped' for easy navigation. See the Instructions sheet on how to group or ungroup data.
B8: 2.8.1 - DESCRIPTOR METRICS FOR ROUTINE AND NON-ROUTINE MAINTENANCE
F9: ASSET QUANTITY | H9: AVERAGE AGE OF ASSET GROUP | I9: INSPECTION CYCLE (YEARS) | J9: MAINTENANCE CYCLE (YEARS)
B10: MAINTENANCE ACTIVITY | C10: MAINTENANCE ASSET CATEGORY | D10: MEASURE / ASSET QUANTITY | E10: UNITS | F10: AT YEAR END | G10: INSPECTED/ MAINTAINED
F11: =CRY -> 2015-16 | G11: =CRY -> 2015-16 | H11: =CRY -> 2015-16
B12: Transmission lines maintenance | C12: Transmission towers | D12: Number of towers | E12: 0's | F12: 13.253 | G12: 13.253 | H12: 44.3 | I12: 0.5 | J12: Nil. Cond mon.&corr mtce
C13: Transmission tower support structures | D13: Number of towers | E13: 0's | F13: 58.668 | G13: 58.668 | H13: 42 | I13: 0.5 | J13: Nil. Cond mon.&corr mtce
C14: Conductors | D14: Route length | E14: km | F14: 5.497 | G14: 5.497 | H14: 42.7 | I14: 0.5 | J14: Nil. Cond mon.&corr mtce
C15: Transmission cables | D15: Route length | E15: km | F15: 0.027 | G15: 0.027 | H15: 12.5 | I15: 0.02 | J15: Nil. Cond mon.&corr mtce
B16: Substations equipment & property maintenance | C16: Substation switchbays (incl. Reactive plant) | D16: Number of switchbays | E16: 0's | F16: 1.346 | G16: 1.346 | H16: 22.7 | I16: 0.25 | J16: 6
C17: Substation power transformers | D17: Number of transformers | E17: 0's | F17: 0.139 | G17: 0.139 | H17: 29.1 | I17: 0.25 | J17: 6
C18: Substation property | D18: Number of substation properties maintained | E18: 0's | F18: 0.077 | G18: 0.077 | H18: 37.9 | I18: 0.25 | J18: 0.5
B19: SCADA & network control maintenance | C19: SCADA & network control maintenance | D19: Number of comms sites | E19: 0's | F19: 120 | G19: 120 | H19: 30 | I19: 0.5 | J19: Nil. Cond mon.&corr mtce
B20: Protection systems maintenance | C20: Protection systems maintenance | D20: Number of protection systems | E20: 0's | F20: 1362 | G20: 1362 | H20: 13.6 | I20: 0.25 | J20: 4
B21: Right of way (Row) maintenance | C21: Row Maintenance | D21: Length (Route Km) | E21: 000' km | F21: 4.539 | G21: 4.539 | H21: 42.7 | I21: 0.5 | J21: 3
B46: 2.8.2 - COST METRICS FOR ROUTINE AND NON-ROUTINE MAINTENANCE
F47: DIRECT EXPENDITURE ($0's)
B48: ASSET CATEGORIES | C48: ASSET SUBCATEGORIES | F48: ROUTINE MAINTENANCE | G48: NON-ROUTINE MAINTENANCE
F49: =CRY -> 2015-16 | G49: =CRY -> 2015-16
B50: Transmission lines maintenance | C50: Transmission towers | F50: =(2009.2786005934)*1000 -> 2009278.601 | G50: =(7210.28413744427)*1000 -> 7210284.137
C51: Transmission tower support structures | F51: =(1001.42727027129)*1000 -> 1001427.27 | G51: =(3378.77673421985)*1000 -> 3378776.734
C52: Conductors | F52: =(235.864239010056)*1000 -> 235864.239 | G52: =(1872.11888860968)*1000 -> 1872118.889
C53: Transmission cables | F53: =(486.821910125254)*1000 -> 486821.9101 | G53: =(122.007499726203)*1000 -> 122007.4997
B54: Substations equipment & property maintenance | C54: Substation switchbays (incl. Reactive plant) | F54: =(2166.65196475279)*1000 -> 2166651.965 | G54: =(4253.54414582415)*1000 -> 4253544.146
C55: Substation power transformers | F55: =(976.159558247677)*1000 -> 976159.5582 | G55: =(2288.70753153679)*1000 -> 2288707.532
C56: Substation property | F56: =(3913.64676699953)*1000 -> 3913646.767 | G56: =(4078.86588263906)*1000 -> 4078865.883
B57: SCADA & network control maintenance | C57: SCADA & network control maintenance | F57: =(1760.42329)*1000 -> 1760423.29 | G57: =(270.04856)*1000 -> 270048.56
B58: Protection systems maintenance | C58: Protection systems maintenance | F58: =(2048.70183)*1000 -> 2048701.83 | G58: =(974.84604)*1000 -> 974846.04
B59: Other maintenance activity | C59: =IF(ISBLANK(C21),"",C21) -> Row Maintenance | F59: =(1872.73018)*1000 -> 1872730.18 | G59: =(130.0828)*1000 -> 130082.8
C60: =IF(ISBLANK(C22),"",C22) -> 

Sheet 2.10 Overheads
B1: REGULATORY REPORTING STATEMENT
B2: =INDEX(dms_TradingNameFull_List,MATCH(dms_TradingName,dms_TradingName_List)) -> ElectraNet
B3: =CONCATENATE((LOOKUP(dms_Model,dms_Model_List,dms_Worksheet_List))&" "&CRY) -> CATEGORY ANALYSIS 2015-16
B4: 2.10 OVERHEADS
B6: There are TWO tables on this worksheet. Each has been 'grouped' (and sub-grouped) for easy navigation. See the Instructions sheet on how to group or ungroup data.
B8: Instructions
B9: Enter each expenditure category currently reported under annual Information Guidelines.
B11: 2.10.1 - NETWORK OVERHEADS EXPENDITURE
D12: EXPENDITURE ($0's)
D13: =CRY -> 2015-16
B14: MAINTENANCE SUPPORT
B15: Prescribed Services | D15: =(7974.53243599589)*1000 -> 7974532.436
B40: Negotiated Services | C40: Total | D40: =(16.0233877816624)*1000 -> 16023.38778
B41: Unregulated Services | C41: Total | D41: =(77.8288624789537)*1000 -> 77828.86248
B42: NETWORK MONITORING AND CONTROL
B43: Prescribed Services | D43: =(6038.72137351102)*1000 -> 6038721.374
B64: Negotiated Services | C64: Total | D64: =(0.0815824085576153)*1000 -> 81.58240856
B65: Unregulated Services | C65: Total | D65: =(19.6863144784986)*1000 -> 19686.31448
B66: ASEET MANAGEMENT SUPPORT
B67: Prescribed Services | D67: =(10943.2913188033)*1000 -> 10943291.32
B93: Negotiated Services | C93: Total | D93: =(0.00371987503751722)*1000 -> 3.719875038
B94: Unregulated Services | C94: Total | D94: =(980.5181992511)*1000 -> 980518.1993
B98: 2.10.2 - CORPORATE OVERHEADS EXPENDITURE
D99: EXPENDITURE ($0's)
D100: =CRY -> 2015-16
B101: CORPORATE OVERHEADS
B102: Prescribed Services | D102: =(20389.00741542)*1000 -> 20389007.42
B127: Negotiated Services | C127: Total | D127: =(0)*1000 -> 0
B128: Unregulated Services | C128: Total | D128: =(94.3451926541953)*1000 -> 94345.19265

Sheet 2.11 Labour
B1: REGULATORY REPORTING STATEMENT
B2: =INDEX(dms_TradingNameFull_List,MATCH(dms_TradingName,dms_TradingName_List)) -> ElectraNet
B3: =CONCATENATE((LOOKUP(dms_Model,dms_Model_List,dms_Worksheet_List))&" "&CRY) -> CATEGORY ANALYSIS 2015-16
B4: 2.11 LABOUR
B6: There are TWO tables on this worksheet. Each table has been 'grouped' (and sub-grouped) for easy navigation. See the Instructions sheet on how to group or ungroup data.
B8: 2.11.1 - COST METRICS PER ANNUM
D9: ASL (0's) | E9: TOTAL LABOUR EXPENDITURE ($0's) | F9: AVERAGE PRODUCTIVE WORK HOURS PER ASL (0's) | G9: STAND-DOWN OCCURENCES PER ASL (0's)
D11: =CRY -> 2015-16 | E11: =CRY -> 2015-16 | F11: =CRY -> 2015-16 | G11: =CRY -> 2015-16
B12: CORPORATE OVERHEADS | C12: Executive manager | D12: 6.734416667 | E12: =(2725.25947762383)*1000 -> 2725259.478 | F12: 2147.22981
C13: Senior manager | D13: 4.525916667 | E13: =(1134.65482397444)*1000 -> 1134654.824 | F13: 1605.51022
C14: Manager | D14: 5.98 | E14: =(1129.73962758922)*1000 -> 1129739.628 | F14: 1910.785953
C15: Professional | D15: 28.16608333 | E15: =(4134.15755699975)*1000 -> 4134157.557 | F15: 1651.300951
C16: Semi professional | D16: 4.476916667 | E16: =(514.893377138206)*1000 -> 514893.3771 | F16: 1480.170504
C17: Support staff | D17: 12.98016667 | E17: =(1359.67628472272)*1000 -> 1359676.285 | F17: 1747.026874
C18: Intern, junior staff, apprentice | D18: 0 | E18: =(0)*1000 -> 0 | F18: 0
B19: NETWORK OVERHEADS | C19: Executive manager
C20: Senior manager | D20: 3.379416667 | E20: =(955.772573434244)*1000 -> 955772.5734 | F20: 2045.502566
C21: Manager | D21: 15.18125 | E21: =(3227.10664911143)*1000 -> 3227106.649 | F21: 1838.979004
C22: Professional | D22: 154.4676667 | E22: =(25045.1360468839)*1000 -> 25045136.05 | F22: 1669.215595
C23: Semi professional | D23: 7.072833333 | E23: =(789.95323609794)*1000 -> 789953.2361 | F23: 1633.983081
C24: Support staff | D24: 10.0955 | E24: =(1037.97744838624)*1000 -> 1037977.448 | F24: 1584.621861
C25: Intern, junior staff, apprentice | D25: 0.49725 | E25: =(35.5110580380104)*1000 -> 35511.05804 | F25: 1720.462544
B26: TOTAL DIRECT NETWORK LABOUR | C26: Skilled electrical worker
C27: Skilled non electical worker
C28: Apprentice
C29: Unskilled worker
B32: 2.11.2 - DESCRIPTOR METRICS
B33: AVERAGE PRODUCTIVE WORK HOURS PER ASL
D34: ORDINARY TIME (0's) | F34: OVERTIME (0's)
D35: PER ASL | E35: HOURLY RATE PER ASL | F35: PER ASL | G35: HOURLY RATE PER ASL
D36: =CRY -> 2015-16 | E36: =CRY -> 2015-16 | F36: =CRY -> 2015-16 | G36: =CRY -> 2015-16
B37: CORPORATE OVERHEADS | C37: Executive manager | D37: 2147.22981 | E37: 188.4644093 | F37: 0 | G37: 0
C38: Senior manager | D38: 1605.51022 | E38: 156.1507722 | F38: 0 | G38: 0
C39: Manager | D39: 1910.785953 | E39: 98.87013763 | F39: 0 | G39: 0
C40: Professional | D40: 1651.300951 | E40: 88.88619862 | F40: 0 | G40: 0
C41: Semi professional | D41: 1455.488338 | E41: 77.35166496 | F41: 24.68216593 | G41: 98.30038984
C42: Support staff | D42: 1733.121044 | E42: 60.11019895 | F42: 13.90583069 | G42: 41.13699276
C43: Intern, junior staff, apprentice | D43: 0 | E43: 0 | F43: 0 | G43: 0
B44: NETWORK OVERHEADS | C44: Executive manager
C45: Senior manager | D45: 2045.502566 | E45: 138.2651706 | F45: 0 | G45: 0
C46: Manager | D46: 1838.979004 | E46: 115.5923293 | F46: 0 | G46: 0
C47: Professional | D47: 1659.542308 | E47: 96.91786337 | F47: 9.673286535 | G47: 134.295373
C48: Semi professional | D48: 1632.286448 | E48: 68.34995511 | F48: 1.696632655 | G48: 71.710236
C49: Support staff | D49: 1584.47328 | E49: 64.88555462 | F49: 0.148581051 | G49: 43.24832075
C50: Intern, junior staff, apprentice | D50: 1720.462544 | E50: 41.50912687 | F50: 0 | G50: 0
B51: TOTAL DIRECT NETWORK LABOUR | C51: Skilled electrical worker
C52: Skilled non electical worker
C53: Apprentice
C54: Unskilled worker

Sheet 2.12 Input tables
B1: REGULATORY REPORTING STATEMENT
B2: =INDEX(dms_TradingNameFull_List,MATCH(dms_TradingName,dms_TradingName_List)) -> ElectraNet
B3: =CONCATENATE((LOOKUP(dms_Model,dms_Model_List,dms_Worksheet_List))&" "&CRY) -> CATEGORY ANALYSIS 2015-16
B4: 2.12 INPUT TABLES
B7: 2.12 INPUT TABLES
D8: DIRECT MATERIAL EXPENDITURE ($0's) | E8: DIRECT LABOUR EXPENDITURE ($0's) | F8: CONTRACT EXPENDITURE ($0's) | G8: OTHER EXPENDITURE ($0's) | H8: RELATED PARTY CONTRACT EXPENDITURE ($0's) | I8: RELATED PARTY CONTRACT MARGIN
D9: =CRY -> 2015-16 | E9: 2015-16 | F9: 2015-16 | G9: 2015-16 | H9: 2015-16 | I9: 2015-16
B10: VEGETATION MANAGEMENT | C10: ='2.7 Vegetation management'!B11 -> HBFRA (High Bushfire Risk Area) | E10: =(35.9506119490333)*1000 -> 35950.61195 | F10: =(448.226350870082)*1000 -> 448226.3509
C11: ='2.7 Vegetation management'!B18 -> BFRA (Bushfire Risk Area) | E11: =(93.0611313247613)*1000 -> 93061.13132 | F11: =(1160.27096731134)*1000 -> 1160270.967
C12: ='2.7 Vegetation management'!B25 -> NBFRA (Non Bushfire Risk Area) | E12: =(31.6266308661869)*1000 -> 31626.63087 | F12: =(394.315661818582)*1000 -> 394315.6618
C13: ='2.7 Vegetation management'!B32 -> ZONE 4
C14: ='2.7 Vegetation management'!B39 -> ZONE 5
C15: ='2.7 Vegetation management'!B46 -> ZONE 6
C16: ='2.7 Vegetation management'!B53 -> ZONE 7
C17: ='2.7 Vegetation management'!B60 -> ZONE 8
C18: ='2.7 Vegetation management'!B67 -> ZONE 9
C19: ='2.7 Vegetation management'!B74 -> ZONE 10
B30: ROUTINE MAINTENANCE | C30: Transmission Lines Maintenance | F30: =(3733.39202)*1000 -> 3733392.02
C31: Substations Equipment & Propoerty Maintenance | F31: =(7056.45829)*1000 -> 7056458.29
C32: SCADA & Network Control Maintenance | F32: =(1760.42329)*1000 -> 1760423.29
C33: Protection Systems Maintenance | F33: =(2048.70183)*1000 -> 2048701.83
B48: NON-ROUTINE MAINTENANCE | C48: Transmission Lines Maintenance | F48: =(12583.18729)*1000 -> 12583187.29
C49: Substations Equipment & Propoerty Maintenance | F49: =(10621.11756)*1000 -> 10621117.56
C50: Scada & Network Control Maintenance | F50: =(270.04856)*1000 -> 270048.56
C51: Protection Systems Maintenance | F51: =(974.84604)*1000 -> 974846.04
B64: OVERHEADS | C64: Network Overheads | E64: =(15842.4558)*1000 -> 15842455.8 | G64: =(9114.08932831021)*1000 -> 9114089.328
C65: Corporate Overheads | E65: =(9774.874834)*1000 -> 9774874.834 | G65: =(10614.13258142)*1000 -> 10614132.58 | H65: =(803)*1000 -> 803000
B66: AUGMENTATION | C66: Subtransmission Substations, Switching Stations , Zone Substations | D66: =(5586.62165702269)*1000 -> 5586621.657 | E66: =(2744.845)*1000 -> 2744845 | F66: =(26300.344)*1000 -> 26300344 | G66: =(904.732)*1000 -> 904732
C67: Subtransmission Lines | D67: =(2116.3639652434)*1000 -> 2116363.965 | E67: =(550.381)*1000 -> 550381 | F67: =(2587.172)*1000 -> 2587172 | G67: =(245.13)*1000 -> 245130
C68: HV Feeders | D68: =(0)*1000 -> 0 | E68: =(0)*1000 -> 0
C69: Other Assets | D69: =(4478.81727460904)*1000 -> 4478817.275 | E69: =(328.868)*1000 -> 328868 | F69: =(1040.788)*1000 -> 1040788 | G69: =(35.803)*1000 -> 35803
B70: CONNECTIONS | C70: All New Customer Connections | D70: =(374.621)*1000 -> 374621 | E70: =(950.242256729754)*1000 -> 950242.2567 | F70: =(899.388)*1000 -> 899388 | G70: =(33.7)*1000 -> 33700
B71: REPLACEMENT | C71: Transmission Towers | D71: =(606.577027006011)*1000 -> 606577.027 | E71: =(83.0125989741884)*1000 -> 83012.59897 | F71: =(527.211808519243)*1000 -> 527211.8085
C72: Transmission Tower Support Structures | D72: =(3526.10061100061)*1000 -> 3526100.611 | E72: =(482.56159223243)*1000 -> 482561.5922 | F72: =(3064.74165255193)*1000 -> 3064741.653
C73: Conductors | D73: =(1.36774714074454)*1000 -> 1367.747141 | E73: =(0.187181907387986)*1000 -> 187.1819074 | F73: =(1.18878957092749)*1000 -> 1188.789571
C74: Transmission Cables | D74: =(847.575809711603)*1000 -> 847575.8097 | E74: =(115.994288704104)*1000 -> 115994.2887 | F74: =(736.678040216627)*1000 -> 736678.0402
C75: Substation Switchbays | D75: =(4275.74223126731)*1000 -> 4275742.231 | E75: =(585.153178176129)*1000 -> 585153.1782 | F75: =(3716.29932250337)*1000 -> 3716299.323
C76: Substation Power Transformers | D76: =(7152.45601095265)*1000 -> 7152456.011 | E76: =(978.843470957649)*1000 -> 978843.471 | F76: =(6216.62064503361)*1000 -> 6216620.645
C77: Substation Reactive Plant | D77: =(7.22275485682236)*1000 -> 7222.754857 | E77: =(0.988464161555403)*1000 -> 988.4641616 | F77: =(6.2777215110699)*1000 -> 6277.721511
C78: SCADA network control and protection systems | D78: =(17353.3615232763)*1000 -> 17353361.52 | E78: =(2374.87998531071)*1000 -> 2374879.985 | F78: =(15082.828239857)*1000 -> 15082828.24
C79: Other | D79: =(16612.2449113021)*1000 -> 16612244.91 | E79: =(2298.25236703434)*1000 -> 2298252.367 | F79: =(14438.6801565523)*1000 -> 14438680.16
B80: NON-NETWORK EXPENDITURE | C80: IT and communications | E80: =(3250.38999667443)*1000 -> 3250389.997 | G80: =(9017.83081502479)*1000 -> 9017830.815
C81: Motor Vehicles | E81: =(8.45700257408227)*1000 -> 8457.002574 | G81: =(275.121902655589)*1000 -> 275121.9027
C82: Buildings And Property | E82: =(232.654667799803)*1000 -> 232654.6678 | G82: =(2598.71176180825)*1000 -> 2598711.762
C83: Other | E83: =(0)*1000 -> 0 | G83: =(0)*1000 -> 0

Sheet 5.2 Asset Age Profile
B1: REGULATORY REPORTING STATEMENT
B2: =INDEX(dms_TradingNameFull_List,MATCH(dms_TradingName,dms_TradingName_List)) -> ElectraNet
B3: =CONCATENATE((LOOKUP(dms_Model,dms_Model_List,dms_Worksheet_List))&" "&CRY) -> CATEGORY ANALYSIS 2015-16
B4: 5.2 ASSET AGE PROFILE
B5: .
B6: There is ONE table on this worksheet. Both ROWS and COLUMNS have been 'grouped' for easy navigation. See the Instructions sheet on how to group or ungroup data.
B8: TABLE 5.2.1 - ASSET AGE PROFILE
D9: ECONOMIC LIFE (YEARS) | F9: INSTALLED ASSETS -˃ QUANTITY CURRENTLY IN COMMISSION BY YEAR
B10: ASSET GROUP | C10: ASSET CATEGORY | D10: MEAN | E10: STANDARD DEVIATION | F10: =CRY -> 2015-16 | G10: =IF(dms_RPT="financial",(VALUE(LEFT(F10,4)-1)&"-"&MID(F10,3,2)),VALUE(LEFT(F10,4)-1)) -> 2014-15 | H10: =IF(dms_RPT="financial",(VALUE(LEFT(G10,4)-1)&"-"&MID(G10,3,2)),VALUE(LEFT(G10,4)-1)) -> 2013-14 | I10: 2012-13 | J10: 2011-12 | K10: 2010-11 | L10: 2009-10 | M10: 2008-09 | N10: 2007-08 | O10: 2006-07 | P10: 2005-06 | Q10: 2004-05 | R10: 2003-04 | S10: 2002-03 | T10: 2001-02 | U10: 2000-01 | V10: 1999-00 | W10: 1998-99 | X10: 1997-98 | Y10: 1996-97 | Z10: 1995-96 | AA10: 1994-95 | AB10: 1993-94 | AC10: 1992-93 | AD10: 1991-92 | AE10: 1990-91 | AF10: 1989-90 | AG10: 1988-89 | AH10: 1987-88 | AI10: 1986-87 | AJ10: 1985-86 | AK10: 1984-85 | AL10: 1983-84 | AM10: =IF(dms_RPT="financial",(VALUE(LEFT(AL10,4)-1)&"-"&MID(AL10,3,2)),VALUE(LEFT(AL10,4)-1)) -> 1982-83 | AN10: 1981-82 | AO10: 1980-81 | AP10: 1979-80 | AQ10: 1978-79 | AR10: 1977-78 | AS10: 1976-77 | AT10: 1975-76 | AU10: 1974-75 | AV10: 1973-74 | AW10: 1972-73 | AX10: 1971-72 | AY10: 1970-71 | AZ10: 1969-70 | BA10: 1968-69 | BB10: 1967-68 | BC10: 1966-67 | BD10: 1965-66 | BE10: 1964-65 | BF10: 1963-64 | BG10: 1962-63 | BH10: 1961-62 | BI10: 1960-61 | BJ10: 1959-60 | BK10: 1958-59 | BL10: 1957-58 | BM10: 1956-57 | BN10: 1955-56 | BO10: 1954-55 | BP10: 1953-54 | BQ10: 1952-53 | BR10: 1951-52 | BS10: =IF(dms_RPT="financial",(VALUE(LEFT(BR10,4)-1)&"-"&MID(BR10,3,2)),VALUE(LEFT(BR10,4)-1)) -> 1950-51 | BT10: 1949-50 | BU10: 1948-49 | BV10: 1947-48 | BW10: 1946-47 | BX10: 1945-46 | BY10: 1944-45 | BZ10: 1943-44 | CA10: 1942-43 | CB10: 1941-42 | CC10: 1940-41 | CD10: 1939-40 | CE10: 1938-39 | CF10: 1937-38 | CG10: 1936-37 | CH10: 1935-36 | CI10: 1934-35 | CJ10: 1933-34 | CK10: 1932-33 | CL10: 1931-32 | CM10: 1930-31 | CN10: 1929-30 | CO10: 1928-29 | CP10: 1927-28 | CQ10: 1926-27 | CR10: 1925-26 | CS10: 1924-25 | CT10: 1923-24 | CU10: 1922-23 | CV10: 1921-22 | CW10: 1920-21 | CX10: 1919-20 | CY10: =IF(dms_RPT="financial",(VALUE(LEFT(CX10,4)-1)&"-"&MID(CX10,3,2)),VALUE(LEFT(CX10,4)-1)) -> 1918-19 | CZ10: 1917-18 | DA10: 1916-17 | DB10: =IF(dms_RPT="financial",(VALUE(LEFT(DA10,4)-1)&"-"&MID(DA10,3,2)),VALUE(LEFT(DA10,4)-1)) -> 1915-16 | DC10: =IF(dms_RPT="financial",(VALUE(LEFT(DB10,4)-1)&"-"&MID(DB10,3,2)),VALUE(LEFT(DB10,4)-1)) -> 1914-15 | DD10: =IF(dms_RPT="financial",(VALUE(LEFT(DC10,4)-1)&"-"&MID(DC10,3,2)),VALUE(LEFT(DC10,4)-1)) -> 1913-14 | DE10: =IF(dms_RPT="financial",(VALUE(LEFT(DD10,4)-1)&"-"&MID(DD10,3,2)),VALUE(LEFT(DD10,4)-1)) -> 1912-13 | DF10: =IF(dms_RPT="financial",(VALUE(LEFT(DE10,4)-1)&"-"&MID(DE10,3,2)),VALUE(LEFT(DE10,4)-1)) -> 1911-12 | DG10: =IF(dms_RPT="financial",(VALUE(LEFT(DF10,4)-1)&"-"&MID(DF10,3,2)),VALUE(LEFT(DF10,4)-1)) -> 1910-11 | DH10: =IF(dms_RPT="financial",(VALUE(LEFT(DG10,4)-1)&"-"&MID(DG10,3,2)),VALUE(LEFT(DG10,4)-1)) -> 1909-10
B11: TRANSMISSION TOWERS Highest operating voltage; Circuit configuration | C11: < = 33 kV; Single Circuit | D11: 55 | E11: 7.416198487
C12: > 33 kV & < = 66 kV ; Single Circuit | D12: 55 | E12: 7.416198487 | F12: 0 | G12: 0 | H12: 0 | I12: 2 | J12: 0 | K12: 0 | L12: 0 | M12: 0 | N12: 0 | O12: 0 | P12: 0 | Q12: 0 | R12: 0 | S12: 0 | T12: 14 | U12: 0 | V12: 0 | W12: 2 | X12: 4 | Y12: 1 | Z12: 4 | AA12: 0 | AB12: 0 | AC12: 0 | AD12: 0 | AE12: 0 | AF12: 0 | AG12: 0 | AH12: 0 | AI12: 1 | AJ12: 0 | AK12: 0 | AL12: 0 | AM12: 0 | AN12: 0 | AO12: 0 | AP12: 0 | AQ12: 0 | AR12: 0 | AS12: 0 | AT12: 0 | AU12: 0 | AV12: 0 | AW12: 0 | AX12: 0 | AY12: 0 | AZ12: 0 | BA12: 0 | BB12: 0 | BC12: 0 | BD12: 0 | BE12: 0 | BF12: 0 | BG12: 0 | BH12: 0 | BI12: 0 | BJ12: 0 | BK12: 0 | BL12: 0 | BM12: 0 | BN12: 0 | BO12: 0 | BP12: 0 | BQ12: 0 | BR12: 0 | BS12: 0 | BT12: 0 | BU12: 0 | BV12: 0 | BW12: 0 | BX12: 0 | BY12: 0 | BZ12: 0 | CA12: 0 | CB12: 0 | CC12: 0 | CD12: 0 | CE12: 0 | CF12: 0 | CG12: 0 | CH12: 0 | CI12: 0 | CJ12: 0 | CK12: 0 | CL12: 0 | CM12: 0 | CN12: 0 | CO12: 0 | CP12: 0 | CQ12: 0 | CR12: 0 | CS12: 0 | CT12: 0 | CU12: 0 | CV12: 0 | CW12: 0 | CX12: 0 | CY12: 0 | CZ12: 0 | DA12: 0 | DB12: 0 | DC12: 0 | DD12: 0 | DE12: 0 | DF12: 0 | DG12: 0
C13: > 66 kV & < = 132 kV ; Single Circuit | D13: 55 | E13: 7.416198487 | F13: 0 | G13: 4 | H13: 6 | I13: 11 | J13: 11 | K13: 6 | L13: 2 | M13: 58 | N13: 254 | O13: 68 | P13: 3 | Q13: 7 | R13: 13 | S13: 0 | T13: 0 | U13: 62 | V13: 12 | W13: 0 | X13: 0 | Y13: 296 | Z13: 29 | AA13: 0 | AB13: 0 | AC13: 289 | AD13: 1 | AE13: 0 | AF13: 0 | AG13: 77 | AH13: 0 | AI13: 174 | AJ13: 0 | AK13: 2 | AL13: 0 | AM13: 783 | AN13: 102 | AO13: 7 | AP13: 0 | AQ13: 16 | AR13: 3 | AS13: 17 | AT13: 0 | AU13: 0 | AV13: 0 | AW13: 146 | AX13: 0 | AY13: 19 | AZ13: 832 | BA13: 102 | BB13: 221 | BC13: 791 | BD13: 0 | BE13: 0 | BF13: 0 | BG13: 288 | BH13: 979 | BI13: 1082 | BJ13: 0 | BK13: 0 | BL13: 0 | BM13: 0 | BN13: 0 | BO13: 3 | BP13: 225 | BQ13: 718 | BR13: 626 | BS13: 479 | BT13: 0 | BU13: 0 | BV13: 0 | BW13: 0 | BX13: 0 | BY13: 0 | BZ13: 0 | CA13: 0 | CB13: 0 | CC13: 0 | CD13: 0 | CE13: 0 | CF13: 0 | CG13: 0 | CH13: 0 | CI13: 0 | CJ13: 0 | CK13: 0 | CL13: 0 | CM13: 0 | CN13: 0 | CO13: 0 | CP13: 0 | CQ13: 0 | CR13: 0 | CS13: 0 | CT13: 0 | CU13: 0 | CV13: 0 | CW13: 0 | CX13: 0 | CY13: 0 | CZ13: 0 | DA13: 0 | DB13: 0 | DC13: 0 | DD13: 0 | DE13: 0 | DF13: 0 | DG13: 0
C14: > 132 kV & < = 275 kV ; Single Circuit | D14: 55 | E14: 7.416198487 | F14: 0 | G14: 0 | H14: 1 | I14: 12 | J14: 0 | K14: 2 | L14: 4 | M14: 0 | N14: 2 | O14: 3 | P14: 0 | Q14: 0 | R14: 0 | S14: 1 | T14: 0 | U14: 0 | V14: 6 | W14: 0 | X14: 0 | Y14: 0 | Z14: 2 | AA14: 0 | AB14: 0 | AC14: 1 | AD14: 0 | AE14: 0 | AF14: 0 | AG14: 161 | AH14: 0 | AI14: 3 | AJ14: 0 | AK14: 13 | AL14: 6 | AM14: 0 | AN14: 0 | AO14: 4 | AP14: 0 | AQ14: 38 | AR14: 0 | AS14: 0 | AT14: 163 | AU14: 9 | AV14: 0 | AW14: 7 | AX14: 0 | AY14: 0 | AZ14: 0 | BA14: 30 | BB14: 134 | BC14: 4 | BD14: 0 | BE14: 6 | BF14: 0 | BG14: 1 | BH14: 0 | BI14: 34 | BJ14: 1388 | BK14: 52 | BL14: 0 | BM14: 0 | BN14: 0 | BO14: 0 | BP14: 0 | BQ14: 0 | BR14: 0 | BS14: 0 | BT14: 0 | BU14: 0 | BV14: 0 | BW14: 0 | BX14: 0 | BY14: 0 | BZ14: 0 | CA14: 0 | CB14: 0 | CC14: 0 | CD14: 0 | CE14: 0 | CF14: 0 | CG14: 0 | CH14: 0 | CI14: 0 | CJ14: 0 | CK14: 0 | CL14: 0 | CM14: 0 | CN14: 0 | CO14: 0 | CP14: 0 | CQ14: 0 | CR14: 0 | CS14: 0 | CT14: 0 | CU14: 0 | CV14: 0 | CW14: 0 | CX14: 0 | CY14: 0 | CZ14: 0 | DA14: 0 | DB14: 0 | DC14: 0 | DD14: 0 | DE14: 0 | DF14: 0 | DG14: 0
C15: > 275 kV & < = 330 kV ; Single Circuit | D15: 55 | E15: 7.416198487
C16: > 330 kV & < = 500 kV ; Single Circuit | D16: 55 | E16: 7.416198487
C17: > 500 kV ; Single Circuit | D17: 55 | E17: 7.416198487
C18: < = 33 kV; Multiple Circuit | D18: 55 | E18: 7.416198487
C19: > 33 kV & < = 66 kV ; Multiple Circuit | D19: 55 | E19: 7.416198487 | F19: 0 | G19: 0 | H19: 0 | I19: 0 | J19: 0 | K19: 0 | L19: 0 | M19: 0 | N19: 0 | O19: 0 | P19: 0 | Q19: 0 | R19: 0 | S19: 0 | T19: 0 | U19: 0 | V19: 0 | W19: 5 | X19: 2 | Y19: 0 | Z19: 21 | AA19: 0 | AB19: 0 | AC19: 0 | AD19: 0 | AE19: 0 | AF19: 0 | AG19: 0 | AH19: 14 | AI19: 0 | AJ19: 0 | AK19: 0 | AL19: 0 | AM19: 0 | AN19: 0 | AO19: 0 | AP19: 0 | AQ19: 0 | AR19: 0 | AS19: 0 | AT19: 0 | AU19: 0 | AV19: 0 | AW19: 0 | AX19: 0 | AY19: 0 | AZ19: 0 | BA19: 0 | BB19: 0 | BC19: 0 | BD19: 4 | BE19: 0 | BF19: 0 | BG19: 0 | BH19: 0 | BI19: 0 | BJ19: 0 | BK19: 0 | BL19: 0 | BM19: 0 | BN19: 0 | BO19: 0 | BP19: 0 | BQ19: 0 | BR19: 0 | BS19: 0 | BT19: 0 | BU19: 0 | BV19: 0 | BW19: 0 | BX19: 0 | BY19: 0 | BZ19: 0 | CA19: 0 | CB19: 0 | CC19: 0 | CD19: 0 | CE19: 0 | CF19: 0 | CG19: 0 | CH19: 0 | CI19: 0 | CJ19: 0 | CK19: 0 | CL19: 0 | CM19: 0 | CN19: 0 | CO19: 0 | CP19: 0 | CQ19: 0 | CR19: 0 | CS19: 0 | CT19: 0 | CU19: 0 | CV19: 0 | CW19: 0 | CX19: 0 | CY19: 0 | CZ19: 0 | DA19: 0 | DB19: 0 | DC19: 0 | DD19: 0 | DE19: 0 | DF19: 0 | DG19: 0
C20: > 66 kV & < = 132 kV ; Multiple Circuit | D20: 55 | E20: 7.416198487 | F20: 0 | G20: 0 | H20: 1 | I20: 0 | J20: 0 | K20: 10 | L20: 2 | M20: 0 | N20: 0 | O20: 27 | P20: 0 | Q20: 0 | R20: 0 | S20: 0 | T20: 0 | U20: 20 | V20: 23 | W20: 0 | X20: 0 | Y20: 0 | Z20: 0 | AA20: 0 | AB20: 0 | AC20: 0 | AD20: 0 | AE20: 0 | AF20: 0 | AG20: 0 | AH20: 0 | AI20: 0 | AJ20: 0 | AK20: 0 | AL20: 10 | AM20: 0 | AN20: 0 | AO20: 0 | AP20: 16 | AQ20: 0 | AR20: 0 | AS20: 0 | AT20: 0 | AU20: 0 | AV20: 0 | AW20: 7 | AX20: 0 | AY20: 0 | AZ20: 0 | BA20: 0 | BB20: 0 | BC20: 0 | BD20: 0 | BE20: 0 | BF20: 0 | BG20: 1 | BH20: 0 | BI20: 0 | BJ20: 0 | BK20: 0 | BL20: 0 | BM20: 0 | BN20: 0 | BO20: 0 | BP20: 0 | BQ20: 2 | BR20: 0 | BS20: 0 | BT20: 0 | BU20: 0 | BV20: 0 | BW20: 0 | BX20: 0 | BY20: 0 | BZ20: 0 | CA20: 0 | CB20: 0 | CC20: 0 | CD20: 0 | CE20: 0 | CF20: 0 | CG20: 0 | CH20: 0 | CI20: 0 | CJ20: 0 | CK20: 0 | CL20: 0 | CM20: 0 | CN20: 0 | CO20: 0 | CP20: 0 | CQ20: 0 | CR20: 0 | CS20: 0 | CT20: 0 | CU20: 0 | CV20: 0 | CW20: 0 | CX20: 0 | CY20: 0 | CZ20: 0 | DA20: 0 | DB20: 0 | DC20: 0 | DD20: 0 | DE20: 0 | DF20: 0 | DG20: 0
C21: > 132 kV & < = 275 kV ; Multiple Circuit | D21: 55 | E21: 7.416198487 | F21: 1 | G21: 1 | H21: 1 | I21: 0 | J21: 0 | K21: 1 | L21: 0 | M21: 1 | N21: 4 | O21: 0 | P21: 17 | Q21: 0 | R21: 0 | S21: 0 | T21: 0 | U21: 0 | V21: 15 | W21: 0 | X21: 0 | Y21: 0 | Z21: 0 | AA21: 0 | AB21: 0 | AC21: 142 | AD21: 0 | AE21: 0 | AF21: 915 | AG21: 136 | AH21: 0 | AI21: 50 | AJ21: 0 | AK21: 539 | AL21: 8 | AM21: 0 | AN21: 19 | AO21: 15 | AP21: 0 | AQ21: 0 | AR21: 0 | AS21: 84 | AT21: 7 | AU21: 0 | AV21: 6 | AW21: 0 | AX21: 0 | AY21: 0 | AZ21: 0 | BA21: 0 | BB21: 58 | BC21: 129 | BD21: 0 | BE21: 0 | BF21: 0 | BG21: 0 | BH21: 0 | BI21: 0 | BJ21: 0 | BK21: 0 | BL21: 0 | BM21: 0 | BN21: 0 | BO21: 0 | BP21: 0 | BQ21: 0 | BR21: 0 | BS21: 0 | BT21: 0 | BU21: 0 | BV21: 0 | BW21: 0 | BX21: 0 | BY21: 0 | BZ21: 0 | CA21: 0 | CB21: 0 | CC21: 0 | CD21: 0 | CE21: 0 | CF21: 0 | CG21: 0 | CH21: 0 | CI21: 0 | CJ21: 0 | CK21: 0 | CL21: 0 | CM21: 0 | CN21: 0 | CO21: 0 | CP21: 0 | CQ21: 0 | CR21: 0 | CS21: 0 | CT21: 0 | CU21: 0 | CV21: 0 | CW21: 0 | CX21: 0 | CY21: 0 | CZ21: 0 | DA21: 0 | DB21: 0 | DC21: 0 | DD21: 0 | DE21: 0 | DF21: 0 | DG21: 0
C22: > 275 kV & < = 330 kV ; Multiple Circuit | D22: 55 | E22: 7.416198487
C23: > 330 kV & < = 500 kV ; Multiple Circuit | D23: 55 | E23: 7.416198487
C24: > 500 kV ; Multiple Circuit | D24: 55 | E24: 7.416198487
C25: Other | D25: 55 | E25: 7.416198487
B26: TRANSMISSION TOWER SUPPORT STRUCTURES BY: Highest operating voltage; Circuit configuration | C26: < = 33 kV; Single Circuit
C27: > 33 kV & < = 66 kV ; Single Circuit
C28: > 66 kV & < = 132 kV ; Single Circuit
C29: > 132 kV & < = 275 kV ; Single Circuit
C30: > 275 kV & < = 330 kV ; Single Circuit
C31: > 330 kV & < = 500 kV ; Single Circuit
C32: > 500 kV ; Single Circuit
C33: < = 33 kV; Multiple Circuit
C34: > 33 kV & < = 66 kV ; Multiple Circuit
C35: > 66 kV & < = 132 kV ; Multiple Circuit
C36: > 132 kV & < = 275 kV ; Multiple Circuit
C37: > 275 kV & < = 330 kV ; Multiple Circuit
C38: > 330 kV & < = 500 kV ; Multiple Circuit
C39: > 500 kV ; Multiple Circuit
C40: Other
B41: CONDUCTORS BY: Voltage; Maximum continuous rating | C41: < = 33 kV ; < = 100 MVA | D41: 55 | E41: 7.416198487
C42: < = 33 kV ; > 100 MVA & < = 400 MVA | D42: 55 | E42: 7.416198487
C43: < = 33 kV ; > 400 MVA | D43: 55 | E43: 7.416198487
C44: > 33 kV & < = 66 kV ; < = 100 MVA | D44: 55 | E44: 7.416198487 | H44: 0 | I44: 0 | J44: 0 | K44: 0 | L44: 0 | M44: 0 | N44: 0 | O44: 0 | P44: 0 | Q44: 0 | R44: 0 | S44: 0 | T44: 0 | U44: 0 | V44: 0 | W44: 0 | X44: 0 | Y44: 0 | Z44: 0 | AA44: 0 | AB44: 0 | AC44: 0 | AD44: 0 | AE44: 0 | AF44: 0 | AG44: 0 | AH44: 0 | AI44: 0 | AJ44: 0 | AK44: 0 | AL44: 0 | AM44: 0 | AN44: 0 | AO44: 0 | AP44: 0 | AQ44: 0 | AR44: 0 | AS44: 0 | AT44: 0 | AU44: 0 | AV44: 0 | AW44: 0 | AX44: 0 | AY44: 0 | AZ44: 0 | BA44: 0 | BB44: 0 | BC44: 0 | BD44: 2.792 | BE44: 0 | BF44: 0 | BG44: 0 | BH44: 0 | BI44: 0 | BJ44: 0 | BK44: 0 | BL44: 0 | BM44: 0 | BN44: 0 | BO44: 0 | BP44: 0 | BQ44: 0 | BR44: 0 | BS44: 0 | BT44: 0 | BU44: 0 | BV44: 0 | BW44: 0 | BX44: 0 | BY44: 0 | BZ44: 0 | CA44: 0 | CB44: 0 | CC44: 0 | CD44: 0 | CE44: 0 | CF44: 0 | CG44: 0 | CH44: 0 | CI44: 0 | CJ44: 0 | CK44: 0 | CL44: 0 | CM44: 0 | CN44: 0 | CO44: 0 | CP44: 0 | CQ44: 0 | CR44: 0 | CS44: 0 | CT44: 0 | CU44: 0 | CV44: 0 | CW44: 0 | CX44: 0 | CY44: 0 | CZ44: 0 | DA44: 0 | DB44: 0 | DC44: 0 | DD44: 0 | DE44: 0 | DF44: 0 | DG44: 0
C45: > 33 kV & < = 66 kV ; > 100 MVA & < = 400 MVA | D45: 55 | E45: 7.416198487 | H45: 0 | I45: 0 | J45: 0 | K45: 0 | L45: 0 | M45: 0 | N45: 0 | O45: 1.126 | P45: 0 | Q45: 0 | R45: 0 | S45: 0 | T45: 0 | U45: 2.641 | V45: 0 | W45: 0 | X45: 0 | Y45: 2.349 | Z45: 0 | AA45: 0 | AB45: 0 | AC45: 0 | AD45: 0 | AE45: 0 | AF45: 0 | AG45: 0 | AH45: 0 | AI45: 4.1566 | AJ45: 0 | AK45: 0 | AL45: 0 | AM45: 0 | AN45: 0 | AO45: 0 | AP45: 0 | AQ45: 0 | AR45: 0 | AS45: 0 | AT45: 0 | AU45: 0 | AV45: 0 | AW45: 0 | AX45: 0 | AY45: 0 | AZ45: 0 | BA45: 0 | BB45: 0 | BC45: 0 | BD45: 3.096 | BE45: 0 | BF45: 0 | BG45: 0 | BH45: 0 | BI45: 0 | BJ45: 0 | BK45: 0 | BL45: 0 | BM45: 0 | BN45: 0 | BO45: 0 | BP45: 0 | BQ45: 0 | BR45: 0 | BS45: 0 | BT45: 0 | BU45: 0 | BV45: 0 | BW45: 0 | BX45: 0 | BY45: 0 | BZ45: 0 | CA45: 0 | CB45: 0 | CC45: 0 | CD45: 0 | CE45: 0 | CF45: 0 | CG45: 0 | CH45: 0 | CI45: 0 | CJ45: 0 | CK45: 0 | CL45: 0 | CM45: 0 | CN45: 0 | CO45: 0 | CP45: 0 | CQ45: 0 | CR45: 0 | CS45: 0 | CT45: 0 | CU45: 0 | CV45: 0 | CW45: 0 | CX45: 0 | CY45: 0 | CZ45: 0 | DA45: 0 | DB45: 0 | DC45: 0 | DD45: 0 | DE45: 0 | DF45: 0 | DG45: 0
C46: > 33 kV & < = 66 kV ; > 400 MVA | D46: 55 | E46: 7.416198487
C47: > 66 kV & < = 132 kV ; < = 100 MVA | D47: 55 | E47: 7.416198487 | H47: 0 | I47: 0 | J47: 0 | K47: 0 | L47: 0 | M47: 0 | N47: 0 | O47: 0 | P47: 0 | Q47: 0 | R47: 0 | S47: 0 | T47: 0 | U47: 0 | V47: 0 | W47: 0 | X47: 0 | Y47: 0 | Z47: 0 | AA47: 0 | AB47: 0 | AC47: 0 | AD47: 0 | AE47: 0 | AF47: 0 | AG47: 0 | AH47: 0 | AI47: 0 | AJ47: 0 | AK47: 0.7271 | AL47: 5.246 | AM47: 0 | AN47: 0 | AO47: 0 | AP47: 6.8 | AQ47: 0 | AR47: 0 | AS47: 4.5962 | AT47: 0 | AU47: 0 | AV47: 0 | AW47: 0 | AX47: 0 | AY47: 0 | AZ47: 0 | BA47: 0 | BB47: 0 | BC47: 70.777 | BD47: 0 | BE47: 0 | BF47: 0 | BG47: 0 | BH47: 301.2775 | BI47: 232.564 | BJ47: 0 | BK47: 0 | BL47: 0 | BM47: 0 | BN47: 0 | BO47: 0 | BP47: 4.1557 | BQ47: 16.7881 | BR47: 0 | BS47: 23.641 | BT47: 26.154 | BU47: 0 | BV47: 0 | BW47: 0 | BX47: 0 | BY47: 0 | BZ47: 0 | CA47: 0 | CB47: 0 | CC47: 0 | CD47: 0 | CE47: 0 | CF47: 0 | CG47: 0 | CH47: 0 | CI47: 0 | CJ47: 0 | CK47: 0 | CL47: 0 | CM47: 0 | CN47: 0 | CO47: 0 | CP47: 0 | CQ47: 0 | CR47: 0 | CS47: 0 | CT47: 0 | CU47: 0 | CV47: 0 | CW47: 0 | CX47: 0 | CY47: 0 | CZ47: 0 | DA47: 0 | DB47: 0 | DC47: 0 | DD47: 0 | DE47: 0 | DF47: 0 | DG47: 0
C48: > 66 kV & < = 132 kV ; > 100 MVA & < = 400 MVA | D48: 55 | E48: 7.416198487 | H48: 0 | I48: 0 | J48: 0 | K48: 0.1949 | L48: 0 | M48: 0 | N48: 42.158112 | O48: 24.146139 | P48: 0 | Q48: 0.519 | R48: 0 | S48: 0 | T48: 0 | U48: 10.8776 | V48: 0 | W48: 7.441 | X48: 0 | Y48: 0 | Z48: 2.6461 | AA48: 80.5854 | AB48: 0 | AC48: 90.5663 | AD48: 9.948 | AE48: 0 | AF48: 0 | AG48: 20.7196 | AH48: 0 | AI48: 37.275 | AJ48: 0 | AK48: 0 | AL48: 1.534 | AM48: 213.2149 | AN48: 0 | AO48: 0 | AP48: 13.136 | AQ48: 0 | AR48: 0.854 | AS48: 0 | AT48: 0 | AU48: 0 | AV48: 0 | AW48: 47.3775 | AX48: 0 | AY48: 10.123 | AZ48: 351.3847 | BA48: 26.54392 | BB48: 87.1334 | BC48: 0 | BD48: 262.955555 | BE48: 0 | BF48: 0 | BG48: 118.4284 | BH48: 47.3051 | BI48: 0 | BJ48: 180.4235 | BK48: 5.5716 | BL48: 0 | BM48: 0 | BN48: 0 | BO48: 0.336 | BP48: 0 | BQ48: 93.27024 | BR48: 143.4008 | BS48: 245.1426 | BT48: 6.879 | BU48: 0 | BV48: 0 | BW48: 0 | BX48: 0 | BY48: 0 | BZ48: 0 | CA48: 0 | CB48: 0 | CC48: 0 | CD48: 0 | CE48: 0 | CF48: 0 | CG48: 0 | CH48: 0 | CI48: 0 | CJ48: 0 | CK48: 0 | CL48: 0 | CM48: 0 | CN48: 0 | CO48: 0 | CP48: 0 | CQ48: 0 | CR48: 0 | CS48: 0 | CT48: 0 | CU48: 0 | CV48: 0 | CW48: 0 | CX48: 0 | CY48: 0 | CZ48: 0 | DA48: 0 | DB48: 0 | DC48: 0 | DD48: 0 | DE48: 0 | DF48: 0 | DG48: 0
C49: > 66 kV & < = 132 kV ; > 400 MVA | D49: 55 | E49: 7.416198487
C50: > 132 kV & < = 275 kV ; < = 200 MVA | D50: 55 | E50: 7.416198487
C51: > 132 kV & < = 275 kV ; > 200 MVA & < = 600 MVA | D51: 55 | E51: 7.416198487 | H51: 0 | I51: 0 | J51: 1.745665 | K51: 0 | L51: 0 | M51: 0 | N51: 0 | O51: 0 | P51: 14.15256 | Q51: 0 | R51: 0 | S51: 0 | T51: 0 | U51: 0 | V51: 8.003 | W51: 0 | X51: 0 | Y51: 0 | Z51: 0 | AA51: 0 | AB51: 0 | AC51: 0 | AD51: 0 | AE51: 0 | AF51: 0 | AG51: 0 | AH51: 0 | AI51: 0 | AJ51: 0 | AK51: 5.2315 | AL51: 5.533 | AM51: 0 | AN51: 0 | AO51: 0 | AP51: 0 | AQ51: 9.876 | AR51: 0 | AS51: 0 | AT51: 63.94284 | AU51: 0 | AV51: 0 | AW51: 0 | AX51: 0 | AY51: 0 | AZ51: 0 | BA51: 153.7945 | BB51: 12.2776 | BC51: 0 | BD51: 0 | BE51: 0 | BF51: 0 | BG51: 0 | BH51: 0 | BI51: 0 | BJ51: 376.951528 | BK51: 0 | BL51: 0 | BM51: 0 | BN51: 0 | BO51: 0 | BP51: 0 | BQ51: 0 | BR51: 0 | BS51: 0 | BT51: 0 | BU51: 0 | BV51: 0 | BW51: 0 | BX51: 0 | BY51: 0 | BZ51: 0 | CA51: 0 | CB51: 0 | CC51: 0 | CD51: 0 | CE51: 0 | CF51: 0 | CG51: 0 | CH51: 0 | CI51: 0 | CJ51: 0 | CK51: 0 | CL51: 0 | CM51: 0 | CN51: 0 | CO51: 0 | CP51: 0 | CQ51: 0 | CR51: 0 | CS51: 0 | CT51: 0 | CU51: 0 | CV51: 0 | CW51: 0 | CX51: 0 | CY51: 0 | CZ51: 0 | DA51: 0 | DB51: 0 | DC51: 0 | DD51: 0 | DE51: 0 | DF51: 0 | DG51: 0
C52: > 132 kV & < = 275 kV ; > 600 MVA | D52: 55 | E52: 7.416198487 | H52: 0 | I52: 0 | J52: 0 | K52: 0 | L52: 0 | M52: 0 | N52: 0 | O52: 0 | P52: 0 | Q52: 0 | R52: 0 | S52: 0 | T52: 0 | U52: 0 | V52: 0 | W52: 10.993 | X52: 0 | Y52: 0 | Z52: 0 | AA52: 0 | AB52: 0 | AC52: 122.1468 | AD52: 0 | AE52: 0 | AF52: 640.5986 | AG52: 200.47782 | AH52: 0 | AI52: 32.094 | AJ52: 0 | AK52: 640.9313 | AL52: 0 | AM52: 0 | AN52: 0 | AO52: 23.54507 | AP52: 0 | AQ52: 0 | AR52: 0 | AS52: 0 | AT52: 0 | AU52: 0 | AV52: 0 | AW52: 21.798 | AX52: 0 | AY52: 0 | AZ52: 0 | BA52: 5.807645 | BB52: 129.14586 | BC52: 113.1116 | BD52: 0 | BE52: 0 | BF52: 0 | BG52: 0 | BH52: 0 | BI52: 0 | BJ52: 0 | BK52: 19.463 | BL52: 0 | BM52: 0 | BN52: 0 | BO52: 0 | BP52: 0 | BQ52: 0 | BR52: 0 | BS52: 0 | BT52: 0 | BU52: 0 | BV52: 0 | BW52: 0 | BX52: 0 | BY52: 0 | BZ52: 0 | CA52: 0 | CB52: 0 | CC52: 0 | CD52: 0 | CE52: 0 | CF52: 0 | CG52: 0 | CH52: 0 | CI52: 0 | CJ52: 0 | CK52: 0 | CL52: 0 | CM52: 0 | CN52: 0 | CO52: 0 | CP52: 0 | CQ52: 0 | CR52: 0 | CS52: 0 | CT52: 0 | CU52: 0 | CV52: 0 | CW52: 0 | CX52: 0 | CY52: 0 | CZ52: 0 | DA52: 0 | DB52: 0 | DC52: 0 | DD52: 0 | DE52: 0 | DF52: 0 | DG52: 0
C53: > 275 kV & < = 330 kV ; < = 800 MVA | D53: 55 | E53: 7.416198487
C54: > 275 kV & < = 330 kV ; > 800 MVA & < = 1200 MVA | D54: 55 | E54: 7.416198487
C55: > 275 kV & < = 330 kV ; > 1200 MVA | D55: 55 | E55: 7.416198487
C56: > 330 kV & < = 500 kV ; < = 1000 MVA | D56: 55 | E56: 7.416198487
C57: > 330 kV & < = 500 kV ; > 1000 MVA & < = 1500 MVA | D57: 55 | E57: 7.416198487
C58: > 330 kV & < = 500 kV ; > 1500 MVA | D58: 55 | E58: 7.416198487
C59: > 500 kV ; < = 2000 MVA | D59: 55 | E59: 7.416198487
C60: > 500 kV ; > 2000 MVA & < = 3000 MVA | D60: 55 | E60: 7.416198487
C61: > 500 kV ; > 3000 MVA | D61: 55 | E61: 7.416198487
C62: Other | D62: 55 | E62: 7.416198487
B63: TRANSMISSION CABLES BY: Highest operating voltage; Insulation type | C63: < = 33 kV; Oil Filled | D63: 40 | E63: 6.32455532
C64: > 33 kV & < = 66 kV ; Oil Filled | D64: 40 | E64: 6.32455532
C65: > 66 kV & < = 132 kV ; Oil Filled | D65: 40 | E65: 6.32455532
C66: > 132 kV & < = 275 kV ; Oil Filled | D66: 40 | E66: 6.32455532 | AL66: 7.9
C67: > 275 kV & < = 330 kV ; Oil Filled | D67: 40 | E67: 6.32455532
C68: > 330 kV & < = 500 kV ; Oil Filled | D68: 40 | E68: 6.32455532
C69: > 500 kV ; Oil Filled | D69: 40 | E69: 6.32455532
C70: < = 33 kV; XLPE Insulated | D70: 40 | E70: 6.32455532
C71: > 33 kV & < = 66 kV ; XLPE Insulated | D71: 40 | E71: 6.32455532 | I71: 0.3 | O71: 0.6
C72: > 66 kV & < = 132 kV ; XLPE Insulated | D72: 40 | E72: 6.32455532
C73: > 132 kV & < = 275 kV ; XLPE Insulated | D73: 40 | E73: 6.32455532 | J73: 18.4
C74: > 275 kV & < = 330 kV ; XLPE Insulated | D74: 40 | E74: 6.32455532
C75: > 330 kV & < = 500 kV ; XLPE Insulated | D75: 40 | E75: 6.32455532
C76: > 500 kV ; XLPE Insulated | D76: 40 | E76: 6.32455532
C77: < = 33 kV; Other Insulated | D77: 40 | E77: 6.32455532
C78: > 33 kV & < = 66 kV ; Other Insulated | D78: 40 | E78: 6.32455532
C79: > 66 kV & < = 132 kV ; Other Insulated | D79: 40 | E79: 6.32455532
C80: > 132 kV & < = 275 kV ; Other Insulated | D80: 40 | E80: 6.32455532
C81: > 275 kV & < = 330 kV ; Other Insulated | D81: 40 | E81: 6.32455532
C82: > 330 kV & < = 500 kV ; Other Insulated | D82: 40 | E82: 6.32455532
C83: > 500 kV ; Other Insulated | D83: 40 | E83: 6.32455532
C84: Other | D84: 40 | E84: 6.32455532
B85: SUBSTATION SWITCHBAYS BY: Highest operating voltage; Switch type | C85: < = 33 kV; Air Insulated circuit Breaker | D85: 42 | E85: 6.480740698 | F85: 0 | G85: 0 | H85: 3 | I85: 7 | J85: 1 | K85: 6 | L85: 6 | M85: 2 | N85: 0 | O85: 0 | P85: 6 | Q85: 6 | R85: 4 | S85: 7 | T85: 2 | U85: 4 | V85: 0 | W85: 2 | X85: 0 | Y85: 0 | Z85: 0 | AA85: 0 | AB85: 0 | AC85: 0 | AD85: 1 | AE85: 2 | AF85: 0 | AG85: 0 | AH85: 2 | AI85: 0 | AJ85: 0 | AK85: 0 | AL85: 0 | AM85: 0 | AN85: 2 | AO85: 0 | AP85: 0 | AQ85: 0 | AR85: 0 | AS85: 0 | AT85: 0 | AU85: 0 | AV85: 2 | AW85: 0 | AX85: 0 | AY85: 0 | AZ85: 0 | BA85: 0 | BB85: 0 | BC85: 0 | BD85: 3 | BE85: 1 | BF85: 0 | BG85: 0 | BH85: 0 | BI85: 0 | BJ85: 0 | BK85: 0 | BL85: 4 | BM85: 0 | BN85: 0 | BO85: 0 | BP85: 0 | BQ85: 0 | BR85: 0 | BS85: 0 | BT85: 0 | BU85: 0 | BV85: 0 | BW85: 0 | BX85: 0 | BY85: 0 | BZ85: 0 | CA85: 0 | CB85: 0 | CC85: 0 | CD85: 0 | CE85: 0 | CF85: 0 | CG85: 0 | CH85: 0 | CI85: 0 | CJ85: 0 | CK85: 0 | CL85: 0 | CM85: 0 | CN85: 0 | CO85: 0 | CP85: 0 | CQ85: 0 | CR85: 0 | CS85: 0 | CT85: 0 | CU85: 0 | CV85: 0 | CW85: 0 | CX85: 0 | CY85: 0 | CZ85: 0 | DA85: 0 | DB85: 0 | DC85: 0 | DD85: 0 | DE85: 0 | DF85: 0 | DG85: 0
C86: > 33 kV & < = 66 kV ; Air Insulated circuit Breaker | D86: 42 | E86: 6.480740698 | F86: 1 | G86: 0 | H86: 0 | I86: 1 | J86: 8 | K86: 2 | L86: 0 | M86: 0 | N86: 1 | O86: 0 | P86: 2 | Q86: 2 | R86: 0 | S86: 2 | T86: 3 | U86: 8 | V86: 2 | W86: 0 | X86: 23 | Y86: 0 | Z86: 0 | AA86: 0 | AB86: 0 | AC86: 1 | AD86: 0 | AE86: 0 | AF86: 0 | AG86: 2 | AH86: 0 | AI86: 0 | AJ86: 0 | AK86: 2 | AL86: 1 | AM86: 0 | AN86: 0 | AO86: 0 | AP86: 0 | AQ86: 0 | AR86: 0 | AS86: 1 | AT86: 0 | AU86: 0 | AV86: 0 | AW86: 0 | AX86: 0 | AY86: 0 | AZ86: 1 | BA86: 1 | BB86: 1 | BC86: 0 | BD86: 0 | BE86: 1 | BF86: 0 | BG86: 0 | BH86: 0 | BI86: 0 | BJ86: 0 | BK86: 0 | BL86: 0 | BM86: 0 | BN86: 0 | BO86: 0 | BP86: 0 | BQ86: 0 | BR86: 0 | BS86: 0 | BT86: 0 | BU86: 0 | BV86: 0 | BW86: 0 | BX86: 0 | BY86: 0 | BZ86: 0 | CA86: 0 | CB86: 0 | CC86: 0 | CD86: 0 | CE86: 0 | CF86: 0 | CG86: 0 | CH86: 0 | CI86: 0 | CJ86: 0 | CK86: 0 | CL86: 0 | CM86: 0 | CN86: 0 | CO86: 0 | CP86: 0 | CQ86: 0 | CR86: 0 | CS86: 0 | CT86: 0 | CU86: 0 | CV86: 0 | CW86: 0 | CX86: 0 | CY86: 0 | CZ86: 0 | DA86: 0 | DB86: 0 | DC86: 0 | DD86: 0 | DE86: 0 | DF86: 0 | DG86: 0
C87: > 66 kV & < = 132 kV ; Air Insulated circuit Breaker | D87: 42 | E87: 6.480740698 | F87: 6 | G87: 1 | H87: 19 | I87: 13 | J87: 14 | K87: 4 | L87: 12 | M87: 2 | N87: 4 | O87: 8 | P87: 12 | Q87: 16 | R87: 2 | S87: 10 | T87: 8 | U87: 11 | V87: 8 | W87: 5 | X87: 0 | Y87: 0 | Z87: 0 | AA87: 0 | AB87: 0 | AC87: 1 | AD87: 1 | AE87: 5 | AF87: 3 | AG87: 0 | AH87: 3 | AI87: 1 | AJ87: 1 | AK87: 2 | AL87: 0 | AM87: 3 | AN87: 9 | AO87: 0 | AP87: 0 | AQ87: 0 | AR87: 2 | AS87: 0 | AT87: 0 | AU87: 0 | AV87: 0 | AW87: 0 | AX87: 3 | AY87: 0 | AZ87: 0 | BA87: 0 | BB87: 1 | BC87: 5 | BD87: 0 | BE87: 0 | BF87: 0 | BG87: 0 | BH87: 0 | BI87: 0 | BJ87: 0 | BK87: 0 | BL87: 0 | BM87: 0 | BN87: 0 | BO87: 0 | BP87: 0 | BQ87: 0 | BR87: 0 | BS87: 0 | BT87: 0 | BU87: 0 | BV87: 0 | BW87: 0 | BX87: 0 | BY87: 0 | BZ87: 0 | CA87: 0 | CB87: 0 | CC87: 0 | CD87: 0 | CE87: 0 | CF87: 0 | CG87: 0 | CH87: 0 | CI87: 0 | CJ87: 0 | CK87: 0 | CL87: 0 | CM87: 0 | CN87: 0 | CO87: 0 | CP87: 0 | CQ87: 0 | CR87: 0 | CS87: 0 | CT87: 0 | CU87: 0 | CV87: 0 | CW87: 0 | CX87: 0 | CY87: 0 | CZ87: 0 | DA87: 0 | DB87: 0 | DC87: 0 | DD87: 0 | DE87: 0 | DF87: 0 | DG87: 0
C88: > 132 kV & < = 275 kV ; Air Insulated circuit Breaker | D88: 42 | E88: 6.480740698 | F88: 5 | G88: 1 | H88: 5 | I88: 4 | J88: 9 | K88: 4 | L88: 3 | M88: 1 | N88: 19 | O88: 13 | P88: 10 | Q88: 11 | R88: 6 | S88: 3 | T88: 6 | U88: 3 | V88: 9 | W88: 1 | X88: 0 | Y88: 0 | Z88: 0 | AA88: 3 | AB88: 0 | AC88: 3 | AD88: 1 | AE88: 0 | AF88: 0 | AG88: 0 | AH88: 16 | AI88: 7 | AJ88: 2 | AK88: 0 | AL88: 4 | AM88: 5 | AN88: 4 | AO88: 6 | AP88: 0 | AQ88: 2 | AR88: 7 | AS88: 0 | AT88: 0 | AU88: 0 | AV88: 0 | AW88: 1 | AX88: 0 | AY88: 0 | AZ88: 0 | BA88: 0 | BB88: 0 | BC88: 0 | BD88: 0 | BE88: 0 | BF88: 0 | BG88: 0 | BH88: 0 | BI88: 0 | BJ88: 0 | BK88: 0 | BL88: 0 | BM88: 0 | BN88: 0 | BO88: 0 | BP88: 0 | BQ88: 0 | BR88: 0 | BS88: 0 | BT88: 0 | BU88: 0 | BV88: 0 | BW88: 0 | BX88: 0 | BY88: 0 | BZ88: 0 | CA88: 0 | CB88: 0 | CC88: 0 | CD88: 0 | CE88: 0 | CF88: 0 | CG88: 0 | CH88: 0 | CI88: 0 | CJ88: 0 | CK88: 0 | CL88: 0 | CM88: 0 | CN88: 0 | CO88: 0 | CP88: 0 | CQ88: 0 | CR88: 0 | CS88: 0 | CT88: 0 | CU88: 0 | CV88: 0 | CW88: 0 | CX88: 0 | CY88: 0 | CZ88: 0 | DA88: 0 | DB88: 0 | DC88: 0 | DD88: 0 | DE88: 0 | DF88: 0 | DG88: 0
C89: > 275 kV & < = 330 kV ; Air Insulated circuit Breaker | D89: 42 | E89: 6.480740698
C90: > 330 kV & < = 500 kV ; Air Insulated circuit Breaker | D90: 42 | E90: 6.480740698
C91: > 500 kV ; Air Insulated circuit Breaker | D91: 42 | E91: 6.480740698
C92: < = 33 kV; Air Insulated Isolators / Earth Switch | D92: 44.8 | E92: 6.693280212 | F92: 6 | G92: 0 | H92: 0 | I92: 0 | J92: 0 | K92: 2 | L92: 1 | M92: 0 | N92: 0 | O92: 0 | P92: 0 | Q92: 0 | R92: 0 | S92: 0 | T92: 0 | U92: 0 | V92: 0 | W92: 0 | X92: 0 | Y92: 0 | Z92: 0 | AA92: 0 | AB92: 0 | AC92: 0 | AD92: 0 | AE92: 0 | AF92: 0 | AG92: 1 | AH92: 1 | AI92: 0 | AJ92: 0 | AK92: 2 | AL92: 0 | AM92: 0 | AN92: 4 | AO92: 0 | AP92: 0 | AQ92: 0 | AR92: 0 | AS92: 0 | AT92: 0 | AU92: 0 | AV92: 3 | AW92: 0 | AX92: 9 | AY92: 4 | AZ92: 3 | BA92: 1 | BB92: 6 | BC92: 2 | BD92: 0 | BE92: 6 | BF92: 2 | BG92: 0 | BH92: 0 | BI92: 0 | BJ92: 0 | BK92: 0 | BL92: 0 | BM92: 0 | BN92: 0 | BO92: 0 | BP92: 0 | BQ92: 0 | BR92: 0 | BS92: 0 | BT92: 0 | BU92: 0 | BV92: 0 | BW92: 0 | BX92: 0 | BY92: 0 | BZ92: 0 | CA92: 0 | CB92: 0 | CC92: 0 | CD92: 0 | CE92: 0 | CF92: 0 | CG92: 0 | CH92: 0 | CI92: 0 | CJ92: 0 | CK92: 0 | CL92: 0 | CM92: 0 | CN92: 0 | CO92: 0 | CP92: 0 | CQ92: 0 | CR92: 0 | CS92: 0 | CT92: 0 | CU92: 0 | CV92: 0 | CW92: 0 | CX92: 0 | CY92: 0 | CZ92: 0 | DA92: 0 | DB92: 0 | DC92: 0 | DD92: 0 | DE92: 0 | DF92: 0 | DG92: 0
C93: > 33 kV & < = 66 kV ; Air Insulated Isolators / Earth Switch | D93: 44.8 | E93: 6.693280212 | F93: 0 | G93: 0 | H93: 0 | I93: 0 | J93: 2 | K93: 0 | L93: 0 | M93: 0 | N93: 1 | O93: 0 | P93: 5 | Q93: 1 | R93: 2 | S93: 0 | T93: 5 | U93: 0 | V93: 8 | W93: 0 | X93: 22 | Y93: 0 | Z93: 0 | AA93: 0 | AB93: 0 | AC93: 0 | AD93: 0 | AE93: 0 | AF93: 0 | AG93: 0 | AH93: 0 | AI93: 0 | AJ93: 8 | AK93: 0 | AL93: 0 | AM93: 1 | AN93: 0 | AO93: 0 | AP93: 0 | AQ93: 0 | AR93: 0 | AS93: 0 | AT93: 0 | AU93: 0 | AV93: 0 | AW93: 0 | AX93: 3 | AY93: 17 | AZ93: 0 | BA93: 12 | BB93: 3 | BC93: 0 | BD93: 13 | BE93: 0 | BF93: 0 | BG93: 0 | BH93: 0 | BI93: 0 | BJ93: 0 | BK93: 0 | BL93: 0 | BM93: 0 | BN93: 0 | BO93: 0 | BP93: 0 | BQ93: 0 | BR93: 0 | BS93: 0 | BT93: 0 | BU93: 0 | BV93: 0 | BW93: 0 | BX93: 0 | BY93: 0 | BZ93: 0 | CA93: 0 | CB93: 0 | CC93: 0 | CD93: 0 | CE93: 0 | CF93: 0 | CG93: 0 | CH93: 0 | CI93: 0 | CJ93: 0 | CK93: 0 | CL93: 0 | CM93: 0 | CN93: 0 | CO93: 0 | CP93: 0 | CQ93: 0 | CR93: 0 | CS93: 0 | CT93: 0 | CU93: 0 | CV93: 0 | CW93: 0 | CX93: 0 | CY93: 0 | CZ93: 0 | DA93: 0 | DB93: 0 | DC93: 0 | DD93: 0 | DE93: 0 | DF93: 0 | DG93: 0
C94: > 66 kV & < = 132 kV ; Air Insulated Isolators / Earth Switch | D94: 44.8 | E94: 6.693280212 | F94: 7 | G94: 0 | H94: 31 | I94: 37 | J94: 14 | K94: 10 | L94: 29 | M94: 6 | N94: 7 | O94: 1 | P94: 26 | Q94: 50 | R94: 12 | S94: 9 | T94: 18 | U94: 0 | V94: 4 | W94: 12 | X94: 0 | Y94: 0 | Z94: 0 | AA94: 0 | AB94: 3 | AC94: 0 | AD94: 1 | AE94: 17 | AF94: 0 | AG94: 1 | AH94: 9 | AI94: 8 | AJ94: 17 | AK94: 3 | AL94: 1 | AM94: 14 | AN94: 11 | AO94: 8 | AP94: 0 | AQ94: 3 | AR94: 0 | AS94: 10 | AT94: 1 | AU94: 0 | AV94: 13 | AW94: 21 | AX94: 19 | AY94: 32 | AZ94: 30 | BA94: 13 | BB94: 9 | BC94: 4 | BD94: 9 | BE94: 19 | BF94: 2 | BG94: 13 | BH94: 0 | BI94: 0 | BJ94: 0 | BK94: 0 | BL94: 0 | BM94: 0 | BN94: 0 | BO94: 0 | BP94: 1 | BQ94: 0 | BR94: 0 | BS94: 0 | BT94: 0 | BU94: 0 | BV94: 0 | BW94: 0 | BX94: 0 | BY94: 0 | BZ94: 0 | CA94: 0 | CB94: 0 | CC94: 0 | CD94: 0 | CE94: 0 | CF94: 0 | CG94: 0 | CH94: 0 | CI94: 0 | CJ94: 0 | CK94: 0 | CL94: 0 | CM94: 0 | CN94: 0 | CO94: 0 | CP94: 0 | CQ94: 0 | CR94: 0 | CS94: 0 | CT94: 0 | CU94: 0 | CV94: 0 | CW94: 0 | CX94: 0 | CY94: 0 | CZ94: 0 | DA94: 0 | DB94: 0 | DC94: 0 | DD94: 0 | DE94: 0 | DF94: 0 | DG94: 0
C95: > 132 kV & < = 275 kV ; Air Insulated Isolators / Earth Switch | D95: 44.8 | E95: 6.693280212 | F95: 9 | G95: 0 | H95: 20 | I95: 5 | J95: 13 | K95: 11 | L95: 3 | M95: 1 | N95: 42 | O95: 0 | P95: 26 | Q95: 9 | R95: 1 | S95: 0 | T95: 4 | U95: 2 | V95: 26 | W95: 0 | X95: 0 | Y95: 0 | Z95: 0 | AA95: 1 | AB95: 0 | AC95: 3 | AD95: 0 | AE95: 3 | AF95: 0 | AG95: 4 | AH95: 37 | AI95: 18 | AJ95: 0 | AK95: 0 | AL95: 13 | AM95: 17 | AN95: 0 | AO95: 29 | AP95: 0 | AQ95: 7 | AR95: 9 | AS95: 0 | AT95: 0 | AU95: 3 | AV95: 8 | AW95: 0 | AX95: 16 | AY95: 0 | AZ95: 0 | BA95: 2 | BB95: 27 | BC95: 16 | BD95: 53 | BE95: 0 | BF95: 0 | BG95: 0 | BH95: 0 | BI95: 0 | BJ95: 0 | BK95: 0 | BL95: 0 | BM95: 0 | BN95: 0 | BO95: 0 | BP95: 0 | BQ95: 14 | BR95: 0 | BS95: 0 | BT95: 0 | BU95: 0 | BV95: 0 | BW95: 0 | BX95: 0 | BY95: 0 | BZ95: 0 | CA95: 0 | CB95: 0 | CC95: 0 | CD95: 0 | CE95: 0 | CF95: 0 | CG95: 0 | CH95: 0 | CI95: 0 | CJ95: 0 | CK95: 0 | CL95: 0 | CM95: 0 | CN95: 0 | CO95: 0 | CP95: 0 | CQ95: 0 | CR95: 0 | CS95: 0 | CT95: 0 | CU95: 0 | CV95: 0 | CW95: 0 | CX95: 0 | CY95: 0 | CZ95: 0 | DA95: 0 | DB95: 0 | DC95: 0 | DD95: 0 | DE95: 0 | DF95: 0 | DG95: 0
C96: > 275 kV & < = 330 kV ; Air Insulated Isolators / Earth Switch | D96: 44.8 | E96: 6.693280212
C97: > 330 kV & < = 500 kV ; Air Insulated Isolators / Earth Switch | D97: 44.8 | E97: 6.693280212
C98: > 500 kV ; Air Insulated Isolators / Earth Switch | D98: 44.8 | E98: 6.693280212
C99: < = 33 kV; VT | D99: 39 | E99: 6.244997998 | F99: 2 | G99: 1.333333333 | H99: 1.666666667 | I99: 7.666666667 | J99: 2 | K99: 4 | L99: 2 | M99: 2 | N99: 0 | O99: 0 | P99: 2.666666667 | Q99: 1 | R99: 0.6666666667 | S99: 1.333333333 | T99: 0 | U99: 0 | V99: 0.3333333333 | W99: 0 | X99: 0 | Y99: 2 | Z99: 2.666666667 | AA99: 0 | AB99: 0 | AC99: 0 | AD99: 0 | AE99: 0 | AF99: 0 | AG99: 0.3333333333 | AH99: 0 | AI99: 0.3333333333 | AJ99: 0 | AK99: 0 | AL99: 0 | AM99: 0 | AN99: 0 | AO99: 0 | AP99: 0 | AQ99: 0.3333333333 | AR99: 0.3333333333 | AS99: 2.333333333 | AT99: 0.6666666667 | AU99: 0 | AV99: 0 | AW99: 0 | AX99: 0.6666666667 | AY99: 0.3333333333 | AZ99: 0 | BA99: 0.6666666667 | BB99: 0.6666666667 | BC99: 3 | BD99: 0.3333333333 | BE99: 0 | BF99: 0 | BG99: 0 | BH99: 0 | BI99: 0 | BJ99: 0 | BK99: 0 | BL99: 0 | BM99: 0 | BN99: 0 | BO99: 0 | BP99: 0 | BQ99: 0 | BR99: 0 | BS99: 0 | BT99: 0 | BU99: 0 | BV99: 0 | BW99: 0 | BX99: 0 | BY99: 0 | BZ99: 0 | CA99: 0 | CB99: 0 | CC99: 0 | CD99: 0 | CE99: 0 | CF99: 0 | CG99: 0 | CH99: 0 | CI99: 0 | CJ99: 0 | CK99: 0 | CL99: 0 | CM99: 0 | CN99: 0 | CO99: 0 | CP99: 0 | CQ99: 0 | CR99: 0 | CS99: 0 | CT99: 0 | CU99: 0 | CV99: 0 | CW99: 0 | CX99: 0 | CY99: 0 | CZ99: 0 | DA99: 0 | DB99: 0 | DC99: 0 | DD99: 0 | DE99: 0 | DF99: 0 | DG99: 0
C100: > 33 kV & < = 66 kV ; VT | D100: 39 | E100: 6.244997998 | F100: 1 | G100: 6 | H100: 3 | I100: 0 | J100: 4 | K100: 1.333333333 | L100: 0 | M100: 1 | N100: 4 | O100: 0 | P100: 3 | Q100: 1 | R100: 0.3333333333 | S100: 0 | T100: 3 | U100: 0 | V100: 1 | W100: 1 | X100: 0 | Y100: 0 | Z100: 0.3333333333 | AA100: 0 | AB100: 0 | AC100: 0 | AD100: 0 | AE100: 0 | AF100: 0 | AG100: 0 | AH100: 0 | AI100: 0 | AJ100: 0 | AK100: 0 | AL100: 0 | AM100: 1 | AN100: 0 | AO100: 0 | AP100: 0 | AQ100: 0 | AR100: 0 | AS100: 0 | AT100: 0 | AU100: 0.6666666667 | AV100: 0 | AW100: 2.666666667 | AX100: 0 | AY100: 1.333333333 | AZ100: 0 | BA100: 1.666666667 | BB100: 0 | BC100: 0 | BD100: 0 | BE100: 0 | BF100: 0 | BG100: 0 | BH100: 0 | BI100: 0 | BJ100: 0 | BK100: 0 | BL100: 0 | BM100: 0 | BN100: 0 | BO100: 0 | BP100: 0 | BQ100: 0 | BR100: 0 | BS100: 0 | BT100: 0 | BU100: 0 | BV100: 0 | BW100: 0 | BX100: 0 | BY100: 0 | BZ100: 0 | CA100: 0 | CB100: 0 | CC100: 0 | CD100: 0 | CE100: 0 | CF100: 0 | CG100: 0 | CH100: 0 | CI100: 0 | CJ100: 0 | CK100: 0 | CL100: 0 | CM100: 0 | CN100: 0 | CO100: 0 | CP100: 0 | CQ100: 0 | CR100: 0 | CS100: 0 | CT100: 0 | CU100: 0 | CV100: 0 | CW100: 0 | CX100: 0 | CY100: 0 | CZ100: 0 | DA100: 0 | DB100: 0 | DC100: 0 | DD100: 0 | DE100: 0 | DF100: 0 | DG100: 0
C101: > 66 kV & < = 132 kV ; VT | D101: 39 | E101: 6.244997998 | F101: 2.333333333 | G101: 0.6666666667 | H101: 14.33333333 | I101: 8 | J101: 3.333333333 | K101: 8.666666667 | L101: 8 | M101: 2.333333333 | N101: 8.333333333 | O101: 1.666666667 | P101: 8 | Q101: 6 | R101: 4 | S101: 0 | T101: 3.666666667 | U101: 0 | V101: 2.666666667 | W101: 2 | X101: 1 | Y101: 2.333333333 | Z101: 0.3333333333 | AA101: 0 | AB101: 0 | AC101: 0 | AD101: 4 | AE101: 1 | AF101: 0 | AG101: 0 | AH101: 2 | AI101: 1.333333333 | AJ101: 1 | AK101: 1 | AL101: 1 | AM101: 7.666666667 | AN101: 0.6666666667 | AO101: 1.666666667 | AP101: 0.6666666667 | AQ101: 0 | AR101: 0 | AS101: 0 | AT101: 0 | AU101: 0 | AV101: 0 | AW101: 3 | AX101: 4 | AY101: 0 | AZ101: 0 | BA101: 0 | BB101: 2 | BC101: 0 | BD101: 0 | BE101: 0 | BF101: 0 | BG101: 0 | BH101: 0 | BI101: 0 | BJ101: 0 | BK101: 0 | BL101: 0 | BM101: 0 | BN101: 0 | BO101: 0 | BP101: 0 | BQ101: 0 | BR101: 0 | BS101: 0 | BT101: 0 | BU101: 0 | BV101: 0 | BW101: 0 | BX101: 0 | BY101: 0 | BZ101: 0 | CA101: 0 | CB101: 0 | CC101: 0 | CD101: 0 | CE101: 0 | CF101: 0 | CG101: 0 | CH101: 0 | CI101: 0 | CJ101: 0 | CK101: 0 | CL101: 0 | CM101: 0 | CN101: 0 | CO101: 0 | CP101: 0 | CQ101: 0 | CR101: 0 | CS101: 0 | CT101: 0 | CU101: 0 | CV101: 0 | CW101: 0 | CX101: 0 | CY101: 0 | CZ101: 0 | DA101: 0 | DB101: 0 | DC101: 0 | DD101: 0 | DE101: 0 | DF101: 0 | DG101: 0
C102: > 132 kV & < = 275 kV ; VT | D102: 39 | E102: 6.244997998 | F102: 5.333333333 | G102: 6.333333333 | H102: 6.333333333 | I102: 2 | J102: 12.66666667 | K102: 3 | L102: 3.666666667 | M102: 4.333333333 | N102: 12.33333333 | O102: 2 | P102: 11 | Q102: 0 | R102: 0 | S102: 0 | T102: 2 | U102: 0 | V102: 2 | W102: 0 | X102: 0.6666666667 | Y102: 1.333333333 | Z102: 0 | AA102: 0 | AB102: 0 | AC102: 0 | AD102: 2 | AE102: 0 | AF102: 2 | AG102: 0 | AH102: 10.33333333 | AI102: 0 | AJ102: 0 | AK102: 0 | AL102: 0 | AM102: 0.6666666667 | AN102: 5.333333333 | AO102: 0 | AP102: 0 | AQ102: 0 | AR102: 2.666666667 | AS102: 0 | AT102: 0 | AU102: 0 | AV102: 0 | AW102: 2 | AX102: 0 | AY102: 0 | AZ102: 0 | BA102: 0 | BB102: 0 | BC102: 0 | BD102: 0 | BE102: 0 | BF102: 0 | BG102: 0 | BH102: 0 | BI102: 0.3333333333 | BJ102: 3 | BK102: 0 | BL102: 1 | BM102: 0 | BN102: 0 | BO102: 0 | BP102: 0 | BQ102: 0 | BR102: 0 | BS102: 0 | BT102: 0 | BU102: 0 | BV102: 0 | BW102: 0 | BX102: 0 | BY102: 0 | BZ102: 0 | CA102: 0 | CB102: 0 | CC102: 0 | CD102: 0 | CE102: 0 | CF102: 0 | CG102: 0 | CH102: 0 | CI102: 0 | CJ102: 0 | CK102: 0 | CL102: 0 | CM102: 0 | CN102: 0 | CO102: 0 | CP102: 0 | CQ102: 0 | CR102: 0 | CS102: 0 | CT102: 0 | CU102: 0 | CV102: 0 | CW102: 0 | CX102: 0 | CY102: 0 | CZ102: 0 | DA102: 0 | DB102: 0 | DC102: 0 | DD102: 0 | DE102: 0 | DF102: 0 | DG102: 0
C103: > 275 kV & < = 330 kV ; VT | D103: 39 | E103: 6.244997998
C104: > 330 kV & < = 500 kV ; VT | D104: 39 | E104: 6.244997998
C105: > 500 kV ; VT | D105: 39 | E105: 6.244997998
C106: < = 33 kV; CT | D106: 39 | E106: 6.244997998 | F106: 5.666666667 | G106: 1 | H106: 4 | I106: 7 | J106: 0 | K106: 4 | L106: 2 | M106: 2 | N106: 0 | O106: 1 | P106: 7 | Q106: 6 | R106: 5.666666667 | S106: 5.333333333 | T106: 2.666666667 | U106: 1 | V106: 2 | W106: 2 | X106: 0 | Y106: 3 | Z106: 0 | AA106: 0 | AB106: 0 | AC106: 0 | AD106: 0 | AE106: 0 | AF106: 0 | AG106: 0.6666666667 | AH106: 0 | AI106: 0 | AJ106: 0 | AK106: 0 | AL106: 0 | AM106: 0 | AN106: 0 | AO106: 0 | AP106: 0 | AQ106: 0 | AR106: 0.3333333333 | AS106: 0 | AT106: 0 | AU106: 0 | AV106: 0 | AW106: 0 | AX106: 0 | AY106: 0 | AZ106: 0 | BA106: 0.6666666667 | BB106: 0.6666666667 | BC106: 1.333333333 | BD106: 0 | BE106: 0 | BF106: 0 | BG106: 0 | BH106: 0 | BI106: 0 | BJ106: 0 | BK106: 0 | BL106: 0 | BM106: 0 | BN106: 0 | BO106: 0 | BP106: 0 | BQ106: 0 | BR106: 0 | BS106: 0 | BT106: 0 | BU106: 0 | BV106: 0 | BW106: 0 | BX106: 0 | BY106: 0 | BZ106: 0 | CA106: 0 | CB106: 0 | CC106: 0 | CD106: 0 | CE106: 0 | CF106: 0 | CG106: 0 | CH106: 0 | CI106: 0 | CJ106: 0 | CK106: 0 | CL106: 0 | CM106: 0 | CN106: 0 | CO106: 0 | CP106: 0 | CQ106: 0 | CR106: 0 | CS106: 0 | CT106: 0 | CU106: 0 | CV106: 0 | CW106: 0 | CX106: 0 | CY106: 0 | CZ106: 0 | DA106: 0 | DB106: 0 | DC106: 0 | DD106: 0 | DE106: 0 | DF106: 0 | DG106: 0
C107: > 33 kV & < = 66 kV ; CT | D107: 39 | E107: 6.244997998 | F107: 1 | G107: 1 | H107: 5 | I107: 1 | J107: 16 | K107: 3.333333333 | L107: 0 | M107: 0 | N107: 1 | O107: 0 | P107: 10 | Q107: 3 | R107: 0.6666666667 | S107: 2 | T107: 3.333333333 | U107: 0 | V107: 4 | W107: 2 | X107: 19 | Y107: 0 | Z107: 2 | AA107: 0 | AB107: 0 | AC107: 0 | AD107: 0 | AE107: 0 | AF107: 17.66666667 | AG107: 0 | AH107: 0 | AI107: 0 | AJ107: 1 | AK107: 0 | AL107: 0 | AM107: 0.6666666667 | AN107: 2 | AO107: 0 | AP107: 0 | AQ107: 0 | AR107: 4 | AS107: 0 | AT107: 0 | AU107: 0 | AV107: 1 | AW107: 0 | AX107: 3 | AY107: 0 | AZ107: 0 | BA107: 0 | BB107: 0 | BC107: 0 | BD107: 0 | BE107: 0 | BF107: 0 | BG107: 0 | BH107: 0 | BI107: 0 | BJ107: 0 | BK107: 0 | BL107: 0 | BM107: 0 | BN107: 0 | BO107: 0 | BP107: 0 | BQ107: 0 | BR107: 0 | BS107: 0 | BT107: 0 | BU107: 0 | BV107: 0 | BW107: 0 | BX107: 0 | BY107: 0 | BZ107: 0 | CA107: 0 | CB107: 0 | CC107: 0 | CD107: 0 | CE107: 0 | CF107: 0 | CG107: 0 | CH107: 0 | CI107: 0 | CJ107: 0 | CK107: 0 | CL107: 0 | CM107: 0 | CN107: 0 | CO107: 0 | CP107: 0 | CQ107: 0 | CR107: 0 | CS107: 0 | CT107: 0 | CU107: 0 | CV107: 0 | CW107: 0 | CX107: 0 | CY107: 0 | CZ107: 0 | DA107: 0 | DB107: 0 | DC107: 0 | DD107: 0 | DE107: 0 | DF107: 0 | DG107: 0
C108: > 66 kV & < = 132 kV ; CT | D108: 39 | E108: 6.244997998 | F108: 2.666666667 | G108: 2 | H108: 20.66666667 | I108: 12.33333333 | J108: 12.66666667 | K108: 9.666666667 | L108: 13.33333333 | M108: 3 | N108: 4 | O108: 9 | P108: 16.66666667 | Q108: 17.66666667 | R108: 3 | S108: 13.66666667 | T108: 11.33333333 | U108: 7.333333333 | V108: 5 | W108: 5 | X108: 0 | Y108: 2 | Z108: 0 | AA108: 0 | AB108: 0 | AC108: 0 | AD108: 3 | AE108: 1 | AF108: 4 | AG108: 0 | AH108: 0 | AI108: 0 | AJ108: 4 | AK108: 1 | AL108: 2 | AM108: 4.666666667 | AN108: 4 | AO108: 0 | AP108: 0 | AQ108: 2 | AR108: 0 | AS108: 0 | AT108: 0 | AU108: 0 | AV108: 0 | AW108: 0 | AX108: 4 | AY108: 0 | AZ108: 0 | BA108: 0 | BB108: 0 | BC108: 1 | BD108: 0 | BE108: 0 | BF108: 0 | BG108: 0 | BH108: 0 | BI108: 0 | BJ108: 0 | BK108: 0 | BL108: 0 | BM108: 0 | BN108: 0 | BO108: 0 | BP108: 0 | BQ108: 0 | BR108: 0 | BS108: 0 | BT108: 0 | BU108: 0 | BV108: 0 | BW108: 0 | BX108: 0 | BY108: 0 | BZ108: 0 | CA108: 0 | CB108: 0 | CC108: 0 | CD108: 0 | CE108: 0 | CF108: 0 | CG108: 0 | CH108: 0 | CI108: 0 | CJ108: 0 | CK108: 0 | CL108: 0 | CM108: 0 | CN108: 0 | CO108: 0 | CP108: 0 | CQ108: 0 | CR108: 0 | CS108: 0 | CT108: 0 | CU108: 0 | CV108: 0 | CW108: 0 | CX108: 0 | CY108: 0 | CZ108: 0 | DA108: 0 | DB108: 0 | DC108: 0 | DD108: 0 | DE108: 0 | DF108: 0 | DG108: 0
C109: > 132 kV & < = 275 kV ; CT | D109: 39 | E109: 6.244997998 | F109: 10 | G109: 12 | H109: 5 | I109: 2 | J109: 17 | K109: 3 | L109: 2 | M109: 0 | N109: 30.33333333 | O109: 26 | P109: 17 | Q109: 12 | R109: 1 | S109: 1 | T109: 2 | U109: 1.666666667 | V109: 16.66666667 | W109: 4 | X109: 3 | Y109: 3 | Z109: 0.3333333333 | AA109: 1 | AB109: 0 | AC109: 0.3333333333 | AD109: 0 | AE109: 1 | AF109: 6.666666667 | AG109: 1 | AH109: 10.33333333 | AI109: 13.66666667 | AJ109: 18 | AK109: 1.666666667 | AL109: 0 | AM109: 0 | AN109: 3 | AO109: 0 | AP109: 2 | AQ109: 0 | AR109: 0 | AS109: 0 | AT109: 0 | AU109: 0 | AV109: 4 | AW109: 3 | AX109: 2 | AY109: 0 | AZ109: 0 | BA109: 0 | BB109: 0.3333333333 | BC109: 0 | BD109: 1 | BE109: 0 | BF109: 0 | BG109: 0 | BH109: 0 | BI109: 0 | BJ109: 8 | BK109: 0 | BL109: 0 | BM109: 0 | BN109: 0 | BO109: 0 | BP109: 0 | BQ109: 0 | BR109: 0 | BS109: 0 | BT109: 0 | BU109: 0 | BV109: 0 | BW109: 0 | BX109: 0 | BY109: 0 | BZ109: 0 | CA109: 0 | CB109: 0 | CC109: 0 | CD109: 0 | CE109: 0 | CF109: 0 | CG109: 0 | CH109: 0 | CI109: 0 | CJ109: 0 | CK109: 0 | CL109: 0 | CM109: 0 | CN109: 0 | CO109: 0 | CP109: 0 | CQ109: 0 | CR109: 0 | CS109: 0 | CT109: 0 | CU109: 0 | CV109: 0 | CW109: 0 | CX109: 0 | CY109: 0 | CZ109: 0 | DA109: 0 | DB109: 0 | DC109: 0 | DD109: 0 | DE109: 0 | DF109: 0 | DG109: 0
C110: > 275 kV & < = 330 kV ; CT | D110: 39 | E110: 6.244997998
C111: > 330 kV & < = 500 kV ; CT | D111: 39 | E111: 6.244997998
C112: > 500 kV ; CT | D112: 39 | E112: 6.244997998
C113: < = 33 kV; GIS Module | D113: 44.8 | E113: 6.693280212
C114: > 33 kV & < = 66 kV ; GIS Module | D114: 44.8 | E114: 6.693280212
C115: > 66 kV & < = 132 kV ; GIS Module | D115: 44.8 | E115: 6.693280212 | H115: 0 | I115: 3 | J115: 0 | K115: 17 | L115: 0 | M115: 0 | N115: 0 | O115: 0 | P115: 0 | Q115: 0 | R115: 0 | S115: 0 | T115: 0 | U115: 0 | V115: 0 | W115: 0 | X115: 0 | Y115: 0 | Z115: 0 | AA115: 0 | AB115: 0 | AC115: 0 | AD115: 0 | AE115: 0 | AF115: 0 | AG115: 0 | AH115: 0 | AI115: 0 | AJ115: 0 | AK115: 0 | AL115: 0 | AM115: 0 | AN115: 0 | AO115: 0 | AP115: 0 | AQ115: 0 | AR115: 0 | AS115: 0 | AT115: 0 | AU115: 0 | AV115: 0 | AW115: 0 | AX115: 0 | AY115: 0 | AZ115: 0 | BA115: 0 | BB115: 0 | BC115: 0 | BD115: 0 | BE115: 0 | BF115: 0 | BG115: 0 | BH115: 0 | BI115: 0 | BJ115: 0 | BK115: 0 | BL115: 0 | BM115: 0 | BN115: 0 | BO115: 0 | BP115: 0 | BQ115: 0 | BR115: 0 | BS115: 0 | BT115: 0 | BU115: 0 | BV115: 0 | BW115: 0 | BX115: 0 | BY115: 0 | BZ115: 0 | CA115: 0 | CB115: 0 | CC115: 0 | CD115: 0 | CE115: 0 | CF115: 0 | CG115: 0 | CH115: 0 | CI115: 0 | CJ115: 0 | CK115: 0 | CL115: 0 | CM115: 0 | CN115: 0 | CO115: 0 | CP115: 0 | CQ115: 0 | CR115: 0 | CS115: 0 | CT115: 0 | CU115: 0 | CV115: 0 | CW115: 0 | CX115: 0 | CY115: 0 | CZ115: 0 | DA115: 0 | DB115: 0 | DC115: 0 | DD115: 0 | DE115: 0 | DF115: 0 | DG115: 0
C116: > 132 kV & < = 275 kV ; GIS Module | D116: 44.8 | E116: 6.693280212 | H116: 0 | I116: 0 | J116: 17 | K116: 0 | L116: 0 | M116: 0 | N116: 0 | O116: 0 | P116: 0 | Q116: 0 | R116: 0 | S116: 0 | T116: 0 | U116: 0 | V116: 0 | W116: 0 | X116: 0 | Y116: 0 | Z116: 0 | AA116: 0 | AB116: 0 | AC116: 0 | AD116: 0 | AE116: 0 | AF116: 7 | AG116: 0 | AH116: 1 | AI116: 10 | AJ116: 0 | AK116: 0 | AL116: 0 | AM116: 3 | AN116: 0 | AO116: 0 | AP116: 0 | AQ116: 0 | AR116: 0 | AS116: 0 | AT116: 0 | AU116: 0 | AV116: 0 | AW116: 0 | AX116: 0 | AY116: 0 | AZ116: 0 | BA116: 0 | BB116: 0 | BC116: 0 | BD116: 0 | BE116: 0 | BF116: 0 | BG116: 0 | BH116: 0 | BI116: 0 | BJ116: 0 | BK116: 0 | BL116: 0 | BM116: 0 | BN116: 0 | BO116: 0 | BP116: 0 | BQ116: 0 | BR116: 0 | BS116: 0 | BT116: 0 | BU116: 0 | BV116: 0 | BW116: 0 | BX116: 0 | BY116: 0 | BZ116: 0 | CA116: 0 | CB116: 0 | CC116: 0 | CD116: 0 | CE116: 0 | CF116: 0 | CG116: 0 | CH116: 0 | CI116: 0 | CJ116: 0 | CK116: 0 | CL116: 0 | CM116: 0 | CN116: 0 | CO116: 0 | CP116: 0 | CQ116: 0 | CR116: 0 | CS116: 0 | CT116: 0 | CU116: 0 | CV116: 0 | CW116: 0 | CX116: 0 | CY116: 0 | CZ116: 0 | DA116: 0 | DB116: 0 | DC116: 0 | DD116: 0 | DE116: 0 | DF116: 0 | DG116: 0
C117: > 275 kV & < = 330 kV ; GIS Module | D117: 44.8 | E117: 6.693280212
C118: > 330 kV & < = 500 kV ; GIS Module | D118: 44.8 | E118: 6.693280212
C119: > 500 kV ; GIS Module | D119: 44.8 | E119: 6.693280212
C120: Other | D120: 44.8 | E120: 6.693280212
B121: SUBSTATION POWER TRANSFORMERS BY: Highest operating voltage; Ampere rating | C121: < = 33 kV ; < = 10 MVA | D121: 44.8 | E121: 6.693280212
C122: < = 33 kV ; > 10 MVA & < = 30 MVA | D122: 44.8 | E122: 6.693280212
C123: < = 33 kV ; > 30 MVA | D123: 44.8 | E123: 6.693280212
C124: > 33 kV & < = 66 kV ; < = 10 MVA | D124: 44.8 | E124: 6.693280212
C125: > 33 kV & < = 66 kV ; > 10 MVA & < = 30 MVA | D125: 44.8 | E125: 6.693280212
C126: > 33 kV & < = 66 kV ; > 30 MVA | D126: 44.8 | E126: 6.693280212
C127: > 66 kV & < = 132 kV ; < = 30 MVA | D127: 44.8 | E127: 6.693280212 | F127: 3 | G127: 2 | H127: 0 | I127: 1 | J127: 1 | K127: 0 | L127: 3 | M127: 3 | N127: 1 | O127: 0 | P127: 0 | Q127: 2 | R127: 1 | S127: 0 | T127: 2 | U127: 0 | V127: 0 | W127: 2 | X127: 0 | Y127: 0 | Z127: 0 | AA127: 0 | AB127: 0 | AC127: 0 | AD127: 2 | AE127: 0 | AF127: 0 | AG127: 1 | AH127: 0 | AI127: 0 | AJ127: 1 | AK127: 0 | AL127: 0 | AM127: 3 | AN127: 0 | AO127: 0 | AP127: 0 | AQ127: 0 | AR127: 3 | AS127: 0 | AT127: 0 | AU127: 0 | AV127: 0 | AW127: 2 | AX127: 0 | AY127: 1 | AZ127: 6 | BA127: 0 | BB127: 0 | BC127: 1 | BD127: 16 | BE127: 0 | BF127: 0 | BG127: 3 | BH127: 3 | BI127: 3 | BJ127: 0 | BK127: 0 | BL127: 0 | BM127: 0 | BN127: 0 | BO127: 0 | BP127: 1 | BQ127: 1 | BR127: 0 | BS127: 0 | BT127: 0 | BU127: 0 | BV127: 0 | BW127: 0 | BX127: 0 | BY127: 0 | BZ127: 0 | CA127: 0 | CB127: 0 | CC127: 0 | CD127: 0 | CE127: 0 | CF127: 0 | CG127: 0 | CH127: 0 | CI127: 0 | CJ127: 0 | CK127: 0 | CL127: 0 | CM127: 0 | CN127: 0 | CO127: 0 | CP127: 0 | CQ127: 0 | CR127: 0 | CS127: 0 | CT127: 0 | CU127: 0 | CV127: 0 | CW127: 0 | CX127: 0 | CY127: 0 | CZ127: 0 | DA127: 0 | DB127: 0 | DC127: 0 | DD127: 0 | DE127: 0 | DF127: 0 | DG127: 0
C128: > 66 kV & < = 132 kV ; > 30 MVA & < = 60 MVA | D128: 44.8 | E128: 6.693280212 | F128: 0 | G128: 0 | H128: 0 | I128: 0 | J128: 0 | K128: 4 | L128: 2 | M128: 0 | N128: 0 | O128: 0 | P128: 2 | Q128: 3 | R128: 2 | S128: 2 | T128: 1 | U128: 2 | V128: 1 | W128: 1 | X128: 0 | Y128: 0 | Z128: 0 | AA128: 0 | AB128: 0 | AC128: 0 | AD128: 0 | AE128: 0 | AF128: 0 | AG128: 0 | AH128: 0 | AI128: 0 | AJ128: 0 | AK128: 0 | AL128: 0 | AM128: 0 | AN128: 0 | AO128: 1 | AP128: 0 | AQ128: 0 | AR128: 0 | AS128: 0 | AT128: 0 | AU128: 0 | AV128: 0 | AW128: 0 | AX128: 2 | AY128: 0 | AZ128: 0 | BA128: 0 | BB128: 0 | BC128: 0 | BD128: 0 | BE128: 0 | BF128: 0 | BG128: 0 | BH128: 0 | BI128: 0 | BJ128: 0 | BK128: 0 | BL128: 0 | BM128: 0 | BN128: 0 | BO128: 0 | BP128: 0 | BQ128: 0 | BR128: 0 | BS128: 0 | BT128: 0 | BU128: 0 | BV128: 0 | BW128: 0 | BX128: 0 | BY128: 0 | BZ128: 0 | CA128: 0 | CB128: 0 | CC128: 0 | CD128: 0 | CE128: 0 | CF128: 0 | CG128: 0 | CH128: 0 | CI128: 0 | CJ128: 0 | CK128: 0 | CL128: 0 | CM128: 0 | CN128: 0 | CO128: 0 | CP128: 0 | CQ128: 0 | CR128: 0 | CS128: 0 | CT128: 0 | CU128: 0 | CV128: 0 | CW128: 0 | CX128: 0 | CY128: 0 | CZ128: 0 | DA128: 0 | DB128: 0 | DC128: 0 | DD128: 0 | DE128: 0 | DF128: 0 | DG128: 0
C129: > 66 kV & < = 132 kV ; > 60 MVA | D129: 44.8 | E129: 6.693280212 | F129: 0 | G129: 0 | H129: 0 | I129: 2 | J129: 0 | K129: 0 | L129: 0 | M129: 0 | N129: 0 | O129: 0 | P129: 0 | Q129: 0 | R129: 0 | S129: 0 | T129: 0 | U129: 0 | V129: 0 | W129: 0 | X129: 0 | Y129: 0 | Z129: 0 | AA129: 0 | AB129: 0 | AC129: 0 | AD129: 0 | AE129: 0 | AF129: 0 | AG129: 0 | AH129: 0 | AI129: 0 | AJ129: 0 | AK129: 0 | AL129: 0 | AM129: 0 | AN129: 0 | AO129: 0 | AP129: 0 | AQ129: 0 | AR129: 0 | AS129: 0 | AT129: 0 | AU129: 0 | AV129: 0 | AW129: 0 | AX129: 0 | AY129: 1 | AZ129: 1 | BA129: 0 | BB129: 0 | BC129: 0 | BD129: 0 | BE129: 0 | BF129: 0 | BG129: 0 | BH129: 0 | BI129: 0 | BJ129: 0 | BK129: 0 | BL129: 0 | BM129: 0 | BN129: 0 | BO129: 0 | BP129: 0 | BQ129: 0 | BR129: 0 | BS129: 0 | BT129: 0 | BU129: 0 | BV129: 0 | BW129: 0 | BX129: 0 | BY129: 0 | BZ129: 0 | CA129: 0 | CB129: 0 | CC129: 0 | CD129: 0 | CE129: 0 | CF129: 0 | CG129: 0 | CH129: 0 | CI129: 0 | CJ129: 0 | CK129: 0 | CL129: 0 | CM129: 0 | CN129: 0 | CO129: 0 | CP129: 0 | CQ129: 0 | CR129: 0 | CS129: 0 | CT129: 0 | CU129: 0 | CV129: 0 | CW129: 0 | CX129: 0 | CY129: 0 | CZ129: 0 | DA129: 0 | DB129: 0 | DC129: 0 | DD129: 0 | DE129: 0 | DF129: 0 | DG129: 0
C130: > 132 kV & < = 220 kV ; < = 50 MVA | D130: 44.8 | E130: 6.693280212
C131: > 132 kV & < = 220 kV ; > 50 MVA & < = 100 MVA | D131: 44.8 | E131: 6.693280212
C132: > 132 kV & < = 220 kV ; > 100 MVA | D132: 44.8 | E132: 6.693280212
C133: > 220 kV & < = 275 kV ; < = 50 MVA | D133: 44.8 | E133: 6.693280212 | F133: 0 | G133: 0 | H133: 0
C134: > 220 kV & < = 275 kV ; > 50 MVA & < = 100 MVA | D134: 44.8 | E134: 6.693280212 | F134: 0 | G134: 0 | H134: 0 | I134: 0 | J134: 0 | K134: 0 | L134: 0 | M134: 0 | N134: 0 | O134: 0 | P134: 0 | Q134: 0 | R134: 0 | S134: 0 | T134: 0 | U134: 0 | V134: 0 | W134: 0 | X134: 0 | Y134: 0 | Z134: 0 | AA134: 0 | AB134: 0 | AC134: 0 | AD134: 0 | AE134: 0 | AF134: 0 | AG134: 2 | AH134: 2 | AI134: 0 | AJ134: 0 | AK134: 0 | AL134: 0 | AM134: 0 | AN134: 0 | AO134: 0 | AP134: 0 | AQ134: 0 | AR134: 0 | AS134: 0 | AT134: 0 | AU134: 0 | AV134: 0 | AW134: 0 | AX134: 0 | AY134: 0 | AZ134: 0 | BA134: 0 | BB134: 0 | BC134: 0 | BD134: 0 | BE134: 0 | BF134: 0 | BG134: 0 | BH134: 0 | BI134: 0 | BJ134: 0 | BK134: 0 | BL134: 0 | BM134: 0 | BN134: 0 | BO134: 0 | BP134: 0 | BQ134: 0 | BR134: 0 | BS134: 0 | BT134: 0 | BU134: 0 | BV134: 0 | BW134: 0 | BX134: 0 | BY134: 0 | BZ134: 0 | CA134: 0 | CB134: 0 | CC134: 0 | CD134: 0 | CE134: 0 | CF134: 0 | CG134: 0 | CH134: 0 | CI134: 0 | CJ134: 0 | CK134: 0 | CL134: 0 | CM134: 0 | CN134: 0 | CO134: 0 | CP134: 0 | CQ134: 0 | CR134: 0 | CS134: 0 | CT134: 0 | CU134: 0 | CV134: 0 | CW134: 0 | CX134: 0 | CY134: 0 | CZ134: 0 | DA134: 0 | DB134: 0 | DC134: 0 | DD134: 0 | DE134: 0 | DF134: 0 | DG134: 0
C135: > 220 kV & < = 275 kV ; > 100 MVA | D135: 44.8 | E135: 6.693280212 | F135: 1 | G135: 0 | H135: 2 | I135: 0 | J135: 2 | K135: 1 | L135: 1 | M135: 0 | N135: 2 | O135: 0 | P135: 0 | Q135: 3 | R135: 2 | S135: 0 | T135: 1 | U135: 1 | V135: 1 | W135: 0 | X135: 0 | Y135: 0 | Z135: 0 | AA135: 1 | AB135: 1 | AC135: 0 | AD135: 0 | AE135: 1 | AF135: 0 | AG135: 0 | AH135: 0 | AI135: 1 | AJ135: 2 | AK135: 1 | AL135: 0 | AM135: 1 | AN135: 2 | AO135: 1 | AP135: 1 | AQ135: 0 | AR135: 2 | AS135: 0 | AT135: 0 | AU135: 0 | AV135: 0 | AW135: 1 | AX135: 0 | AY135: 0 | AZ135: 0 | BA135: 1 | BB135: 2 | BC135: 1 | BD135: 4 | BE135: 0 | BF135: 0 | BG135: 0 | BH135: 0 | BI135: 0 | BJ135: 0 | BK135: 0 | BL135: 0 | BM135: 0 | BN135: 0 | BO135: 0 | BP135: 0 | BQ135: 0 | BR135: 0 | BS135: 0 | BT135: 0 | BU135: 0 | BV135: 0 | BW135: 0 | BX135: 0 | BY135: 0 | BZ135: 0 | CA135: 0 | CB135: 0 | CC135: 0 | CD135: 0 | CE135: 0 | CF135: 0 | CG135: 0 | CH135: 0 | CI135: 0 | CJ135: 0 | CK135: 0 | CL135: 0 | CM135: 0 | CN135: 0 | CO135: 0 | CP135: 0 | CQ135: 0 | CR135: 0 | CS135: 0 | CT135: 0 | CU135: 0 | CV135: 0 | CW135: 0 | CX135: 0 | CY135: 0 | CZ135: 0 | DA135: 0 | DB135: 0 | DC135: 0 | DD135: 0 | DE135: 0 | DF135: 0 | DG135: 0
C136: > 275 kV & < = 330 kV ; < = 100 MVA | D136: 44.8 | E136: 6.693280212
C137: > 275 kV & < = 330 kV ; > 100 MVA & < = 250 MVA | D137: 44.8 | E137: 6.693280212
C138: > 275 kV & < = 330 kV ; > 250 MVA | D138: 44.8 | E138: 6.693280212
C139: > 330 kV & < = 500 kV ; < = 150 MVA | D139: 44.8 | E139: 6.693280212
C140: > 330 kV & < = 500 kV ; > 150 MVA & < = 300 MVA | D140: 44.8 | E140: 6.693280212
C141: > 330 kV & < = 500 kV ; > 300 MVA | D141: 44.8 | E141: 6.693280212
C142: > 500 kV ; < = 1000 MVA | D142: 44.8 | E142: 6.693280212
C143: > 500 kV ; > 1000 MVA & < = 1500 MVA | D143: 44.8 | E143: 6.693280212
C144: > 500 kV ; > 1500 MVA | D144: 44.8 | E144: 6.693280212
C145: Other | D145: 44.8 | E145: 6.693280212
B146: SUBSTATION REACTIVE PLANT BY: Highest operating voltage; Function | C146: < = 33 kV; SVCS | D146: 44.8 | E146: 6.693280212
C147: > 33 kV & < = 66 kV ; SVCS | D147: 44.8 | E147: 6.693280212
C148: > 66 kV & < = 132 kV ; SVCS | D148: 44.8 | E148: 6.693280212
C149: > 132 kV & < = 275 kV ; SVCS | D149: 44.8 | E149: 6.693280212 | AG149: 2 | AH149: 2
C150: > 275 kV & < = 330 kV ; SVCS | D150: 44.8 | E150: 6.693280212
C151: > 330 kV & < = 500 kV ; SVCS | D151: 44.8 | E151: 6.693280212
C152: > 500 kV ; SVCS | D152: 44.8 | E152: 6.693280212
C153: < = 33 kV; Capacitors | D153: 44.8 | E153: 6.693280212 | H153: 0 | I153: 0 | J153: 0 | K153: 4 | L153: 0 | M153: 0 | N153: 0 | O153: 0 | P153: 0 | Q153: 0 | R153: 0 | S153: 0 | T153: 0 | U153: 0 | V153: 0 | W153: 0 | X153: 0 | Y153: 0 | Z153: 0 | AA153: 0 | AB153: 0 | AC153: 0 | AD153: 0 | AE153: 0 | AF153: 0 | AG153: 0 | AH153: 4 | AI153: 1 | AJ153: 0 | AK153: 0 | AL153: 1 | AM153: 0 | AN153: 0 | AO153: 0 | AP153: 0 | AQ153: 0 | AR153: 0 | AS153: 3 | AT153: 2 | AU153: 1 | AV153: 1 | AW153: 2 | AX153: 0 | AY153: 2 | AZ153: 1 | BA153: 0 | BB153: 0 | BC153: 0 | BD153: 0 | BE153: 0 | BF153: 0 | BG153: 0 | BH153: 0 | BI153: 0 | BJ153: 0 | BK153: 0 | BL153: 0 | BM153: 0 | BN153: 0 | BO153: 0 | BP153: 0 | BQ153: 0 | BR153: 0 | BS153: 0 | BT153: 0 | BU153: 0 | BV153: 0 | BW153: 0 | BX153: 0 | BY153: 0 | BZ153: 0 | CA153: 0 | CB153: 0 | CC153: 0 | CD153: 0 | CE153: 0 | CF153: 0 | CG153: 0 | CH153: 0 | CI153: 0 | CJ153: 0 | CK153: 0 | CL153: 0 | CM153: 0 | CN153: 0 | CO153: 0 | CP153: 0 | CQ153: 0 | CR153: 0 | CS153: 0 | CT153: 0 | CU153: 0 | CV153: 0 | CW153: 0 | CX153: 0 | CY153: 0 | CZ153: 0 | DA153: 0 | DB153: 0 | DC153: 0 | DD153: 0 | DE153: 0 | DF153: 0 | DG153: 0
C154: > 33 kV & < = 66 kV ; Capacitors | D154: 44.8 | E154: 6.693280212 | H154: 0 | I154: 0 | J154: 0 | K154: 0 | L154: 0 | M154: 0 | N154: 0 | O154: 0 | P154: 0 | Q154: 0 | R154: 0 | S154: 0 | T154: 0 | U154: 0 | V154: 0 | W154: 0 | X154: 4 | Y154: 0 | Z154: 0 | AA154: 0 | AB154: 0 | AC154: 0 | AD154: 0 | AE154: 0 | AF154: 0 | AG154: 0 | AH154: 0 | AI154: 0 | AJ154: 0 | AK154: 0 | AL154: 0 | AM154: 0 | AN154: 2 | AO154: 0 | AP154: 0 | AQ154: 0 | AR154: 0 | AS154: 0 | AT154: 0 | AU154: 0 | AV154: 0 | AW154: 0 | AX154: 0 | AY154: 0 | AZ154: 0 | BA154: 0 | BB154: 0 | BC154: 0 | BD154: 0 | BE154: 0 | BF154: 0 | BG154: 0 | BH154: 0 | BI154: 0 | BJ154: 0 | BK154: 0 | BL154: 0 | BM154: 0 | BN154: 0 | BO154: 0 | BP154: 0 | BQ154: 0 | BR154: 0 | BS154: 0 | BT154: 0 | BU154: 0 | BV154: 0 | BW154: 0 | BX154: 0 | BY154: 0 | BZ154: 0 | CA154: 0 | CB154: 0 | CC154: 0 | CD154: 0 | CE154: 0 | CF154: 0 | CG154: 0 | CH154: 0 | CI154: 0 | CJ154: 0 | CK154: 0 | CL154: 0 | CM154: 0 | CN154: 0 | CO154: 0 | CP154: 0 | CQ154: 0 | CR154: 0 | CS154: 0 | CT154: 0 | CU154: 0 | CV154: 0 | CW154: 0 | CX154: 0 | CY154: 0 | CZ154: 0 | DA154: 0 | DB154: 0 | DC154: 0 | DD154: 0 | DE154: 0 | DF154: 0 | DG154: 0
C155: > 66 kV & < = 132 kV ; Capacitors | D155: 44.8 | E155: 6.693280212 | H155: 1 | I155: 4 | J155: 0 | K155: 0 | L155: 0 | M155: 0 | N155: 0 | O155: 0 | P155: 0 | Q155: 0 | R155: 1 | S155: 0 | T155: 2 | U155: 0 | V155: 0 | W155: 0 | X155: 0 | Y155: 0 | Z155: 0 | AA155: 0 | AB155: 0 | AC155: 0 | AD155: 0 | AE155: 0 | AF155: 0 | AG155: 0 | AH155: 0 | AI155: 0 | AJ155: 0 | AK155: 0 | AL155: 0 | AM155: 0 | AN155: 0 | AO155: 0 | AP155: 0 | AQ155: 0 | AR155: 0 | AS155: 0 | AT155: 0 | AU155: 0 | AV155: 0 | AW155: 0 | AX155: 0 | AY155: 0 | AZ155: 0 | BA155: 0 | BB155: 0 | BC155: 0 | BD155: 0 | BE155: 0 | BF155: 0 | BG155: 0 | BH155: 0 | BI155: 0 | BJ155: 0 | BK155: 0 | BL155: 0 | BM155: 0 | BN155: 0 | BO155: 0 | BP155: 0 | BQ155: 0 | BR155: 0 | BS155: 0 | BT155: 0 | BU155: 0 | BV155: 0 | BW155: 0 | BX155: 0 | BY155: 0 | BZ155: 0 | CA155: 0 | CB155: 0 | CC155: 0 | CD155: 0 | CE155: 0 | CF155: 0 | CG155: 0 | CH155: 0 | CI155: 0 | CJ155: 0 | CK155: 0 | CL155: 0 | CM155: 0 | CN155: 0 | CO155: 0 | CP155: 0 | CQ155: 0 | CR155: 0 | CS155: 0 | CT155: 0 | CU155: 0 | CV155: 0 | CW155: 0 | CX155: 0 | CY155: 0 | CZ155: 0 | DA155: 0 | DB155: 0 | DC155: 0 | DD155: 0 | DE155: 0 | DF155: 0 | DG155: 0
C156: > 132 kV & < = 275 kV ; Capacitors | D156: 44.8 | E156: 6.693280212 | H156: 0 | I156: 1 | J156: 0 | K156: 0 | L156: 0 | M156: 0 | N156: 0 | O156: 0 | P156: 0 | Q156: 1 | R156: 0 | S156: 0 | T156: 0 | U156: 1 | V156: 1 | W156: 0 | X156: 0 | Y156: 0 | Z156: 0 | AA156: 0 | AB156: 0 | AC156: 0 | AD156: 0 | AE156: 0 | AF156: 0 | AG156: 1 | AH156: 2 | AI156: 0 | AJ156: 0 | AK156: 0 | AL156: 0 | AM156: 0 | AN156: 0 | AO156: 0 | AP156: 0 | AQ156: 0 | AR156: 0 | AS156: 0 | AT156: 0 | AU156: 0 | AV156: 0 | AW156: 0 | AX156: 0 | AY156: 0 | AZ156: 0 | BA156: 0 | BB156: 0 | BC156: 0 | BD156: 0 | BE156: 0 | BF156: 0 | BG156: 0 | BH156: 0 | BI156: 0 | BJ156: 0 | BK156: 0 | BL156: 0 | BM156: 0 | BN156: 0 | BO156: 0 | BP156: 0 | BQ156: 0 | BR156: 0 | BS156: 0 | BT156: 0 | BU156: 0 | BV156: 0 | BW156: 0 | BX156: 0 | BY156: 0 | BZ156: 0 | CA156: 0 | CB156: 0 | CC156: 0 | CD156: 0 | CE156: 0 | CF156: 0 | CG156: 0 | CH156: 0 | CI156: 0 | CJ156: 0 | CK156: 0 | CL156: 0 | CM156: 0 | CN156: 0 | CO156: 0 | CP156: 0 | CQ156: 0 | CR156: 0 | CS156: 0 | CT156: 0 | CU156: 0 | CV156: 0 | CW156: 0 | CX156: 0 | CY156: 0 | CZ156: 0 | DA156: 0 | DB156: 0 | DC156: 0 | DD156: 0 | DE156: 0 | DF156: 0 | DG156: 0
C157: > 275 kV & < = 330 kV ; Capacitors | D157: 44.8 | E157: 6.693280212
C158: > 330 kV & < = 500 kV ; Capacitors | D158: 44.8 | E158: 6.693280212
C159: > 500 kV ; Capacitors | D159: 44.8 | E159: 6.693280212
C160: < = 33 kV; Oil Filled Reactors | D160: 44.8 | E160: 6.693280212 | H160: 1 | I160: 1 | BE160: 4
C161: > 33 kV & < = 66 kV ; Oil Filled Reactors | D161: 44.8 | E161: 6.693280212
C162: > 66 kV & < = 132 kV ; Oil Filled Reactors | D162: 44.8 | E162: 6.693280212
C163: > 132 kV & < = 275 kV ; Oil Filled Reactors | D163: 44.8 | E163: 6.693280212 | F163: 1 | I163: 1 | J163: 3 | L163: 1 | AH163: 4
C164: > 275 kV & < = 330 kV ; Oil Filled Reactors | D164: 44.8 | E164: 6.693280212
C165: > 330 kV & < = 500 kV ; Oil Filled Reactors | D165: 44.8 | E165: 6.693280212
C166: > 500 kV ; Oil Filled Reactors | D166: 44.8 | E166: 6.693280212
C167: Other
B168: SCADA, NETWORK CONTROL AND PROTECTION SYSTEMS BY: Function | C168: Communications Network Assets
C169: Master Station Assets
C170: Control equipment / systems
C171: Infrastructure: protection and control
C172: Metering systems
C173: OPGW | D173: 27 | E173: 5.196152423 | F173: 0 | G173: 19.463 | H173: 229.01291 | I173: 22.730092 | J173: 73.657 | K173: 78.078295 | L173: 225.7249 | M173: 3.48 | N173: 42.158866 | O173: 0 | P173: 32.860254 | Q173: 67.0136 | R173: 0 | S173: 0 | T173: 3.803 | U173: 3.613 | V173: 3.698 | W173: 1.636 | X173: 0.615 | Y173: 0 | Z173: 0 | AA173: 0 | AB173: 0 | AC173: 0 | AD173: 0 | AE173: 0 | AF173: 0 | AG173: 0 | AH173: 0 | AI173: 0 | AJ173: 0 | AK173: 0 | AL173: 0 | AM173: 0 | AN173: 0 | AO173: 0 | AP173: 0 | AQ173: 0 | AR173: 0 | AS173: 0 | AT173: 0 | AU173: 0 | AV173: 0 | AW173: 0 | AX173: 0 | AY173: 0 | AZ173: 0 | BA173: 0 | BB173: 0 | BC173: 0 | BD173: 0 | BE173: 0 | BF173: 0 | BG173: 0 | BH173: 0 | BI173: 0 | BJ173: 0 | BK173: 0 | BL173: 0 | BM173: 0 | BN173: 0 | BO173: 0 | BP173: 0 | BQ173: 0 | BR173: 0 | BS173: 0 | BT173: 0 | BU173: 0 | BV173: 0 | BW173: 0 | BX173: 0 | BY173: 0 | BZ173: 0 | CA173: 0 | CB173: 0 | CC173: 0 | CD173: 0 | CE173: 0 | CF173: 0 | CG173: 0 | CH173: 0 | CI173: 0 | CJ173: 0 | CK173: 0 | CL173: 0 | CM173: 0 | CN173: 0 | CO173: 0 | CP173: 0 | CQ173: 0 | CR173: 0 | CS173: 0 | CT173: 0 | CU173: 0 | CV173: 0 | CW173: 0 | CX173: 0 | CY173: 0 | CZ173: 0 | DA173: 0 | DB173: 0 | DC173: 0 | DD173: 0 | DE173: 0 | DF173: 0 | DG173: 0
C174: Protection schemes / systems
C175: Site establishment | D175: 55 | E175: 7.416198487 | F175: 1 | G175: 0 | H175: 0 | I175: 1 | J175: 2 | K175: 2 | L175: 0 | M175: 0 | N175: 1 | O175: 0 | P175: 1 | Q175: 0 | R175: 1 | S175: 0 | T175: 1 | U175: 0 | V175: 1 | W175: 1 | X175: 1 | Y175: 0 | Z175: 0 | AA175: 0 | AB175: 1 | AC175: 0 | AD175: 1 | AE175: 1 | AF175: 1 | AG175: 2 | AH175: 0 | AI175: 2 | AJ175: 1 | AK175: 0 | AL175: 1 | AM175: 2 | AN175: 2 | AO175: 1 | AP175: 1 | AQ175: 3 | AR175: 2 | AS175: 4 | AT175: 1 | AU175: 0 | AV175: 2 | AW175: 1 | AX175: 1 | AY175: 3 | AZ175: 2 | BA175: 5 | BB175: 2 | BC175: 2 | BD175: 3 | BE175: 5 | BF175: 3 | BG175: 1 | BH175: 0 | BI175: 2 | BJ175: 1 | BK175: 1 | BL175: 0 | BM175: 1 | BN175: 0 | BO175: 0 | BP175: 1 | BQ175: 2 | BR175: 0 | BS175: 0 | BT175: 0 | BU175: 0 | BV175: 0 | BW175: 0 | BX175: 0 | BY175: 0 | BZ175: 0 | CA175: 0 | CB175: 0 | CC175: 0 | CD175: 0 | CE175: 0 | CF175: 0 | CG175: 0 | CH175: 0 | CI175: 0 | CJ175: 0 | CK175: 0 | CL175: 0 | CM175: 0 | CN175: 0 | CO175: 0 | CP175: 0 | CQ175: 0 | CR175: 0 | CS175: 0 | CT175: 0 | CU175: 0 | CV175: 0 | CW175: 0 | CX175: 0 | CY175: 0 | CZ175: 0 | DA175: 0 | DB175: 0 | DC175: 0 | DD175: 0 | DE175: 0 | DF175: 0 | DG175: 0
C176: Station SCADA and control systems
C177: Telecommunications Network / Systems
C178: Total secondary systems | D178: 15 | E178: 3.872983346 | F178: 53 | G178: 28 | H178: 205 | I178: 84 | J178: 55 | K178: 62 | L178: 55 | M178: 16 | N178: 87 | O178: 15 | P178: 118 | Q178: 56 | R178: 118 | S178: 16 | T178: 27 | U178: 10 | V178: 31 | W178: 9 | X178: 25 | Y178: 0 | Z178: 0 | AA178: 0 | AB178: 0 | AC178: 0 | AD178: 1 | AE178: 0 | AF178: 15 | AG178: 12 | AH178: 23 | AI178: 13 | AJ178: 7 | AK178: 19 | AL178: 1 | AM178: 55 | AN178: 8 | AO178: 1 | AP178: 0 | AQ178: 32 | AR178: 6 | AS178: 18 | AT178: 2 | AU178: 0 | AV178: 30 | AW178: 1 | AX178: 3 | AY178: 2 | AZ178: 8 | BA178: 13 | BB178: 8 | BC178: 6 | BD178: 0 | BE178: 3 | BF178: 2 | BG178: 0 | BH178: 0 | BI178: 0 | BJ178: 3 | BK178: 0 | BL178: 0 | BM178: 0 | BN178: 0 | BO178: 0 | BP178: 0 | BQ178: 0 | BR178: 0 | BS178: 0 | BT178: 0 | BU178: 0 | BV178: 0 | BW178: 0 | BX178: 0 | BY178: 0 | BZ178: 0 | CA178: 0 | CB178: 0 | CC178: 0 | CD178: 0 | CE178: 0 | CF178: 0 | CG178: 0 | CH178: 0 | CI178: 0 | CJ178: 0 | CK178: 0 | CL178: 0 | CM178: 0 | CN178: 0 | CO178: 0 | CP178: 0 | CQ178: 0 | CR178: 0 | CS178: 0 | CT178: 0 | CU178: 0 | CV178: 0 | CW178: 0 | CX178: 0 | CY178: 0 | CZ178: 0 | DA178: 0 | DB178: 0 | DC178: 0 | DD178: 0 | DE178: 0 | DF178: 0 | DG178: 0
C179: Other
B180: OTHER BY: TNSP defined | C180: Telecommunications | D180: 15 | E180: 3.872983346 | F180: 4 | G180: 3 | H180: 1 | I180: 2 | J180: 5 | K180: 2 | L180: 3 | M180: 6 | N180: 4 | O180: 1 | P180: 4 | Q180: 0 | R180: 1 | S180: 0 | T180: 6 | U180: 1 | V180: 2 | W180: 1 | X180: 1 | Y180: 0 | Z180: 0 | AA180: 1 | AB180: 1 | AC180: 0 | AD180: 1 | AE180: 1 | AF180: 2 | AG180: 4 | AH180: 2 | AI180: 5 | AJ180: 1 | AK180: 0 | AL180: 1 | AM180: 2 | AN180: 2 | AO180: 1 | AP180: 1 | AQ180: 3 | AR180: 2 | AS180: 4 | AT180: 1 | AU180: 0 | AV180: 2 | AW180: 1 | AX180: 1 | AY180: 3 | AZ180: 2 | BA180: 5 | BB180: 2 | BC180: 2 | BD180: 3 | BE180: 5 | BF180: 3 | BG180: 1 | BH180: 0 | BI180: 2 | BJ180: 1 | BK180: 1 | BL180: 0 | BM180: 1 | BN180: 0 | BO180: 0 | BP180: 1 | BQ180: 2 | BR180: 0 | BS180: 0 | BT180: 0 | BU180: 0 | BV180: 0 | BW180: 0 | BX180: 0 | BY180: 0 | BZ180: 0 | CA180: 0 | CB180: 0 | CC180: 0 | CD180: 0 | CE180: 0 | CF180: 0 | CG180: 0 | CH180: 0 | CI180: 0 | CJ180: 0 | CK180: 0 | CL180: 0 | CM180: 0 | CN180: 0 | CO180: 0 | CP180: 0 | CQ180: 0 | CR180: 0 | CS180: 0 | CT180: 0 | CU180: 0 | CV180: 0 | CW180: 0 | CX180: 0 | CY180: 0 | CZ180: 0 | DA180: 0 | DB180: 0 | DC180: 0 | DD180: 0 | DE180: 0 | DF180: 0 | DG180: 0

Sheet 5.3 MD - Network level
B1: REGULATORY REPORTING STATEMENT
B2: =INDEX(dms_TradingNameFull_List,MATCH(dms_TradingName,dms_TradingName_List)) -> ElectraNet
B3: =CONCATENATE((LOOKUP(dms_Model,dms_Model_List,dms_Worksheet_List))&" "&CRY) -> CATEGORY ANALYSIS 2015-16
B4: 5.3 MAXIMUM DEMAND AT NETWORK LEVEL
B7: 5.3.1 - RAW AND WEATHER CORRECTED COINCIDENT MD AT NETWORK LEVEL (Summed at transmission connection point)
C8: UNIT | D8: =CRY -> 2015-16
B9: Raw network coincident MD | C9: MW | D9: 2804.476644
B10: Date MD occurred | D10: 2015-12-17
B11: Half hour time period MD occurred | D11: 19:00:00
B12: Winter/summer peaking | D12: Summer
B13: Embedded generation | C13: MW | D13: 202.5259207
B14: Weather corrected (10% POE) network coincident MD | C14: MW | D14: 3065.576652
B15: Weather corrected (50% POE) network coincident MD | C15: MW | D15: 2734.838996

Sheet 5.4 MD & utilisation-Spatial
B1: REGULATORY REPORTING STATEMENT
B2: =INDEX(dms_TradingNameFull_List,MATCH(dms_TradingName,dms_TradingName_List)) -> ElectraNet
B3: =CONCATENATE((LOOKUP(dms_Model,dms_Model_List,dms_Worksheet_List))&" "&CRY) -> CATEGORY ANALYSIS 2015-16
B4: 5.4 MAXIMUM DEMAND AND UTILISATION AT SPATIAL LEVEL
B6: There is ONE table on this worksheet. It has been sub-grouped into blocks of approximately 1000 rows for ease of navigation. See the Instructions sheet on how to group or ungroup data.
B8: TABLE 5.4.1 NON-COINCIDENT & COINCIDENT MAXIMUM DEMAND
B9: CONNECTION POINT | C9: FORECASTING ELEMENTS | D9: UNIT | E9: MAX DEMAND | F9: =CRY -> 2015-16
B10: ACR | C10: Connection Point Rating | D10: MVA | E10: Non-Coincident | F10: 600
E11: Coincident | F11: 600
C12: Raw Adjusted MD | D12: MW | E12: Non-Coincident | F12: 303.4227079
E13: Coincident | F13: 296.681942
C14: Raw Adjusted MD | D14: MVA | E14: Non-Coincident | F14: 304.2584486
E15: Coincident | F15: 297.5457827
C16: Date MD occurred | E16: Non-Coincident | F16: 2015-12-19
E17: Coincident | F17: 2015-12-17
C18: Half hour time period MD occurred | E18: Non-Coincident | F18: 17:30:00
E19: Coincident | F19: 19:00:00
C20: Winter/Summer Peaking | E20: Non-Coincident | F20: Summer
E21: Coincident | F21: Summer
C22: Adjustments - Embedded generation | D22: MW | E22: Non-Coincident | F22: 0.3028826212
E23: Coincident | F23: 0.2125811309
C24: Weather Corrected MD 10% POE | D24: MW | E24: Non-Coincident | F24: 328.4688658
E25: Coincident | F25: 320.9916651
C26: Weather Corrected MD 10% POE | D26: MVA | E26: Non-Coincident | F26: 329.3832625
E27: Coincident | F27: 321.9335945
C28: Weather Corrected MD 50% POE | D28: MW | E28: Non-Coincident | F28: 293.8838899
E29: Coincident | F29: 287.22239
C30: Weather Corrected MD 50% POE | D30: MVA | E30: Non-Coincident | F30: 294.6989815
E31: Coincident | F31: 288.0636318
B32: Angas Creek | C32: Connection Point Rating | D32: MVA | E32: Non-Coincident | F32: 56.6
E33: Coincident | F33: 56.6
C34: Raw Adjusted MD | D34: MW | E34: Non-Coincident | F34: 17.6483
E35: Coincident | F35: 17.0788
C36: Raw Adjusted MD | D36: MVA | E36: Non-Coincident | F36: 18.46655561
E37: Coincident | F37: 17.91798599
C38: Date MD occurred | E38: Non-Coincident | F38: 2015-12-18
E39: Coincident | F39: 2015-12-17
C40: Half hour time period MD occurred | E40: Non-Coincident | F40: 19:00:00
E41: Coincident | F41: 19:00:00
C42: Winter/Summer Peaking | E42: Non-Coincident | F42: Summer
E43: Coincident | F43: Summer
C44: Adjustments - Embedded generation | D44: MW | E44: Non-Coincident | F44: 1.745663023
E45: Coincident | F45: 1.731585097
C46: Weather Corrected MD 10% POE | D46: MW | E46: Non-Coincident | F46: 17.25128159
E47: Coincident | F47: 16.69459313
C48: Weather Corrected MD 10% POE | D48: MVA | E48: Non-Coincident | F48: 18.05112961
E49: Coincident | F49: 17.51490069
C50: Weather Corrected MD 50% POE | D50: MW | E50: Non-Coincident | F50: 15.84346192
E51: Coincident | F51: 15.33220295
C52: Weather Corrected MD 50% POE | D52: MVA | E52: Non-Coincident | F52: 16.57803701
E53: Coincident | F53: 16.08556794
B54: Ardrossan West | C54: Connection Point Rating | D54: MVA | E54: Non-Coincident | F54: 50
E55: Coincident | F55: 50
C56: Raw Adjusted MD | D56: MW | E56: Non-Coincident | F56: 10.6138
E57: Coincident | F57: 8.5258
C58: Raw Adjusted MD | D58: MVA | E58: Non-Coincident | F58: 10.80573515
E59: Coincident | F59: 8.678718203
C60: Date MD occurred | E60: Non-Coincident | F60: 2015-12-30
E61: Coincident | F61: 2015-12-17
C62: Half hour time period MD occurred | E62: Non-Coincident | F62: 19:00:00
E63: Coincident | F63: 19:00:00
C64: Winter/Summer Peaking | E64: Non-Coincident | F64: Summer
E65: Coincident | F65: Summer
C66: Adjustments - Embedded generation | D66: MW | E66: Non-Coincident | F66: 1.010124953
E67: Coincident | F67: 1.227721038
C68: Weather Corrected MD 10% POE | D68: MW | E68: Non-Coincident | F68: 9.173299232
E69: Coincident | F69: 7.368681772
C70: Weather Corrected MD 10% POE | D70: MVA | E70: Non-Coincident | F70: 9.339185022
E71: Coincident | F71: 7.500845976
C72: Weather Corrected MD 50% POE | D72: MW | E72: Non-Coincident | F72: 8.209491556
E73: Coincident | F73: 6.594479179
C74: Weather Corrected MD 50% POE | D74: MVA | E74: Non-Coincident | F74: 8.357948284
E75: Coincident | F75: 6.712757335
B76: Back Callington | C76: Connection Point Rating | D76: MVA | E76: Non-Coincident
E77: Coincident
C78: Raw Adjusted MD | D78: MW | E78: Non-Coincident
E79: Coincident
C80: Raw Adjusted MD | D80: MVA | E80: Non-Coincident
E81: Coincident
C82: Date MD occurred | E82: Non-Coincident
E83: Coincident
C84: Half hour time period MD occurred | E84: Non-Coincident
E85: Coincident
C86: Winter/Summer Peaking | E86: Non-Coincident
E87: Coincident
C88: Adjustments - Embedded generation | D88: MW | E88: Non-Coincident
E89: Coincident
C90: Weather Corrected MD 10% POE | D90: MW | E90: Non-Coincident
E91: Coincident
C92: Weather Corrected MD 10% POE | D92: MVA | E92: Non-Coincident
E93: Coincident
C94: Weather Corrected MD 50% POE | D94: MW | E94: Non-Coincident
E95: Coincident
C96: Weather Corrected MD 50% POE | D96: MVA | E96: Non-Coincident
E97: Coincident
B98: Baroota | C98: Connection Point Rating | D98: MVA | E98: Non-Coincident | F98: 11.8
E99: Coincident | F99: 11.8
C100: Raw Adjusted MD | D100: MW | E100: Non-Coincident | F100: 7.8141
E101: Coincident | F101: 7.2428
C102: Raw Adjusted MD | D102: MVA | E102: Non-Coincident | F102: 7.840224427
E103: Coincident | F103: 7.26129274
C104: Date MD occurred | E104: Non-Coincident | F104: 2015-12-19
E105: Coincident | F105: 2015-12-17
C106: Half hour time period MD occurred | E106: Non-Coincident | F106: 19:30:00
E107: Coincident | F107: 19:00:00
C108: Winter/Summer Peaking | E108: Non-Coincident | F108: Summer
E109: Coincident | F109: Summer
C110: Adjustments - Embedded generation | D110: MW | E110: Non-Coincident | F110: 0.3120939698
E111: Coincident | F111: 0.7590731698
C112: Weather Corrected MD 10% POE | D112: MW | E112: Non-Coincident | F112: 7.748569857
E113: Coincident | F113: 7.182060859
C114: Weather Corrected MD 10% POE | D114: MVA | E114: Non-Coincident | F114: 7.7744752
E115: Coincident | F115: 7.200398516
C116: Weather Corrected MD 50% POE | D116: MW | E116: Non-Coincident | F116: 7.072670171
E117: Coincident | F117: 6.555577163
C118: Weather Corrected MD 50% POE | D118: MVA | E118: Non-Coincident | F118: 7.096315818
E119: Coincident | F119: 6.572315246
B120: Berri | C120: Connection Point Rating | D120: MVA | E120: Non-Coincident | F120: 200.1
E121: Coincident | F121: 200.1
C122: Raw Adjusted MD | D122: MW | E122: Non-Coincident | F122: 84.4121
E123: Coincident | F123: 80.7499
C124: Raw Adjusted MD | D124: MVA | E124: Non-Coincident | F124: 86.41806502
E125: Coincident | F125: 82.6069952
C126: Date MD occurred | E126: Non-Coincident | F126: 2015-12-18
E127: Coincident | F127: 2015-12-17
C128: Half hour time period MD occurred | E128: Non-Coincident | F128: 18:00:00
E129: Coincident | F129: 19:00:00
C130: Winter/Summer Peaking | E130: Non-Coincident | F130: Summer
E131: Coincident | F131: Summer
C132: Adjustments - Embedded generation | D132: MW | E132: Non-Coincident | F132: 7.268486141
E133: Coincident | F133: 4.705936399
C134: Weather Corrected MD 10% POE | D134: MW | E134: Non-Coincident | F134: 91.00204135
E135: Coincident | F135: 87.05393823
C136: Weather Corrected MD 10% POE | D136: MVA | E136: Non-Coincident | F136: 93.16460941
E137: Coincident | F137: 89.0560144
C138: Weather Corrected MD 50% POE | D138: MW | E138: Non-Coincident | F138: 83.44878815
E139: Coincident | F139: 79.82838122
C140: Weather Corrected MD 50% POE | D140: MVA | E140: Non-Coincident | F140: 85.43186107
E141: Coincident | F141: 81.66428323
B142: Blanche | C142: Connection Point Rating | D142: MVA | E142: Non-Coincident | F142: 134.8
E143: Coincident | F143: 134.8
C144: Raw Adjusted MD | D144: MW | E144: Non-Coincident | F144: 33.2773
E145: Coincident | F145: 30.9607
C146: Raw Adjusted MD | D146: MVA | E146: Non-Coincident | F146: 34.73483261
E147: Coincident | F147: 31.89106496
C148: Date MD occurred | E148: Non-Coincident | F148: 2016-01-13
E149: Coincident | F149: 2015-12-17
C150: Half hour time period MD occurred | E150: Non-Coincident | F150: 15:00:00
E151: Coincident | F151: 19:00:00
C152: Winter/Summer Peaking | E152: Non-Coincident | F152: Summer
E153: Coincident | F153: Summer
C154: Adjustments - Embedded generation | D154: MW | E154: Non-Coincident | F154: 1.951508444
E155: Coincident | F155: 1.375165676
C156: Weather Corrected MD 10% POE | D156: MW | E156: Non-Coincident | F156: 32.75895312
E157: Coincident | F157: 30.47843785
C158: Weather Corrected MD 10% POE | D158: MVA | E158: Non-Coincident | F158: 34.19378234
E159: Coincident | F159: 31.39431089
C160: Weather Corrected MD 50% POE | D160: MW | E160: Non-Coincident | F160: 31.37737965
E161: Coincident | F161: 29.19304265
C162: Weather Corrected MD 50% POE | D162: MVA | E162: Non-Coincident | F162: 32.75169649
E163: Coincident | F163: 30.07028973
B164: Brinkworth | C164: Connection Point Rating | D164: MVA | E164: Non-Coincident | F164: 24.6
E165: Coincident | F165: 24.6
C166: Raw Adjusted MD | D166: MW | E166: Non-Coincident | F166: 4.6221
E167: Coincident | F167: 4.5614
C168: Raw Adjusted MD | D168: MVA | E168: Non-Coincident | F168: 4.622552812
E169: Coincident | F169: 4.561678432
C170: Date MD occurred | E170: Non-Coincident | F170: 2015-12-17
E171: Coincident | F171: 2015-12-17
C172: Half hour time period MD occurred | E172: Non-Coincident | F172: 19:30:00
E173: Coincident | F173: 19:00:00
C174: Winter/Summer Peaking | E174: Non-Coincident | F174: Summer
E175: Coincident | F175: Summer
C176: Adjustments - Embedded generation | D176: MW | E176: Non-Coincident | F176: 0.266664053
E177: Coincident | F177: 0.3849288731
C178: Weather Corrected MD 10% POE | D178: MW | E178: Non-Coincident | F178: 4.643275489
E179: Coincident | F179: 4.582297401
C180: Weather Corrected MD 10% POE | D180: MVA | E180: Non-Coincident | F180: 4.643730376
E181: Coincident | F181: 4.582577109
C182: Weather Corrected MD 50% POE | D182: MW | E182: Non-Coincident | F182: 4.196650269
E183: Coincident | F183: 4.141537513
C184: Weather Corrected MD 50% POE | D184: MVA | E184: Non-Coincident | F184: 4.197061401
E185: Coincident | F185: 4.141790316
B186: Bungama Rural | C186: Connection Point Rating | D186: MVA | E186: Non-Coincident | F186: 64
E187: Coincident | F187: 64
C188: Raw Adjusted MD | D188: MW | E188: Non-Coincident | F188: 18.14745035
E189: Coincident | F189: 16.70684401
C190: Raw Adjusted MD | D190: MVA | E190: Non-Coincident | F190: 18.35317433
E191: Coincident | F191: 17.05944848
C192: Date MD occurred | E192: Non-Coincident | F192: 2016-01-12
E193: Coincident | F193: 2015-12-17
C194: Half hour time period MD occurred | E194: Non-Coincident | F194: 19:30:00
E195: Coincident | F195: 19:00:00
C196: Winter/Summer Peaking | E196: Non-Coincident | F196: Summer
E197: Coincident | F197: Summer
C198: Adjustments - Embedded generation | D198: MW | E198: Non-Coincident | F198: 0.8273659075
E199: Coincident | F199: 1.047907576
C200: Weather Corrected MD 10% POE | D200: MW | E200: Non-Coincident | F200: 18.43247415
E201: Coincident | F201: 16.96924165
C202: Weather Corrected MD 10% POE | D202: MVA | E202: Non-Coincident | F202: 18.64142923
... 4229 more rows

Sheet Amendments
B1: NSP data amendments
B2: =INDEX(dms_TradingNameFull_List,MATCH(dms_TradingName,dms_TradingName_List)) -> ElectraNet | C2: Table | D2: Comments
B3: Email to AER 17/7/17 | C3: Expenditure tables. | D3: Expenditure values updated to $ rather than $000

Sheet Unlocked worksheet
